Organisation Name,Organisation Code,Effective Date,Directorate,Service (Sercop),Sercop URI,Supplier Name,Purpose of Spend,Type,Transaction No.,Seq No.,Payment Date,Net Amount,Irrecoverable VAT,Merchant Category,P-Card Tran,Contract,
Wakefield MDC,E08000036,30/09/2014,CHILDYOU,4,Children's and Education Services,FENNS,Activities School Improvement,Revenue,160683,272,27/08/2014,16.67,Nil,Lumber/Building Materials Stores,GPC,Not yet available,
Wakefield MDC,E08000036,30/09/2014,CHILDYOU,4,Children's and Education Services,SOUTH KIRKBY ANGLING ,Activities School Improvement,Revenue,160683,276,27/08/2014,21.67,Nil,Sporting Goods Stores,GPC,Not yet available,
Wakefield MDC,E08000036,30/09/2014,REGENCULT,N,Planning Services,FACEBOOK,Advertising,Revenue,160686,565,09/09/2014,15.68,Nil,Advertising Services,GPC,Not yet available,
Wakefield MDC,E08000036,30/09/2014,REGENCULT,N,Planning Services,FACEBOOK,Advertising,Revenue,160686,581,09/09/2014,16.89,Nil,Advertising Services,GPC,Not yet available,
Wakefield MDC,E08000036,30/09/2014,REGENCULT,N,Planning Services,FACEBOOK,Advertising,Revenue,160686,563,09/09/2014,18.27,Nil,Advertising Services,GPC,Not yet available,
Wakefield MDC,E08000036,30/09/2014,REGENCULT,N,Planning Services,FACEBOOK,Advertising,Revenue,160686,582,09/09/2014,17.17,Nil,Advertising Services,GPC,Not yet available,
Wakefield MDC,E08000036,30/09/2014,REGENCULT,N,Planning Services,FACEBOOK,Advertising,Revenue,160686,579,09/09/2014,14.84,Nil,Advertising Services,GPC,Not yet available,
Wakefield MDC,E08000036,30/09/2014,REGENCULT,N,Planning Services,FACEBOOK,Advertising,Revenue,160686,562,09/09/2014,17.13,Nil,Advertising Services,GPC,Not yet available,
Wakefield MDC,E08000036,30/09/2014,BUSINESS,1,Central Services,JOHNSTON PRESS NORTH ,Advertising,Revenue,160660,3124,11/07/2014,126.82,Nil,News Dealers/Newsstands,GPC,Not yet available,
Wakefield MDC,E08000036,30/09/2014,BUSINESS,1,Central Services,JOHNSTON PRESS NORTH ,Advertising,Revenue,160686,2065,09/09/2014,116.54,Nil,News Dealers/Newsstands,GPC,Not yet available,
Wakefield MDC,E08000036,30/09/2014,CHILDYOU,4,Children's and Education Services,LALS,Assistance To Families (Section 34),Revenue,160686,1540,09/09/2014,18.50,Nil,Grocery Stores/Supermarkets,GPC,Not yet available,
Wakefield MDC,E08000036,30/09/2014,CHILDYOU,4,Children's and Education Services,HALFORDS ,Assistance To Families (Section 34),Revenue,160672,50,05/08/2014,43.75,Nil,Bicycle Shops - Sales/Service,GPC,Not yet available,
Wakefield MDC,E08000036,30/09/2014,CHILDYOU,4,Children's and Education Services,EC MAINLINE,Assistance To Families (Section 34),Revenue,160683,295,27/08/2014,31.80,Nil,Passenger Railways,GPC,Not yet available,
Wakefield MDC,E08000036,30/09/2014,CHILDYOU,4,Children's and Education Services,EC MAINLINE,Assistance To Families (Section 34),Revenue,160683,288,27/08/2014,101.20,Nil,Passenger Railways,GPC,Not yet available,
Wakefield MDC,E08000036,30/09/2014,CHILDYOU,4,Children's and Education Services,EC MAINLINE,Assistance To Families (Section 34),Revenue,160676,15,11/08/2014,66.80,Nil,Passenger Railways,GPC,Not yet available,
Wakefield MDC,E08000036,30/09/2014,CHILDYOU,4,Children's and Education Services,FTPE WEBTIS 1,Assistance To Families (Section 34),Revenue,160683,307,27/08/2014,100.80,Nil,Passenger Railways,GPC,Not yet available,
Wakefield MDC,E08000036,30/09/2014,CHILDYOU,4,Children's and Education Services,STATION HOTEL,Assistance To Families (Section 34),Revenue,160687,368,10/09/2014,76.00,Nil,Hotels and Accommodation,GPC,Not yet available,
Wakefield MDC,E08000036,30/09/2014,CHILDYOU,4,Children's and Education Services,TRAINLINE,Assistance To Families (Section 34),Revenue,160676,18,11/08/2014,210.63,Nil,Passenger Railways,GPC,Not yet available,
Wakefield MDC,E08000036,30/09/2014,CHILDYOU,4,Children's and Education Services,TRAINLINE,Assistance To Families (Section 34),Revenue,160668,198,30/07/2014,187.48,Nil,Passenger Railways,GPC,Not yet available,
Wakefield MDC,E08000036,30/09/2014,CHILDYOU,4,Children's and Education Services,VIRGIN TRAINS ,Assistance To Families (Section 34),Revenue,160683,230,27/08/2014,95.80,Nil,Passenger Railways,GPC,Not yet available,
Wakefield MDC,E08000036,30/09/2014,CHILDYOU,4,Children's and Education Services,VIRGIN TRAINS ,Assistance To Families (Section 34),Revenue,160692,1762,30/09/2014,100.80,Nil,Passenger Railways,GPC,Not yet available,
Wakefield MDC,E08000036,30/09/2014,CHILDYOU,4,Children's and Education Services,VIRGIN TRAINS ,Assistance To Families (Section 34),Revenue,160685,431,01/09/2014,81.40,Nil,Passenger Railways,GPC,Not yet available,
Wakefield MDC,E08000036,30/09/2014,CHILDYOU,4,Children's and Education Services,CITILODGE,Assistance To Families (Section 34),Revenue,160683,298,27/08/2014,35.00,Nil,Hotels and Accommodation,GPC,Not yet available,
Wakefield MDC,E08000036,30/09/2014,CHILDYOU,4,Children's and Education Services,CITILODGE ,Assistance To Families (Section 34),Revenue,160687,378,10/09/2014,37.00,Nil,Hotels and Accommodation,GPC,Not yet available,
Wakefield MDC,E08000036,30/09/2014,CHILDYOU,4,Children's and Education Services,EC MAINLINE,Assistance To Families (Section 34),Revenue,160683,296,27/08/2014,96.10,Nil,Passenger Railways,GPC,Not yet available,
Wakefield MDC,E08000036,30/09/2014,CHILDYOU,4,Children's and Education Services,EC MAINLINE,Assistance To Families (Section 34),Revenue,160694,163,02/10/2014,193.40,Nil,Passenger Railways,GPC,Not yet available,
Wakefield MDC,E08000036,30/09/2014,CHILDYOU,4,Children's and Education Services,EC MAINLINE,Assistance To Families (Section 34),Revenue,160694,164,02/10/2014,47.00,Nil,Passenger Railways,GPC,Not yet available,
Wakefield MDC,E08000036,30/09/2014,CHILDYOU,4,Children's and Education Services,EC MAINLINE,Assistance To Families (Section 34),Revenue,160694,165,02/10/2014,149.40,Nil,Passenger Railways,GPC,Not yet available,
Wakefield MDC,E08000036,30/09/2014,CHILDYOU,4,Children's and Education Services,PREMIER INN ,Assistance To Families (Section 34),Revenue,160676,164,11/08/2014,89.50,Nil,Hotels and Accommodation,GPC,Not yet available,
Wakefield MDC,E08000036,30/09/2014,CHILDYOU,4,Children's and Education Services,ROTHERHAM SUPERBOWL,Assistance To Families (Section 34),Revenue,160692,224,30/09/2014,28.00,Nil,Eating Places/Restaurants,GPC,Not yet available,
Wakefield MDC,E08000036,30/09/2014,CHILDYOU,4,Children's and Education Services,THE DISCOVERY INN,Assistance To Families (Section 34),Revenue,160667,462,29/07/2014,109.37,Nil,Hotels and Accommodation,GPC,Not yet available,
Wakefield MDC,E08000036,30/09/2014,CHILDYOU,4,Children's and Education Services,TRAINLINE,Assistance To Families (Section 34),Revenue,160667,449,29/07/2014,321.20,Nil,Passenger Railways,GPC,Not yet available,
Wakefield MDC,E08000036,30/09/2014,CHILDYOU,4,Children's and Education Services,VIRGIN TRAINS,Assistance To Families (Section 34),Revenue,160667,452,29/07/2014,43.40,Nil,Passenger Railways,GPC,Not yet available,
Wakefield MDC,E08000036,30/09/2014,CHILDYOU,4,Children's and Education Services,VIRGIN TRAINS ,Assistance To Families (Section 34),Revenue,160676,162,11/08/2014,94.00,Nil,Passenger Railways,GPC,Not yet available,
Wakefield MDC,E08000036,30/09/2014,CHILDYOU,4,Children's and Education Services,VIRGIN TRAINS ,Assistance To Families (Section 34),Revenue,160676,163,11/08/2014,237.00,Nil,Passenger Railways,GPC,Not yet available,
Wakefield MDC,E08000036,30/09/2014,CHILDYOU,4,Children's and Education Services,EC MAINLINE,Assistance To Families (Section 34),Revenue,160683,287,27/08/2014,45.30,Nil,Passenger Railways,GPC,Not yet available,
Wakefield MDC,E08000036,30/09/2014,CHILDYOU,4,Children's and Education Services,EC MAINLINE,Assistance To Families (Section 34),Revenue,160668,38,30/07/2014,22.70,Nil,Passenger Railways,GPC,Not yet available,
Wakefield MDC,E08000036,30/09/2014,CHILDYOU,4,Children's and Education Services,EC MAINLINE,Assistance To Families (Section 34),Revenue,160668,37,30/07/2014,22.70,Nil,Passenger Railways,GPC,Not yet available,
Wakefield MDC,E08000036,30/09/2014,CHILDYOU,4,Children's and Education Services,EC MAINLINE ,Assistance To Families (Section 34),Revenue,160668,197,30/07/2014,17.30,Nil,Passenger Railways,GPC,Not yet available,
Wakefield MDC,E08000036,30/09/2014,CHILDYOU,4,Children's and Education Services,EC MAINLINE ,Assistance To Families (Section 34),Revenue,160668,196,30/07/2014,17.30,Nil,Passenger Railways,GPC,Not yet available,
Wakefield MDC,E08000036,30/09/2014,CHILDYOU,4,Children's and Education Services,TRAINLINE,Assistance To Families (Section 34),Revenue,160676,12,11/08/2014,232.31,Nil,Passenger Railways,GPC,Not yet available,
Wakefield MDC,E08000036,30/09/2014,CHILDYOU,4,Children's and Education Services,TRAINLINE,Assistance To Families (Section 34),Revenue,160687,367,10/09/2014,28.61,Nil,Passenger Railways,GPC,Not yet available,
Wakefield MDC,E08000036,30/09/2014,CHILDYOU,4,Children's and Education Services,TRAINLINE,Assistance To Families (Section 34),Revenue,160668,213,30/07/2014,76.81,Nil,Passenger Railways,GPC,Not yet available,
Wakefield MDC,E08000036,30/09/2014,CHILDYOU,4,Children's and Education Services,TRAINLINE,Assistance To Families (Section 34),Revenue,160668,212,30/07/2014,185.44,Nil,Passenger Railways,GPC,Not yet available,
Wakefield MDC,E08000036,30/09/2014,CHILDYOU,4,Children's and Education Services,VIRGIN TRAINS,Assistance To Families (Section 34),Revenue,160667,457,29/07/2014,149.00,Nil,Passenger Railways,GPC,Not yet available,
Wakefield MDC,E08000036,30/09/2014,CHILDYOU,4,Children's and Education Services,VIRGIN TRAINS,Assistance To Families (Section 34),Revenue,160667,460,29/07/2014,14.60,Nil,Passenger Railways,GPC,Not yet available,
Wakefield MDC,E08000036,30/09/2014,CHILDYOU,4,Children's and Education Services,VIRGIN TRAINS,Assistance To Families (Section 34),Revenue,160692,198,30/09/2014,18.90,Nil,Passenger Railways,GPC,Not yet available,
Wakefield MDC,E08000036,30/09/2014,CHILDYOU,4,Children's and Education Services,VIRGIN TRAINS,Assistance To Families (Section 34),Revenue,160692,196,30/09/2014,38.60,Nil,Passenger Railways,GPC,Not yet available,
Wakefield MDC,E08000036,30/09/2014,CHILDYOU,4,Children's and Education Services,VIRGIN TRAINS,Assistance To Families (Section 34),Revenue,160692,195,30/09/2014,22.90,Nil,Passenger Railways,GPC,Not yet available,
Wakefield MDC,E08000036,30/09/2014,CHILDYOU,4,Children's and Education Services,VIRGIN TRAINS,Assistance To Families (Section 34),Revenue,160692,245,30/09/2014,22.90,Nil,Passenger Railways,GPC,Not yet available,
Wakefield MDC,E08000036,30/09/2014,CHILDYOU,4,Children's and Education Services,VIRGIN TRAINS ,Assistance To Families (Section 34),Revenue,160683,229,27/08/2014,78.60,Nil,Passenger Railways,GPC,Not yet available,
Wakefield MDC,E08000036,30/09/2014,CHILDYOU,4,Children's and Education Services,EC MAINLINE,Assistance To Families (Section 34),Revenue,160661,247,16/07/2014,74.80,Nil,Passenger Railways,GPC,Not yet available,
Wakefield MDC,E08000036,30/09/2014,CHILDYOU,4,Children's and Education Services,EC MAINLINE,Assistance To Families (Section 34),Revenue,160681,377,20/08/2014,74.80,Nil,Passenger Railways,GPC,Not yet available,
Wakefield MDC,E08000036,30/09/2014,CHILDYOU,4,Children's and Education Services,MR P SUTTON ROLANDS ,Assistance To Families (Section 34),Revenue,160688,886,12/09/2014,305.00,Nil,Hotels and Accommodation,GPC,Not yet available,
Wakefield MDC,E08000036,30/09/2014,CHILDYOU,4,Children's and Education Services,TRAINLINE,Assistance To Families (Section 34),Revenue,160693,972,01/10/2014,82.62,Nil,Passenger Railways,GPC,Not yet available,
Wakefield MDC,E08000036,30/09/2014,CHILDYOU,4,Children's and Education Services,TRAINLINE,Assistance To Families (Section 34),Revenue,160693,973,01/10/2014,29.58,Nil,Passenger Railways,GPC,Not yet available,
Wakefield MDC,E08000036,30/09/2014,CHILDYOU,4,Children's and Education Services,TRAINLINE,Assistance To Families (Section 34),Revenue,160693,955,01/10/2014,36.21,Nil,Passenger Railways,GPC,Not yet available,
Wakefield MDC,E08000036,30/09/2014,CHILDYOU,4,Children's and Education Services,CRAFT SUPERSTORE,Assistance To Families (Section 34),Revenue,160661,1596,16/07/2014,6.00,Nil,Artist Supply/Craft Stores,GPC,Not yet available,
Wakefield MDC,E08000036,30/09/2014,CHILDYOU,4,Children's and Education Services,CRAFT SUPERSTORE,Assistance To Families (Section 34),Revenue,160661,1573,16/07/2014,6.00,Nil,Artist Supply/Craft Stores,GPC,Not yet available,
Wakefield MDC,E08000036,30/09/2014,CHILDYOU,4,Children's and Education Services,CALDERDALE MBC ,Assistance To Families (Section 34),Revenue,160686,2621,09/09/2014,20.60,Nil,Govt Services - Not Elsewhere Classified,GPC,Not yet available,
Wakefield MDC,E08000036,30/09/2014,CHILDYOU,4,Children's and Education Services,HALFORDS ,Assistance To Families (Section 34),Revenue,160672,52,05/08/2014,43.75,Nil,Bicycle Shops - Sales/Service,GPC,Not yet available,
Wakefield MDC,E08000036,30/09/2014,CHILDYOU,4,Children's and Education Services,KIRKLEES COUNCIL,Assistance To Families (Section 34),Revenue,160686,2622,09/09/2014,44.00,Nil,Govt Services - Not Elsewhere Classified,GPC,Not yet available,
Wakefield MDC,E08000036,30/09/2014,CHILDYOU,4,Children's and Education Services,TRAINLINE,Assistance To Families (Section 34),Revenue,160689,546,22/09/2014,103.53,Nil,Passenger Railways,GPC,Not yet available,
Wakefield MDC,E08000036,30/09/2014,CHILDYOU,4,Children's and Education Services,TRAINLINE,Assistance To Families (Section 34),Revenue,160683,86,27/08/2014,81.60,Nil,Passenger Railways,GPC,Not yet available,
Wakefield MDC,E08000036,30/09/2014,CHILDYOU,4,Children's and Education Services,TRAINLINE,Assistance To Families (Section 34),Revenue,160683,85,27/08/2014,65.18,Nil,Passenger Railways,GPC,Not yet available,
Wakefield MDC,E08000036,30/09/2014,CHILDYOU,4,Children's and Education Services,CON GEN OF THE REP OF STUTORY BODIES,Assistance To Families (Section 34),Revenue,160661,886,16/07/2014,42.00,Nil,Govt Services - Not Elsewhere Classified,GPC,Not yet available,
Wakefield MDC,E08000036,30/09/2014,CHILDYOU,4,Children's and Education Services,FIRST/KEOLIS TRANS ,Assistance To Families (Section 34),Revenue,160661,1061,16/07/2014,14.70,Nil,Passenger Railways,GPC,Not yet available,
Wakefield MDC,E08000036,30/09/2014,CHILDYOU,4,Children's and Education Services,MATALAN ,Assistance To Families (Section 34),Revenue,160683,82,27/08/2014,50.50,Nil,Mens/Womens Clothing Stores,GPC,Not yet available,
Wakefield MDC,E08000036,30/09/2014,CHILDYOU,4,Children's and Education Services,ARGOS,Beneficiary Payments (Other Agencies),Revenue,160692,2478,30/09/2014,110.00,Nil,Discount Stores,GPC,Not yet available,
Wakefield MDC,E08000036,30/09/2014,CHILDYOU,4,Children's and Education Services,POST OFFICE,Beneficiary Payments (Other Agencies),Revenue,160692,2284,30/09/2014,55.00,Nil,Postal Services - Gov Only,GPC,Not yet available,
Wakefield MDC,E08000036,30/09/2014,CHILDYOU,4,Children's and Education Services,POST OFFICE,Beneficiary Payments (Other Agencies),Revenue,160692,2283,30/09/2014,-66.00,Nil,Postal Services - Gov Only,GPC,Not yet available,
Wakefield MDC,E08000036,30/09/2014,CHILDYOU,4,Children's and Education Services,POST OFFICE,Beneficiary Payments (Other Agencies),Revenue,160692,3348,30/09/2014,77.00,Nil,Postal Services - Gov Only,GPC,Not yet available,
Wakefield MDC,E08000036,30/09/2014,CHILDYOU,4,Children's and Education Services,POST OFFICE,Beneficiary Payments (Other Agencies),Revenue,160692,2282,30/09/2014,66.00,Nil,Postal Services - Gov Only,GPC,Not yet available,
Wakefield MDC,E08000036,30/09/2014,CHILDYOU,4,Children's and Education Services,SPORTSDIRECT,Birthday Allowance,Revenue,160687,177,10/09/2014,14.99,Nil,Sporting Goods Stores,GPC,Not yet available,
Wakefield MDC,E08000036,30/09/2014,CHILDYOU,4,Children's and Education Services,ARGOS,Birthday Allowance,Revenue,160673,23,06/08/2014,42.73,Nil,Discount Stores,GPC,Not yet available,
Wakefield MDC,E08000036,30/09/2014,CHILDYOU,4,Children's and Education Services,ARGOS,Birthday Allowance,Revenue,160690,358,25/09/2014,24.99,Nil,Discount Stores,GPC,Not yet available,
Wakefield MDC,E08000036,30/09/2014,CHILDYOU,4,Children's and Education Services,ARGOS ,Birthday Allowance,Revenue,160683,240,27/08/2014,79.99,Nil,Discount Stores,GPC,Not yet available,
Wakefield MDC,E08000036,30/09/2014,CHILDYOU,4,Children's and Education Services,ASDA,Birthday Allowance,Revenue,160690,359,25/09/2014,34.00,Nil,Grocery Stores/Supermarkets,GPC,Not yet available,
Wakefield MDC,E08000036,30/09/2014,CHILDYOU,4,Children's and Education Services,CARD FACTORY ,Birthday Allowance,Revenue,160673,22,06/08/2014,11.92,Nil,Gift/Card/Novelty/Souvenir Shops,GPC,Not yet available,
Wakefield MDC,E08000036,30/09/2014,CHILDYOU,4,Children's and Education Services,TOYS R US ,Birthday Allowance,Revenue,160692,1559,30/09/2014,28.98,Nil,Misc General Merchandise,GPC,Not yet available,
Wakefield MDC,E08000036,30/09/2014,CHILDYOU,4,Children's and Education Services,AMAZON,Books & Other Publications,Revenue,160688,176,12/09/2014,25.72,Nil,Book Stores,GPC,Not yet available,
Wakefield MDC,E08000036,30/09/2014,CHILDYOU,4,Children's and Education Services,AMAZON,Books & Other Publications,Revenue,160688,177,12/09/2014,85.22,Nil,Direct Marketing - Other Direct Marketers - Not Elsewhere Classified,GPC,Not yet available,
Wakefield MDC,E08000036,30/09/2014,CHILDYOU,4,Children's and Education Services,AMAZON,Books & Other Publications,Revenue,160688,121,12/09/2014,11.89,Nil,Direct Marketing - Other Direct Marketers - Not Elsewhere Classified,GPC,Not yet available,
Wakefield MDC,E08000036,30/09/2014,CHILDYOU,4,Children's and Education Services,AMAZON,Books & Other Publications,Revenue,160688,162,12/09/2014,37.37,Nil,Direct Marketing - Other Direct Marketers - Not Elsewhere Classified,GPC,Not yet available,
Wakefield MDC,E08000036,30/09/2014,REGENCULT,N,Planning Services,AMAZON,Books & Other Publications,Revenue,160684,77,28/08/2014,15.80,Nil,Book Stores,GPC,Not yet available,
Wakefield MDC,E08000036,30/09/2014,REGENCULT,M,Environmental and Regulatory Services,AMAZON,Books & Other Publications,Revenue,160668,60,30/07/2014,11.94,Nil,Book Stores,GPC,Not yet available,
Wakefield MDC,E08000036,30/09/2014,CHILDYOU,4,Children's and Education Services,AMAZON,Books & Other Publications,Revenue,160683,221,27/08/2014,18.78,Nil,Book Stores,GPC,Not yet available,
Wakefield MDC,E08000036,30/09/2014,CHILDYOU,4,Children's and Education Services,AMAZON,Books & Other Publications,Revenue,160676,178,11/08/2014,19.72,Nil,Direct Marketing - Other Direct Marketers - Not Elsewhere Classified,GPC,Not yet available,
Wakefield MDC,E08000036,30/09/2014,ADULTS,7,Adult Social Care,AMAZON,Books & Other Publications,Revenue,160681,116,20/08/2014,22.58,Nil,Book Stores,GPC,Not yet available,
Wakefield MDC,E08000036,30/09/2014,CHILDYOU,4,Children's and Education Services,CGP BOOKS,Books & Other Publications,Revenue,160681,435,20/08/2014,85.00,Nil,Misc & Speciality Retail Stores,GPC,Not yet available,
Wakefield MDC,E08000036,30/09/2014,CHILDYOU,4,Children's and Education Services,OSBORNE BOOKS,Books & Other Publications,Revenue,160691,3805,29/09/2014,156.15,Nil,Direct Marketing - Catalog Merchant,GPC,Not yet available,
Wakefield MDC,E08000036,30/09/2014,CHILDYOU,4,Children's and Education Services,AMAZON,Books & Other Publications,Revenue,160687,2,10/09/2014,19.84,Nil,Book Stores,GPC,Not yet available,
Wakefield MDC,E08000036,30/09/2014,CHILDYOU,4,Children's and Education Services,AMAZON,Books & Other Publications,Revenue,160673,26,06/08/2014,3.08,Nil,Book Stores,GPC,Not yet available,
Wakefield MDC,E08000036,30/09/2014,BUSINESS,6,Housing Services,AMAZON,Books & Other Publications,Revenue,160677,15,11/08/2014,43.52,Nil,Direct Marketing - Other Direct Marketers - Not Elsewhere Classified,GPC,Not yet available,
Wakefield MDC,E08000036,30/09/2014,BUSINESS,6,Housing Services,AMAZON,Books & Other Publications,Revenue,160662,50,17/07/2014,78.30,Nil,Direct Marketing - Other Direct Marketers - Not Elsewhere Classified,GPC,Not yet available,
Wakefield MDC,E08000036,30/09/2014,BUSINESS,A,Net (Surplus) / Deficit of Trading Operations,AMAZON,Books & Other Publications,Revenue,160685,72,01/09/2014,16.34,Nil,Direct Marketing - Other Direct Marketers - Not Elsewhere Classified,GPC,Not yet available,
Wakefield MDC,E08000036,30/09/2014,BUSINESS,A,Net (Surplus) / Deficit of Trading Operations,AMAZON,Books & Other Publications,Revenue,160686,2619,09/09/2014,20.16,Nil,Book Stores,GPC,Not yet available,
Wakefield MDC,E08000036,30/09/2014,BUSINESS,1,Central Services,OXFORD UNIVERSITY PRESS,Books & Other Publications,Revenue,160686,255,09/09/2014,66.50,Nil,Book Stores,GPC,Not yet available,
Wakefield MDC,E08000036,30/09/2014,BUSINESS,A,Net (Surplus) / Deficit of Trading Operations,ASCERTIVA GROUP LTD,Books & Other Publications,Revenue,160689,1446,22/09/2014,74.93,Nil,Book Stores,GPC,Not yet available,
Wakefield MDC,E08000036,30/09/2014,BUSINESS,A,Net (Surplus) / Deficit of Trading Operations,A & E SQUIRE LTD,Building Materials,Revenue,160689,1468,22/09/2014,26.41,Nil,Hardware Stores,GPC,Not yet available,
Wakefield MDC,E08000036,30/09/2014,BUSINESS,A,Net (Surplus) / Deficit of Trading Operations,A & E SQUIRE LTD,Building Materials,Revenue,160661,2511,16/07/2014,81.85,Nil,Hardware Stores,GPC,Not yet available,
Wakefield MDC,E08000036,30/09/2014,BUSINESS,A,Net (Surplus) / Deficit of Trading Operations,ALPHA TOOLS ,Building Materials,Revenue,160689,2926,22/09/2014,80.00,Nil,Hardware Stores,GPC,Not yet available,
Wakefield MDC,E08000036,30/09/2014,BUSINESS,A,Net (Surplus) / Deficit of Trading Operations,B & Q,Building Materials,Revenue,160664,2374,22/07/2014,4.17,Nil,Lumber/Building Materials Stores,GPC,Not yet available,
Wakefield MDC,E08000036,30/09/2014,BUSINESS,A,Net (Surplus) / Deficit of Trading Operations,B & Q,Building Materials,Revenue,160664,2469,22/07/2014,5.21,Nil,Lumber/Building Materials Stores,GPC,Not yet available,
Wakefield MDC,E08000036,30/09/2014,BUSINESS,A,Net (Surplus) / Deficit of Trading Operations,B & Q,Building Materials,Revenue,160664,2333,22/07/2014,3.67,Nil,Lumber/Building Materials Stores,GPC,Not yet available,
Wakefield MDC,E08000036,30/09/2014,BUSINESS,A,Net (Surplus) / Deficit of Trading Operations,B & Q,Building Materials,Revenue,160664,2331,22/07/2014,1.35,Nil,Lumber/Building Materials Stores,GPC,Not yet available,
Wakefield MDC,E08000036,30/09/2014,BUSINESS,A,Net (Surplus) / Deficit of Trading Operations,B & Q,Building Materials,Revenue,160664,3053,22/07/2014,1.35,Nil,Lumber/Building Materials Stores,GPC,Not yet available,
Wakefield MDC,E08000036,30/09/2014,BUSINESS,A,Net (Surplus) / Deficit of Trading Operations,B & Q ,Building Materials,Revenue,160690,2713,25/09/2014,4.98,Nil,Lumber/Building Materials Stores,GPC,Not yet available,
Wakefield MDC,E08000036,30/09/2014,BUSINESS,A,Net (Surplus) / Deficit of Trading Operations,B & Q ,Building Materials,Revenue,160690,2880,25/09/2014,3.78,Nil,Lumber/Building Materials Stores,GPC,Not yet available,
Wakefield MDC,E08000036,30/09/2014,BUSINESS,A,Net (Surplus) / Deficit of Trading Operations,BIG DUG LIMITED,Building Materials,Revenue,160661,2871,16/07/2014,"1,085.95",Nil,Industrial Supplies - Not Elsewhere Classified,GPC,Not yet available,
Wakefield MDC,E08000036,30/09/2014,BUSINESS,A,Net (Surplus) / Deficit of Trading Operations,BIG DUG LIMITED ,Building Materials,Revenue,160686,617,09/09/2014,944.95,Nil,Direct Marketing - Catalog Merchant,GPC,Not yet available,
Wakefield MDC,E08000036,30/09/2014,BUSINESS,A,Net (Surplus) / Deficit of Trading Operations,BMB BUILDBASE ,Building Materials,Revenue,160681,181,20/08/2014,46.16,Nil,Lumber/Building Materials Stores,GPC,Not yet available,
Wakefield MDC,E08000036,30/09/2014,BUSINESS,A,Net (Surplus) / Deficit of Trading Operations,BMB BUILDBASE ,Building Materials,Revenue,160689,5005,22/09/2014,22.31,Nil,Lumber/Building Materials Stores,GPC,Not yet available,
Wakefield MDC,E08000036,30/09/2014,BUSINESS,A,Net (Surplus) / Deficit of Trading Operations,BMB BUILDBASE ,Building Materials,Revenue,160664,2061,22/07/2014,62.32,Nil,Lumber/Building Materials Stores,GPC,Not yet available,
Wakefield MDC,E08000036,30/09/2014,BUSINESS,A,Net (Surplus) / Deficit of Trading Operations,BMB BUILDBASE ,Building Materials,Revenue,160681,183,20/08/2014,2.50,Nil,Lumber/Building Materials Stores,GPC,Not yet available,
Wakefield MDC,E08000036,30/09/2014,BUSINESS,A,Net (Surplus) / Deficit of Trading Operations,BMB BUILDBASE ,Building Materials,Revenue,160661,713,16/07/2014,35.43,Nil,Lumber/Building Materials Stores,GPC,Not yet available,
Wakefield MDC,E08000036,30/09/2014,BUSINESS,A,Net (Surplus) / Deficit of Trading Operations,BMB BUILDBASE ,Building Materials,Revenue,160661,715,16/07/2014,22.17,Nil,Lumber/Building Materials Stores,GPC,Not yet available,
Wakefield MDC,E08000036,30/09/2014,BUSINESS,A,Net (Surplus) / Deficit of Trading Operations,BMB BUILDBASE ,Building Materials,Revenue,160681,6,20/08/2014,61.21,Nil,Lumber/Building Materials Stores,GPC,Not yet available,
Wakefield MDC,E08000036,30/09/2014,BUSINESS,A,Net (Surplus) / Deficit of Trading Operations,BMB BUILDBASE ,Building Materials,Revenue,160681,2,20/08/2014,13.00,Nil,Lumber/Building Materials Stores,GPC,Not yet available,
Wakefield MDC,E08000036,30/09/2014,BUSINESS,A,Net (Surplus) / Deficit of Trading Operations,BMB BUILDBASE ,Building Materials,Revenue,160681,,20/08/2014,17.36,Nil,Lumber/Building Materials Stores,GPC,Not yet available,
Wakefield MDC,E08000036,30/09/2014,BUSINESS,A,Net (Surplus) / Deficit of Trading Operations,BMB BUILDBASE ,Building Materials,Revenue,160682,,22/08/2014,44.82,Nil,Lumber/Building Materials Stores,GPC,Not yet available,
Wakefield MDC,E08000036,30/09/2014,BUSINESS,A,Net (Surplus) / Deficit of Trading Operations,BMB BUILDBASE ,Building Materials,Revenue,160686,208,09/09/2014,17.40,Nil,Lumber/Building Materials Stores,GPC,Not yet available,
Wakefield MDC,E08000036,30/09/2014,BUSINESS,A,Net (Surplus) / Deficit of Trading Operations,BMB BUILDBASE ,Building Materials,Revenue,160694,2,02/10/2014,36.00,Nil,Lumber/Building Materials Stores,GPC,Not yet available,
Wakefield MDC,E08000036,30/09/2014,BUSINESS,A,Net (Surplus) / Deficit of Trading Operations,BMB BUILDBASE ,Building Materials,Revenue,160681,10,20/08/2014,61.40,Nil,Lumber/Building Materials Stores,GPC,Not yet available,
Wakefield MDC,E08000036,30/09/2014,BUSINESS,A,Net (Surplus) / Deficit of Trading Operations,BMB BUILDBASE ,Building Materials,Revenue,160681,8,20/08/2014,7.95,Nil,Lumber/Building Materials Stores,GPC,Not yet available,
Wakefield MDC,E08000036,30/09/2014,BUSINESS,A,Net (Surplus) / Deficit of Trading Operations,BMB BUILDBASE ,Building Materials,Revenue,160676,48,11/08/2014,10.95,Nil,Lumber/Building Materials Stores,GPC,Not yet available,
Wakefield MDC,E08000036,30/09/2014,BUSINESS,A,Net (Surplus) / Deficit of Trading Operations,BRISTOL BATH ,Building Materials,Revenue,160661,3215,16/07/2014,-282.90,Nil,Antique Stores - Sales/Repairs/Restoration Services,GPC,Not yet available,
Wakefield MDC,E08000036,30/09/2014,BUSINESS,A,Net (Surplus) / Deficit of Trading Operations,BSS PTS WAKEFIELD ,Building Materials,Revenue,160672,271,05/08/2014,44.78,Nil,Lumber/Building Materials Stores,GPC,Not yet available,
Wakefield MDC,E08000036,30/09/2014,BUSINESS,A,Net (Surplus) / Deficit of Trading Operations,BSS PTS WAKEFIELD ,Building Materials,Revenue,160694,1931,02/10/2014,0.84,Nil,Lumber/Building Materials Stores,GPC,Not yet available,
Wakefield MDC,E08000036,30/09/2014,BUSINESS,A,Net (Surplus) / Deficit of Trading Operations,BSS PTS WAKEFIELD ,Building Materials,Revenue,160694,1933,02/10/2014,6.71,Nil,Lumber/Building Materials Stores,GPC,Not yet available,
Wakefield MDC,E08000036,30/09/2014,BUSINESS,A,Net (Surplus) / Deficit of Trading Operations,BSS PTS WAKEFIELD ,Building Materials,Revenue,160694,1929,02/10/2014,0.73,Nil,Lumber/Building Materials Stores,GPC,Not yet available,
Wakefield MDC,E08000036,30/09/2014,BUSINESS,A,Net (Surplus) / Deficit of Trading Operations,BSS PTS WAKEFIELD ,Building Materials,Revenue,160660,5326,11/07/2014,239.97,Nil,Lumber/Building Materials Stores,GPC,Not yet available,
Wakefield MDC,E08000036,30/09/2014,BUSINESS,A,Net (Surplus) / Deficit of Trading Operations,BUILDBASE ,Building Materials,Revenue,160664,1073,22/07/2014,107.55,Nil,Lumber/Building Materials Stores,GPC,Not yet available,
Wakefield MDC,E08000036,30/09/2014,BUSINESS,A,Net (Surplus) / Deficit of Trading Operations,BUILDBASE ,Building Materials,Revenue,160665,1941,24/07/2014,51.78,Nil,Lumber/Building Materials Stores,GPC,Not yet available,
Wakefield MDC,E08000036,30/09/2014,BUSINESS,A,Net (Surplus) / Deficit of Trading Operations,BUILDING PLASTICS DIRECT,Building Materials,Revenue,160689,119,22/09/2014,35.00,Nil,Lumber/Building Materials Stores,GPC,Not yet available,
Wakefield MDC,E08000036,30/09/2014,BUSINESS,A,Net (Surplus) / Deficit of Trading Operations,CHEMI CLEAN,Building Materials,Revenue,160681,458,20/08/2014,127.49,Nil,Clean/Maint/Janitoral Services,GPC,Not yet available,
Wakefield MDC,E08000036,30/09/2014,BUSINESS,A,Net (Surplus) / Deficit of Trading Operations,DOOR FURNITURE DIRECT   ,Building Materials,Revenue,160661,3208,16/07/2014,58.25,Nil,Hardware Stores,GPC,Not yet available,
Wakefield MDC,E08000036,30/09/2014,BUSINESS,A,Net (Surplus) / Deficit of Trading Operations,DOOR FURNITURE DIRECT   ,Building Materials,Revenue,160661,3210,16/07/2014,162.91,Nil,Hardware Stores,GPC,Not yet available,
Wakefield MDC,E08000036,30/09/2014,BUSINESS,A,Net (Surplus) / Deficit of Trading Operations,DOOR FURNITURE DIRECT   ,Building Materials,Revenue,160661,4333,16/07/2014,11.58,Nil,Hardware Stores,GPC,Not yet available,
Wakefield MDC,E08000036,30/09/2014,BUSINESS,A,Net (Surplus) / Deficit of Trading Operations,DOOR FURNITURE DIRECT   ,Building Materials,Revenue,160689,804,22/09/2014,716.76,Nil,Hardware Stores,GPC,Not yet available,
Wakefield MDC,E08000036,30/09/2014,BUSINESS,A,Net (Surplus) / Deficit of Trading Operations,DOOR FURNITURE DIRECT   ,Building Materials,Revenue,160661,5521,16/07/2014,23.30,Nil,Hardware Stores,GPC,Not yet available,
Wakefield MDC,E08000036,30/09/2014,BUSINESS,A,Net (Surplus) / Deficit of Trading Operations,DOOR FURNITURE DIRECT   ,Building Materials,Revenue,160661,5513,16/07/2014,23.30,Nil,Hardware Stores,GPC,Not yet available,
Wakefield MDC,E08000036,30/09/2014,BUSINESS,A,Net (Surplus) / Deficit of Trading Operations,DRAIN CENTER,Building Materials,Revenue,160667,52,29/07/2014,33.33,Nil,Heating/Plumbing/Air-Con Contractors,GPC,Not yet available,
Wakefield MDC,E08000036,30/09/2014,BUSINESS,A,Net (Surplus) / Deficit of Trading Operations,DRAIN CENTER,Building Materials,Revenue,160667,32,29/07/2014,2.48,Nil,Heating/Plumbing/Air-Con Contractors,GPC,Not yet available,
Wakefield MDC,E08000036,30/09/2014,BUSINESS,A,Net (Surplus) / Deficit of Trading Operations,DRAIN CENTER,Building Materials,Revenue,160667,26,29/07/2014,11.99,Nil,Heating/Plumbing/Air-Con Contractors,GPC,Not yet available,
Wakefield MDC,E08000036,30/09/2014,BUSINESS,A,Net (Surplus) / Deficit of Trading Operations,DRAIN CENTER,Building Materials,Revenue,160667,28,29/07/2014,2.81,Nil,Heating/Plumbing/Air-Con Contractors,GPC,Not yet available,
Wakefield MDC,E08000036,30/09/2014,BUSINESS,A,Net (Surplus) / Deficit of Trading Operations,DRAIN CENTER,Building Materials,Revenue,160667,50,29/07/2014,33.33,Nil,Heating/Plumbing/Air-Con Contractors,GPC,Not yet available,
Wakefield MDC,E08000036,30/09/2014,BUSINESS,A,Net (Surplus) / Deficit of Trading Operations,DRAIN CENTER,Building Materials,Revenue,160689,74,22/09/2014,6.93,Nil,Heating/Plumbing/Air-Con Contractors,GPC,Not yet available,
Wakefield MDC,E08000036,30/09/2014,BUSINESS,A,Net (Surplus) / Deficit of Trading Operations,DRAIN CENTER,Building Materials,Revenue,160667,22,29/07/2014,5.97,Nil,Heating/Plumbing/Air-Con Contractors,GPC,Not yet available,
Wakefield MDC,E08000036,30/09/2014,BUSINESS,A,Net (Surplus) / Deficit of Trading Operations,DRAIN CENTER,Building Materials,Revenue,160667,24,29/07/2014,2.56,Nil,Heating/Plumbing/Air-Con Contractors,GPC,Not yet available,
Wakefield MDC,E08000036,30/09/2014,BUSINESS,A,Net (Surplus) / Deficit of Trading Operations,DRAIN CENTER,Building Materials,Revenue,160689,76,22/09/2014,50.28,Nil,Heating/Plumbing/Air-Con Contractors,GPC,Not yet available,
Wakefield MDC,E08000036,30/09/2014,BUSINESS,A,Net (Surplus) / Deficit of Trading Operations,DRAIN CENTER,Building Materials,Revenue,160667,36,29/07/2014,3.79,Nil,Heating/Plumbing/Air-Con Contractors,GPC,Not yet available,
Wakefield MDC,E08000036,30/09/2014,BUSINESS,A,Net (Surplus) / Deficit of Trading Operations,DRAIN CENTER,Building Materials,Revenue,160667,20,29/07/2014,2.21,Nil,Heating/Plumbing/Air-Con Contractors,GPC,Not yet available,
Wakefield MDC,E08000036,30/09/2014,BUSINESS,A,Net (Surplus) / Deficit of Trading Operations,DRAIN CENTER,Building Materials,Revenue,160667,14,29/07/2014,12.48,Nil,Heating/Plumbing/Air-Con Contractors,GPC,Not yet available,
Wakefield MDC,E08000036,30/09/2014,BUSINESS,A,Net (Surplus) / Deficit of Trading Operations,DRAIN CENTER,Building Materials,Revenue,160667,10,29/07/2014,13.28,Nil,Heating/Plumbing/Air-Con Contractors,GPC,Not yet available,
Wakefield MDC,E08000036,30/09/2014,BUSINESS,A,Net (Surplus) / Deficit of Trading Operations,DRAIN CENTER,Building Materials,Revenue,160667,34,29/07/2014,2.21,Nil,Heating/Plumbing/Air-Con Contractors,GPC,Not yet available,
Wakefield MDC,E08000036,30/09/2014,BUSINESS,A,Net (Surplus) / Deficit of Trading Operations,DRAIN CENTER,Building Materials,Revenue,160667,12,29/07/2014,9.59,Nil,Heating/Plumbing/Air-Con Contractors,GPC,Not yet available,
Wakefield MDC,E08000036,30/09/2014,BUSINESS,A,Net (Surplus) / Deficit of Trading Operations,DRAIN CENTER,Building Materials,Revenue,160667,42,29/07/2014,31.11,Nil,Heating/Plumbing/Air-Con Contractors,GPC,Not yet available,
Wakefield MDC,E08000036,30/09/2014,BUSINESS,A,Net (Surplus) / Deficit of Trading Operations,DRAIN CENTER,Building Materials,Revenue,160667,40,29/07/2014,2.71,Nil,Heating/Plumbing/Air-Con Contractors,GPC,Not yet available,
Wakefield MDC,E08000036,30/09/2014,BUSINESS,A,Net (Surplus) / Deficit of Trading Operations,DRAIN CENTER,Building Materials,Revenue,160667,46,29/07/2014,31.90,Nil,Heating/Plumbing/Air-Con Contractors,GPC,Not yet available,
Wakefield MDC,E08000036,30/09/2014,BUSINESS,A,Net (Surplus) / Deficit of Trading Operations,DRAIN CENTER,Building Materials,Revenue,160667,48,29/07/2014,7.29,Nil,Heating/Plumbing/Air-Con Contractors,GPC,Not yet available,
Wakefield MDC,E08000036,30/09/2014,BUSINESS,A,Net (Surplus) / Deficit of Trading Operations,DRAIN CENTER,Building Materials,Revenue,160667,18,29/07/2014,17.39,Nil,Heating/Plumbing/Air-Con Contractors,GPC,Not yet available,
Wakefield MDC,E08000036,30/09/2014,BUSINESS,A,Net (Surplus) / Deficit of Trading Operations,DRAIN CENTER,Building Materials,Revenue,160689,58,22/09/2014,6.93,Nil,Heating/Plumbing/Air-Con Contractors,GPC,Not yet available,
Wakefield MDC,E08000036,30/09/2014,BUSINESS,A,Net (Surplus) / Deficit of Trading Operations,DRAIN CENTER,Building Materials,Revenue,160667,16,29/07/2014,6.67,Nil,Heating/Plumbing/Air-Con Contractors,GPC,Not yet available,
Wakefield MDC,E08000036,30/09/2014,BUSINESS,A,Net (Surplus) / Deficit of Trading Operations,DRAIN CENTER,Building Materials,Revenue,160667,38,29/07/2014,14.84,Nil,Heating/Plumbing/Air-Con Contractors,GPC,Not yet available,
Wakefield MDC,E08000036,30/09/2014,BUSINESS,A,Net (Surplus) / Deficit of Trading Operations,DRAIN CENTER,Building Materials,Revenue,160667,8,29/07/2014,29.11,Nil,Heating/Plumbing/Air-Con Contractors,GPC,Not yet available,
Wakefield MDC,E08000036,30/09/2014,BUSINESS,A,Net (Surplus) / Deficit of Trading Operations,DRAIN CENTER,Building Materials,Revenue,160667,44,29/07/2014,73.26,Nil,Heating/Plumbing/Air-Con Contractors,GPC,Not yet available,
Wakefield MDC,E08000036,30/09/2014,BUSINESS,A,Net (Surplus) / Deficit of Trading Operations,DRAIN CENTER,Building Materials,Revenue,160689,93,22/09/2014,13.86,Nil,Heating/Plumbing/Air-Con Contractors,GPC,Not yet available,
Wakefield MDC,E08000036,30/09/2014,BUSINESS,A,Net (Surplus) / Deficit of Trading Operations,DRAIN CENTER,Building Materials,Revenue,160667,30,29/07/2014,2.56,Nil,Heating/Plumbing/Air-Con Contractors,GPC,Not yet available,
Wakefield MDC,E08000036,30/09/2014,BUSINESS,A,Net (Surplus) / Deficit of Trading Operations,DRAIN CENTER ,Building Materials,Revenue,160683,150,27/08/2014,91.43,Nil,Heating/Plumbing/Air-Con Contractors,GPC,Not yet available,
Wakefield MDC,E08000036,30/09/2014,BUSINESS,A,Net (Surplus) / Deficit of Trading Operations,DULUX DECORATOR CENTRE,Building Materials,Revenue,160660,3721,11/07/2014,80.07,Nil,Paints/Varnishes/Supplies,GPC,Not yet available,
Wakefield MDC,E08000036,30/09/2014,BUSINESS,A,Net (Surplus) / Deficit of Trading Operations,DULUX DECORATOR CENTRE ,Building Materials,Revenue,160661,5334,16/07/2014,10.49,Nil,Paints/Varnishes/Supplies,GPC,Not yet available,
Wakefield MDC,E08000036,30/09/2014,BUSINESS,A,Net (Surplus) / Deficit of Trading Operations,EDEN SHOP,Building Materials,Revenue,160690,1409,25/09/2014,82.78,Nil,Industrial Supplies - Not Elsewhere Classified,GPC,Not yet available,
Wakefield MDC,E08000036,30/09/2014,BUSINESS,A,Net (Surplus) / Deficit of Trading Operations,EDMUNDSON ELECTRICAL,Building Materials,Revenue,160689,696,22/09/2014,23.80,Nil,Electrical Parts/Equipment,GPC,Not yet available,
Wakefield MDC,E08000036,30/09/2014,BUSINESS,A,Net (Surplus) / Deficit of Trading Operations,EUROCELL ,Building Materials,Revenue,160689,2165,22/09/2014,29.62,Nil,Lumber/Building Materials Stores,GPC,Not yet available,
Wakefield MDC,E08000036,30/09/2014,BUSINESS,A,Net (Surplus) / Deficit of Trading Operations,GRAHAM ,Building Materials,Revenue,160689,4094,22/09/2014,11.06,Nil,Lumber/Building Materials Stores,GPC,Not yet available,
Wakefield MDC,E08000036,30/09/2014,BUSINESS,A,Net (Surplus) / Deficit of Trading Operations,GRAHAM ,Building Materials,Revenue,160689,4089,22/09/2014,40.14,Nil,Lumber/Building Materials Stores,GPC,Not yet available,
Wakefield MDC,E08000036,30/09/2014,BUSINESS,A,Net (Surplus) / Deficit of Trading Operations,GRAHAM  ,Building Materials,Revenue,160692,2841,30/09/2014,5.53,Nil,Lumber/Building Materials Stores,GPC,Not yet available,
Wakefield MDC,E08000036,30/09/2014,BUSINESS,A,Net (Surplus) / Deficit of Trading Operations,GRAHAM  ,Building Materials,Revenue,160672,269,05/08/2014,20.20,Nil,Lumber/Building Materials Stores,GPC,Not yet available,
Wakefield MDC,E08000036,30/09/2014,BUSINESS,A,Net (Surplus) / Deficit of Trading Operations,GRAHAM  ,Building Materials,Revenue,160692,2836,30/09/2014,20.07,Nil,Lumber/Building Materials Stores,GPC,Not yet available,
Wakefield MDC,E08000036,30/09/2014,BUSINESS,A,Net (Surplus) / Deficit of Trading Operations,GRAHAM  ,Building Materials,Revenue,160692,2843,30/09/2014,7.09,Nil,Lumber/Building Materials Stores,GPC,Not yet available,
Wakefield MDC,E08000036,30/09/2014,BUSINESS,A,Net (Surplus) / Deficit of Trading Operations,GS SMIRTHWAITE LTD ,Building Materials,Revenue,160674,127,07/08/2014,"2,564.00",Nil,Direct Marketing - Continuity/Subscription Merchant,GPC,Not yet available,
Wakefield MDC,E08000036,30/09/2014,BUSINESS,A,Net (Surplus) / Deficit of Trading Operations,HEALEY AND LORD,Building Materials,Revenue,160661,2509,16/07/2014,459.99,Nil,Lumber/Building Materials Stores,GPC,Not yet available,
Wakefield MDC,E08000036,30/09/2014,BUSINESS,A,Net (Surplus) / Deficit of Trading Operations,HOWARTH TMBR,Building Materials,Revenue,160687,161,10/09/2014,284.83,Nil,Lumber/Building Materials Stores,GPC,Not yet available,
Wakefield MDC,E08000036,30/09/2014,BUSINESS,A,Net (Surplus) / Deficit of Trading Operations,HOWARTH TMBR,Building Materials,Revenue,160687,159,10/09/2014,284.83,Nil,Lumber/Building Materials Stores,GPC,Not yet available,
Wakefield MDC,E08000036,30/09/2014,BUSINESS,A,Net (Surplus) / Deficit of Trading Operations,HOWARTH TMBR,Building Materials,Revenue,160687,157,10/09/2014,284.83,Nil,Lumber/Building Materials Stores,GPC,Not yet available,
Wakefield MDC,E08000036,30/09/2014,BUSINESS,A,Net (Surplus) / Deficit of Trading Operations,HOWARTH TMBR,Building Materials,Revenue,160660,6145,11/07/2014,13.50,Nil,Lumber/Building Materials Stores,GPC,Not yet available,
Wakefield MDC,E08000036,30/09/2014,BUSINESS,A,Net (Surplus) / Deficit of Trading Operations,HOWARTH TMBR,Building Materials,Revenue,160660,6143,11/07/2014,13.50,Nil,Lumber/Building Materials Stores,GPC,Not yet available,
Wakefield MDC,E08000036,30/09/2014,BUSINESS,A,Net (Surplus) / Deficit of Trading Operations,HOWARTH TMBR,Building Materials,Revenue,160663,10,18/07/2014,219.06,Nil,Lumber/Building Materials Stores,GPC,Not yet available,
Wakefield MDC,E08000036,30/09/2014,BUSINESS,A,Net (Surplus) / Deficit of Trading Operations,HOWARTH TMBR,Building Materials,Revenue,160689,102,22/09/2014,304.32,Nil,Lumber/Building Materials Stores,GPC,Not yet available,
Wakefield MDC,E08000036,30/09/2014,BUSINESS,A,Net (Surplus) / Deficit of Trading Operations,HOWARTH TMBR,Building Materials,Revenue,160660,2561,11/07/2014,147.40,Nil,Lumber/Building Materials Stores,GPC,Not yet available,
Wakefield MDC,E08000036,30/09/2014,BUSINESS,A,Net (Surplus) / Deficit of Trading Operations,HOWARTH TMBR,Building Materials,Revenue,160664,2512,22/07/2014,52.52,Nil,Lumber/Building Materials Stores,GPC,Not yet available,
Wakefield MDC,E08000036,30/09/2014,BUSINESS,A,Net (Surplus) / Deficit of Trading Operations,HOWARTH TMBR,Building Materials,Revenue,160666,2,25/07/2014,178.32,Nil,Lumber/Building Materials Stores,GPC,Not yet available,
Wakefield MDC,E08000036,30/09/2014,BUSINESS,A,Net (Surplus) / Deficit of Trading Operations,HOWARTH TMBR,Building Materials,Revenue,160689,4256,22/09/2014,65.52,Nil,Lumber/Building Materials Stores,GPC,Not yet available,
Wakefield MDC,E08000036,30/09/2014,BUSINESS,A,Net (Surplus) / Deficit of Trading Operations,HOWARTH TMBR ,Building Materials,Revenue,160660,2,11/07/2014,13.50,Nil,Lumber/Building Materials Stores,GPC,Not yet available,
Wakefield MDC,E08000036,30/09/2014,BUSINESS,A,Net (Surplus) / Deficit of Trading Operations,HOWARTH TMBR ,Building Materials,Revenue,160673,,06/08/2014,15.45,Nil,Lumber/Building Materials Stores,GPC,Not yet available,
Wakefield MDC,E08000036,30/09/2014,BUSINESS,A,Net (Surplus) / Deficit of Trading Operations,HOWARTH TMBR ,Building Materials,Revenue,160683,2,27/08/2014,263.42,Nil,Lumber/Building Materials Stores,GPC,Not yet available,
Wakefield MDC,E08000036,30/09/2014,BUSINESS,A,Net (Surplus) / Deficit of Trading Operations,HOWARTH TMBR ,Building Materials,Revenue,160689,221,22/09/2014,26.75,Nil,Lumber/Building Materials Stores,GPC,Not yet available,
Wakefield MDC,E08000036,30/09/2014,BUSINESS,A,Net (Surplus) / Deficit of Trading Operations,HOWARTH TMBR ,Building Materials,Revenue,160663,12,18/07/2014,187.20,Nil,Lumber/Building Materials Stores,GPC,Not yet available,
Wakefield MDC,E08000036,30/09/2014,BUSINESS,A,Net (Surplus) / Deficit of Trading Operations,HOWARTH TMBR ,Building Materials,Revenue,160689,121,22/09/2014,126.08,Nil,Lumber/Building Materials Stores,GPC,Not yet available,
Wakefield MDC,E08000036,30/09/2014,BUSINESS,A,Net (Surplus) / Deficit of Trading Operations,HOWARTH TMBR ,Building Materials,Revenue,160663,14,18/07/2014,150.87,Nil,Lumber/Building Materials Stores,GPC,Not yet available,
Wakefield MDC,E08000036,30/09/2014,BUSINESS,A,Net (Surplus) / Deficit of Trading Operations,HOWARTH TMBR ,Building Materials,Revenue,160686,212,09/09/2014,17.75,Nil,Lumber/Building Materials Stores,GPC,Not yet available,
Wakefield MDC,E08000036,30/09/2014,BUSINESS,A,Net (Surplus) / Deficit of Trading Operations,HOWARTH TMBR ,Building Materials,Revenue,160664,2556,22/07/2014,118.60,Nil,Lumber/Building Materials Stores,GPC,Not yet available,
Wakefield MDC,E08000036,30/09/2014,BUSINESS,A,Net (Surplus) / Deficit of Trading Operations,HOWARTH TMBR ,Building Materials,Revenue,160691,116,29/09/2014,61.50,Nil,Lumber/Building Materials Stores,GPC,Not yet available,
Wakefield MDC,E08000036,30/09/2014,BUSINESS,A,Net (Surplus) / Deficit of Trading Operations,HOWARTH TMBR ,Building Materials,Revenue,160661,1945,16/07/2014,34.30,Nil,Lumber/Building Materials Stores,GPC,Not yet available,
Wakefield MDC,E08000036,30/09/2014,BUSINESS,A,Net (Surplus) / Deficit of Trading Operations,HOWARTH TMBR ,Building Materials,Revenue,160681,12,20/08/2014,72.25,Nil,Lumber/Building Materials Stores,GPC,Not yet available,
Wakefield MDC,E08000036,30/09/2014,BUSINESS,A,Net (Surplus) / Deficit of Trading Operations,HOWARTH TMBR ,Building Materials,Revenue,160667,506,29/07/2014,25.74,Nil,Lumber/Building Materials Stores,GPC,Not yet available,
Wakefield MDC,E08000036,30/09/2014,BUSINESS,A,Net (Surplus) / Deficit of Trading Operations,HOWARTH TMBR ,Building Materials,Revenue,160672,328,05/08/2014,44.30,Nil,Lumber/Building Materials Stores,GPC,Not yet available,
Wakefield MDC,E08000036,30/09/2014,BUSINESS,A,Net (Surplus) / Deficit of Trading Operations,HOWARTH TMBR ,Building Materials,Revenue,160664,1071,22/07/2014,49.14,Nil,Lumber/Building Materials Stores,GPC,Not yet available,
Wakefield MDC,E08000036,30/09/2014,BUSINESS,A,Net (Surplus) / Deficit of Trading Operations,HOWARTH TMBR ,Building Materials,Revenue,160669,85,31/07/2014,61.80,Nil,Lumber/Building Materials Stores,GPC,Not yet available,
Wakefield MDC,E08000036,30/09/2014,BUSINESS,A,Net (Surplus) / Deficit of Trading Operations,HOWARTH TMBR ,Building Materials,Revenue,160660,3723,11/07/2014,80.18,Nil,Lumber/Building Materials Stores,GPC,Not yet available,
Wakefield MDC,E08000036,30/09/2014,BUSINESS,A,Net (Surplus) / Deficit of Trading Operations,HOWARTH TMBR ,Building Materials,Revenue,160689,1529,22/09/2014,13.73,Nil,Lumber/Building Materials Stores,GPC,Not yet available,
Wakefield MDC,E08000036,30/09/2014,BUSINESS,A,Net (Surplus) / Deficit of Trading Operations,HOWARTH TMBR ,Building Materials,Revenue,160690,1357,25/09/2014,41.37,Nil,Lumber/Building Materials Stores,GPC,Not yet available,
Wakefield MDC,E08000036,30/09/2014,BUSINESS,A,Net (Surplus) / Deficit of Trading Operations,HOWARTH TMBR ,Building Materials,Revenue,160668,199,30/07/2014,25.62,Nil,Lumber/Building Materials Stores,GPC,Not yet available,
Wakefield MDC,E08000036,30/09/2014,BUSINESS,A,Net (Surplus) / Deficit of Trading Operations,HOWARTH TMBR ,Building Materials,Revenue,160689,1531,22/09/2014,32.88,Nil,Lumber/Building Materials Stores,GPC,Not yet available,
Wakefield MDC,E08000036,30/09/2014,BUSINESS,A,Net (Surplus) / Deficit of Trading Operations,HOWDEN JOINERY ,Building Materials,Revenue,160689,20,22/09/2014,24.40,Nil,Construction Materials - Not Elsewhere Classified,GPC,Not yet available,
Wakefield MDC,E08000036,30/09/2014,BUSINESS,A,Net (Surplus) / Deficit of Trading Operations,HOWDEN JOINERY ,Building Materials,Revenue,160689,183,22/09/2014,48.80,Nil,Construction Materials - Not Elsewhere Classified,GPC,Not yet available,
Wakefield MDC,E08000036,30/09/2014,BUSINESS,A,Net (Surplus) / Deficit of Trading Operations,HOWDEN JOINERY ,Building Materials,Revenue,160660,5310,11/07/2014,40.50,Nil,Construction Materials - Not Elsewhere Classified,GPC,Not yet available,
Wakefield MDC,E08000036,30/09/2014,BUSINESS,A,Net (Surplus) / Deficit of Trading Operations,HOWDEN JOINERY ,Building Materials,Revenue,160660,6672,11/07/2014,95.10,Nil,Construction Materials - Not Elsewhere Classified,GPC,Not yet available,
Wakefield MDC,E08000036,30/09/2014,BUSINESS,A,Net (Surplus) / Deficit of Trading Operations,HOWDEN JOINERY ,Building Materials,Revenue,160660,6709,11/07/2014,39.04,Nil,Construction Materials - Not Elsewhere Classified,GPC,Not yet available,
Wakefield MDC,E08000036,30/09/2014,BUSINESS,A,Net (Surplus) / Deficit of Trading Operations,HOWDEN JOINERY ,Building Materials,Revenue,160689,39,22/09/2014,16.80,Nil,Construction Materials - Not Elsewhere Classified,GPC,Not yet available,
Wakefield MDC,E08000036,30/09/2014,BUSINESS,A,Net (Surplus) / Deficit of Trading Operations,HOWDEN JOINERY ,Building Materials,Revenue,160660,6385,11/07/2014,132.90,Nil,Construction Materials - Not Elsewhere Classified,GPC,Not yet available,
Wakefield MDC,E08000036,30/09/2014,BUSINESS,A,Net (Surplus) / Deficit of Trading Operations,HOWDEN JOINERY ,Building Materials,Revenue,160660,1949,11/07/2014,4.72,Nil,Construction Materials - Not Elsewhere Classified,GPC,Not yet available,
Wakefield MDC,E08000036,30/09/2014,BUSINESS,A,Net (Surplus) / Deficit of Trading Operations,HOWDEN JOINERY ,Building Materials,Revenue,160660,6383,11/07/2014,132.90,Nil,Construction Materials - Not Elsewhere Classified,GPC,Not yet available,
Wakefield MDC,E08000036,30/09/2014,BUSINESS,A,Net (Surplus) / Deficit of Trading Operations,HOWDEN JOINERY ,Building Materials,Revenue,160689,22,22/09/2014,24.40,Nil,Construction Materials - Not Elsewhere Classified,GPC,Not yet available,
Wakefield MDC,E08000036,30/09/2014,BUSINESS,A,Net (Surplus) / Deficit of Trading Operations,HOWDEN JOINERY ,Building Materials,Revenue,160660,6707,11/07/2014,18.00,Nil,Construction Materials - Not Elsewhere Classified,GPC,Not yet available,
Wakefield MDC,E08000036,30/09/2014,BUSINESS,A,Net (Surplus) / Deficit of Trading Operations,HOWDEN JOINERY ,Building Materials,Revenue,160689,56,22/09/2014,85.50,Nil,Construction Materials - Not Elsewhere Classified,GPC,Not yet available,
Wakefield MDC,E08000036,30/09/2014,BUSINESS,A,Net (Surplus) / Deficit of Trading Operations,HOWDEN JOINERY ,Building Materials,Revenue,160685,985,01/09/2014,25.50,Nil,Construction Materials - Not Elsewhere Classified,GPC,Not yet available,
Wakefield MDC,E08000036,30/09/2014,BUSINESS,A,Net (Surplus) / Deficit of Trading Operations,HOWDEN JOINERY ,Building Materials,Revenue,160685,943,01/09/2014,60.00,Nil,Construction Materials - Not Elsewhere Classified,GPC,Not yet available,
Wakefield MDC,E08000036,30/09/2014,BUSINESS,A,Net (Surplus) / Deficit of Trading Operations,HOWDEN JOINERY ,Building Materials,Revenue,160686,591,09/09/2014,6.88,Nil,Construction Materials - Not Elsewhere Classified,GPC,Not yet available,
Wakefield MDC,E08000036,30/09/2014,BUSINESS,A,Net (Surplus) / Deficit of Trading Operations,HOWDEN JOINERY ,Building Materials,Revenue,160686,590,09/09/2014,5.10,Nil,Construction Materials - Not Elsewhere Classified,GPC,Not yet available,
Wakefield MDC,E08000036,30/09/2014,BUSINESS,A,Net (Surplus) / Deficit of Trading Operations,HOWDEN JOINERY ,Building Materials,Revenue,160685,983,01/09/2014,127.50,Nil,Construction Materials - Not Elsewhere Classified,GPC,Not yet available,
Wakefield MDC,E08000036,30/09/2014,BUSINESS,A,Net (Surplus) / Deficit of Trading Operations,HOWDEN JOINERY ,Building Materials,Revenue,160685,971,01/09/2014,218.70,Nil,Construction Materials - Not Elsewhere Classified,GPC,Not yet available,
Wakefield MDC,E08000036,30/09/2014,BUSINESS,A,Net (Surplus) / Deficit of Trading Operations,HOWDEN JOINERY ,Building Materials,Revenue,160686,668,09/09/2014,92.00,Nil,Construction Materials - Not Elsewhere Classified,GPC,Not yet available,
Wakefield MDC,E08000036,30/09/2014,BUSINESS,A,Net (Surplus) / Deficit of Trading Operations,HOWDEN JOINERY ,Building Materials,Revenue,160685,1007,01/09/2014,144.10,Nil,Construction Materials - Not Elsewhere Classified,GPC,Not yet available,
Wakefield MDC,E08000036,30/09/2014,BUSINESS,A,Net (Surplus) / Deficit of Trading Operations,HOWDEN JOINERY ,Building Materials,Revenue,160689,417,22/09/2014,50.85,Nil,Construction Materials - Not Elsewhere Classified,GPC,Not yet available,
Wakefield MDC,E08000036,30/09/2014,BUSINESS,A,Net (Surplus) / Deficit of Trading Operations,HOWDEN JOINERY ,Building Materials,Revenue,160685,987,01/09/2014,103.20,Nil,Construction Materials - Not Elsewhere Classified,GPC,Not yet available,
Wakefield MDC,E08000036,30/09/2014,BUSINESS,A,Net (Surplus) / Deficit of Trading Operations,HOWDEN JOINERY ,Building Materials,Revenue,160686,652,09/09/2014,219.00,Nil,Construction Materials - Not Elsewhere Classified,GPC,Not yet available,
Wakefield MDC,E08000036,30/09/2014,BUSINESS,A,Net (Surplus) / Deficit of Trading Operations,HOWDEN JOINERY ,Building Materials,Revenue,160686,593,09/09/2014,205.20,Nil,Construction Materials - Not Elsewhere Classified,GPC,Not yet available,
Wakefield MDC,E08000036,30/09/2014,BUSINESS,A,Net (Surplus) / Deficit of Trading Operations,HOWDEN JOINERY ,Building Materials,Revenue,160686,646,09/09/2014,65.00,Nil,Construction Materials - Not Elsewhere Classified,GPC,Not yet available,
Wakefield MDC,E08000036,30/09/2014,BUSINESS,A,Net (Surplus) / Deficit of Trading Operations,HOWDEN JOINERY ,Building Materials,Revenue,160685,951,01/09/2014,46.00,Nil,Construction Materials - Not Elsewhere Classified,GPC,Not yet available,
Wakefield MDC,E08000036,30/09/2014,BUSINESS,A,Net (Surplus) / Deficit of Trading Operations,HOWDEN JOINERY ,Building Materials,Revenue,160685,945,01/09/2014,57.60,Nil,Construction Materials - Not Elsewhere Classified,GPC,Not yet available,
Wakefield MDC,E08000036,30/09/2014,BUSINESS,A,Net (Surplus) / Deficit of Trading Operations,HOWDEN JOINERY ,Building Materials,Revenue,160685,965,01/09/2014,410.40,Nil,Construction Materials - Not Elsewhere Classified,GPC,Not yet available,
Wakefield MDC,E08000036,30/09/2014,BUSINESS,A,Net (Surplus) / Deficit of Trading Operations,HOWDEN JOINERY ,Building Materials,Revenue,160685,963,01/09/2014,211.80,Nil,Construction Materials - Not Elsewhere Classified,GPC,Not yet available,
Wakefield MDC,E08000036,30/09/2014,BUSINESS,A,Net (Surplus) / Deficit of Trading Operations,HOWDEN JOINERY ,Building Materials,Revenue,160686,648,09/09/2014,41.00,Nil,Construction Materials - Not Elsewhere Classified,GPC,Not yet available,
Wakefield MDC,E08000036,30/09/2014,BUSINESS,A,Net (Surplus) / Deficit of Trading Operations,HOWDEN JOINERY ,Building Materials,Revenue,160686,706,09/09/2014,76.80,Nil,Construction Materials - Not Elsewhere Classified,GPC,Not yet available,
Wakefield MDC,E08000036,30/09/2014,BUSINESS,A,Net (Surplus) / Deficit of Trading Operations,HOWDEN JOINERY ,Building Materials,Revenue,160686,629,09/09/2014,85.50,Nil,Construction Materials - Not Elsewhere Classified,GPC,Not yet available,
Wakefield MDC,E08000036,30/09/2014,BUSINESS,A,Net (Surplus) / Deficit of Trading Operations,HOWDEN JOINERY ,Building Materials,Revenue,160686,595,09/09/2014,86.10,Nil,Construction Materials - Not Elsewhere Classified,GPC,Not yet available,
Wakefield MDC,E08000036,30/09/2014,BUSINESS,A,Net (Surplus) / Deficit of Trading Operations,HOWDEN JOINERY ,Building Materials,Revenue,160689,3807,22/09/2014,19.20,Nil,Construction Materials - Not Elsewhere Classified,GPC,Not yet available,
Wakefield MDC,E08000036,30/09/2014,BUSINESS,A,Net (Surplus) / Deficit of Trading Operations,HOWDEN JOINERY ,Building Materials,Revenue,160686,627,09/09/2014,11.61,Nil,Construction Materials - Not Elsewhere Classified,GPC,Not yet available,
Wakefield MDC,E08000036,30/09/2014,BUSINESS,A,Net (Surplus) / Deficit of Trading Operations,HOWDEN JOINERY ,Building Materials,Revenue,160685,999,01/09/2014,175.20,Nil,Construction Materials - Not Elsewhere Classified,GPC,Not yet available,
Wakefield MDC,E08000036,30/09/2014,BUSINESS,A,Net (Surplus) / Deficit of Trading Operations,HOWDEN JOINERY ,Building Materials,Revenue,160689,440,22/09/2014,18.00,Nil,Construction Materials - Not Elsewhere Classified,GPC,Not yet available,
Wakefield MDC,E08000036,30/09/2014,BUSINESS,A,Net (Surplus) / Deficit of Trading Operations,HOWDEN JOINERY ,Building Materials,Revenue,160685,997,01/09/2014,62.10,Nil,Construction Materials - Not Elsewhere Classified,GPC,Not yet available,
Wakefield MDC,E08000036,30/09/2014,BUSINESS,A,Net (Surplus) / Deficit of Trading Operations,HOWDEN JOINERY ,Building Materials,Revenue,160689,3878,22/09/2014,175.20,Nil,Construction Materials - Not Elsewhere Classified,GPC,Not yet available,
Wakefield MDC,E08000036,30/09/2014,BUSINESS,A,Net (Surplus) / Deficit of Trading Operations,HOWDEN JOINERY ,Building Materials,Revenue,160689,3910,22/09/2014,81.00,Nil,Construction Materials - Not Elsewhere Classified,GPC,Not yet available,
Wakefield MDC,E08000036,30/09/2014,BUSINESS,A,Net (Surplus) / Deficit of Trading Operations,HOWDEN JOINERY ,Building Materials,Revenue,160685,955,01/09/2014,51.60,Nil,Construction Materials - Not Elsewhere Classified,GPC,Not yet available,
Wakefield MDC,E08000036,30/09/2014,BUSINESS,A,Net (Surplus) / Deficit of Trading Operations,HOWDEN JOINERY ,Building Materials,Revenue,160685,977,01/09/2014,107.10,Nil,Construction Materials - Not Elsewhere Classified,GPC,Not yet available,
Wakefield MDC,E08000036,30/09/2014,BUSINESS,A,Net (Surplus) / Deficit of Trading Operations,HOWDEN JOINERY ,Building Materials,Revenue,160686,603,09/09/2014,688.20,Nil,Construction Materials - Not Elsewhere Classified,GPC,Not yet available,
Wakefield MDC,E08000036,30/09/2014,BUSINESS,A,Net (Surplus) / Deficit of Trading Operations,HOWDEN JOINERY ,Building Materials,Revenue,160685,957,01/09/2014,6.88,Nil,Construction Materials - Not Elsewhere Classified,GPC,Not yet available,
Wakefield MDC,E08000036,30/09/2014,BUSINESS,A,Net (Surplus) / Deficit of Trading Operations,HOWDEN JOINERY ,Building Materials,Revenue,160685,953,01/09/2014,57.60,Nil,Construction Materials - Not Elsewhere Classified,GPC,Not yet available,
Wakefield MDC,E08000036,30/09/2014,BUSINESS,A,Net (Surplus) / Deficit of Trading Operations,HOWDEN JOINERY ,Building Materials,Revenue,160686,557,09/09/2014,14.40,Nil,Construction Materials - Not Elsewhere Classified,GPC,Not yet available,
Wakefield MDC,E08000036,30/09/2014,BUSINESS,A,Net (Surplus) / Deficit of Trading Operations,HOWDEN JOINERY ,Building Materials,Revenue,160686,601,09/09/2014,240.60,Nil,Construction Materials - Not Elsewhere Classified,GPC,Not yet available,
Wakefield MDC,E08000036,30/09/2014,BUSINESS,A,Net (Surplus) / Deficit of Trading Operations,HOWDEN JOINERY ,Building Materials,Revenue,160686,599,09/09/2014,22.95,Nil,Construction Materials - Not Elsewhere Classified,GPC,Not yet available,
Wakefield MDC,E08000036,30/09/2014,BUSINESS,A,Net (Surplus) / Deficit of Trading Operations,HOWDEN JOINERY ,Building Materials,Revenue,160685,961,01/09/2014,393.90,Nil,Construction Materials - Not Elsewhere Classified,GPC,Not yet available,
Wakefield MDC,E08000036,30/09/2014,BUSINESS,A,Net (Surplus) / Deficit of Trading Operations,HOWDEN JOINERY ,Building Materials,Revenue,160685,959,01/09/2014,96.80,Nil,Construction Materials - Not Elsewhere Classified,GPC,Not yet available,
Wakefield MDC,E08000036,30/09/2014,BUSINESS,A,Net (Surplus) / Deficit of Trading Operations,HOWDEN JOINERY ,Building Materials,Revenue,160686,554,09/09/2014,47.10,Nil,Construction Materials - Not Elsewhere Classified,GPC,Not yet available,
Wakefield MDC,E08000036,30/09/2014,BUSINESS,A,Net (Surplus) / Deficit of Trading Operations,HOWDEN JOINERY ,Building Materials,Revenue,160686,597,09/09/2014,76.50,Nil,Construction Materials - Not Elsewhere Classified,GPC,Not yet available,
Wakefield MDC,E08000036,30/09/2014,BUSINESS,A,Net (Surplus) / Deficit of Trading Operations,HOWDEN JOINERY ,Building Materials,Revenue,160686,660,09/09/2014,58.50,Nil,Construction Materials - Not Elsewhere Classified,GPC,Not yet available,
Wakefield MDC,E08000036,30/09/2014,BUSINESS,A,Net (Surplus) / Deficit of Trading Operations,HOWDEN JOINERY ,Building Materials,Revenue,160686,658,09/09/2014,62.10,Nil,Construction Materials - Not Elsewhere Classified,GPC,Not yet available,
Wakefield MDC,E08000036,30/09/2014,BUSINESS,A,Net (Surplus) / Deficit of Trading Operations,HOWDEN JOINERY ,Building Materials,Revenue,160683,519,27/08/2014,52.40,Nil,Construction Materials - Not Elsewhere Classified,GPC,Not yet available,
Wakefield MDC,E08000036,30/09/2014,BUSINESS,A,Net (Surplus) / Deficit of Trading Operations,HOWDEN JOINERY ,Building Materials,Revenue,160683,517,27/08/2014,19.20,Nil,Construction Materials - Not Elsewhere Classified,GPC,Not yet available,
Wakefield MDC,E08000036,30/09/2014,BUSINESS,A,Net (Surplus) / Deficit of Trading Operations,HOWDEN JOINERY ,Building Materials,Revenue,160686,609,09/09/2014,107.10,Nil,Construction Materials - Not Elsewhere Classified,GPC,Not yet available,
Wakefield MDC,E08000036,30/09/2014,BUSINESS,A,Net (Surplus) / Deficit of Trading Operations,HOWDEN JOINERY ,Building Materials,Revenue,160685,1003,01/09/2014,50.70,Nil,Construction Materials - Not Elsewhere Classified,GPC,Not yet available,
Wakefield MDC,E08000036,30/09/2014,BUSINESS,A,Net (Surplus) / Deficit of Trading Operations,HOWDEN JOINERY ,Building Materials,Revenue,160685,991,01/09/2014,87.60,Nil,Construction Materials - Not Elsewhere Classified,GPC,Not yet available,
Wakefield MDC,E08000036,30/09/2014,BUSINESS,A,Net (Surplus) / Deficit of Trading Operations,HOWDEN JOINERY ,Building Materials,Revenue,160685,995,01/09/2014,50.70,Nil,Construction Materials - Not Elsewhere Classified,GPC,Not yet available,
Wakefield MDC,E08000036,30/09/2014,BUSINESS,A,Net (Surplus) / Deficit of Trading Operations,HOWDEN JOINERY ,Building Materials,Revenue,160686,654,09/09/2014,9.30,Nil,Construction Materials - Not Elsewhere Classified,GPC,Not yet available,
Wakefield MDC,E08000036,30/09/2014,BUSINESS,A,Net (Surplus) / Deficit of Trading Operations,HOWDEN JOINERY ,Building Materials,Revenue,160686,656,09/09/2014,92.70,Nil,Construction Materials - Not Elsewhere Classified,GPC,Not yet available,
Wakefield MDC,E08000036,30/09/2014,BUSINESS,A,Net (Surplus) / Deficit of Trading Operations,HOWDEN JOINERY ,Building Materials,Revenue,160683,515,27/08/2014,102.20,Nil,Construction Materials - Not Elsewhere Classified,GPC,Not yet available,
Wakefield MDC,E08000036,30/09/2014,BUSINESS,A,Net (Surplus) / Deficit of Trading Operations,HOWDEN JOINERY ,Building Materials,Revenue,160685,1005,01/09/2014,108.00,Nil,Construction Materials - Not Elsewhere Classified,GPC,Not yet available,
Wakefield MDC,E08000036,30/09/2014,BUSINESS,A,Net (Surplus) / Deficit of Trading Operations,HOWDEN JOINERY ,Building Materials,Revenue,160685,993,01/09/2014,87.60,Nil,Construction Materials - Not Elsewhere Classified,GPC,Not yet available,
Wakefield MDC,E08000036,30/09/2014,BUSINESS,A,Net (Surplus) / Deficit of Trading Operations,HOWDEN JOINERY ,Building Materials,Revenue,160686,607,09/09/2014,8.01,Nil,Construction Materials - Not Elsewhere Classified,GPC,Not yet available,
Wakefield MDC,E08000036,30/09/2014,BUSINESS,A,Net (Surplus) / Deficit of Trading Operations,HOWDEN JOINERY ,Building Materials,Revenue,160689,3805,22/09/2014,78.60,Nil,Construction Materials - Not Elsewhere Classified,GPC,Not yet available,
Wakefield MDC,E08000036,30/09/2014,BUSINESS,A,Net (Surplus) / Deficit of Trading Operations,HOWDEN JOINERY ,Building Materials,Revenue,160686,666,09/09/2014,104.80,Nil,Construction Materials - Not Elsewhere Classified,GPC,Not yet available,
Wakefield MDC,E08000036,30/09/2014,BUSINESS,A,Net (Surplus) / Deficit of Trading Operations,HOWDEN JOINERY ,Building Materials,Revenue,160686,588,09/09/2014,145.80,Nil,Construction Materials - Not Elsewhere Classified,GPC,Not yet available,
Wakefield MDC,E08000036,30/09/2014,BUSINESS,A,Net (Surplus) / Deficit of Trading Operations,HOWDEN JOINERY ,Building Materials,Revenue,160685,967,01/09/2014,172.20,Nil,Construction Materials - Not Elsewhere Classified,GPC,Not yet available,
Wakefield MDC,E08000036,30/09/2014,BUSINESS,A,Net (Surplus) / Deficit of Trading Operations,HOWDEN JOINERY ,Building Materials,Revenue,160685,981,01/09/2014,65.00,Nil,Construction Materials - Not Elsewhere Classified,GPC,Not yet available,
Wakefield MDC,E08000036,30/09/2014,BUSINESS,A,Net (Surplus) / Deficit of Trading Operations,HOWDEN JOINERY ,Building Materials,Revenue,160685,979,01/09/2014,15.48,Nil,Construction Materials - Not Elsewhere Classified,GPC,Not yet available,
Wakefield MDC,E08000036,30/09/2014,BUSINESS,A,Net (Surplus) / Deficit of Trading Operations,HOWDEN JOINERY ,Building Materials,Revenue,160686,662,09/09/2014,128.40,Nil,Construction Materials - Not Elsewhere Classified,GPC,Not yet available,
Wakefield MDC,E08000036,30/09/2014,BUSINESS,A,Net (Surplus) / Deficit of Trading Operations,HOWDEN JOINERY ,Building Materials,Revenue,160686,605,09/09/2014,55.35,Nil,Construction Materials - Not Elsewhere Classified,GPC,Not yet available,
Wakefield MDC,E08000036,30/09/2014,BUSINESS,A,Net (Surplus) / Deficit of Trading Operations,HOWDEN JOINERY ,Building Materials,Revenue,160685,973,01/09/2014,10.20,Nil,Construction Materials - Not Elsewhere Classified,GPC,Not yet available,
Wakefield MDC,E08000036,30/09/2014,BUSINESS,A,Net (Surplus) / Deficit of Trading Operations,HOWDEN JOINERY ,Building Materials,Revenue,160685,969,01/09/2014,18.60,Nil,Construction Materials - Not Elsewhere Classified,GPC,Not yet available,
Wakefield MDC,E08000036,30/09/2014,BUSINESS,A,Net (Surplus) / Deficit of Trading Operations,HOWDEN JOINERY ,Building Materials,Revenue,160685,1001,01/09/2014,83.40,Nil,Construction Materials - Not Elsewhere Classified,GPC,Not yet available,
Wakefield MDC,E08000036,30/09/2014,BUSINESS,A,Net (Surplus) / Deficit of Trading Operations,HOWDEN JOINERY ,Building Materials,Revenue,160685,989,01/09/2014,117.00,Nil,Construction Materials - Not Elsewhere Classified,GPC,Not yet available,
Wakefield MDC,E08000036,30/09/2014,BUSINESS,A,Net (Surplus) / Deficit of Trading Operations,HOWDEN JOINERY ,Building Materials,Revenue,160685,975,01/09/2014,16.02,Nil,Construction Materials - Not Elsewhere Classified,GPC,Not yet available,
Wakefield MDC,E08000036,30/09/2014,BUSINESS,A,Net (Surplus) / Deficit of Trading Operations,HOWDEN JOINERY ,Building Materials,Revenue,160686,650,09/09/2014,175.20,Nil,Construction Materials - Not Elsewhere Classified,GPC,Not yet available,
Wakefield MDC,E08000036,30/09/2014,BUSINESS,A,Net (Surplus) / Deficit of Trading Operations,HOWDEN JOINERY ,Building Materials,Revenue,160689,2478,22/09/2014,120.40,Nil,Construction Materials - Not Elsewhere Classified,GPC,Not yet available,
Wakefield MDC,E08000036,30/09/2014,BUSINESS,A,Net (Surplus) / Deficit of Trading Operations,HOWDEN JOINERY ,Building Materials,Revenue,160689,2167,22/09/2014,36.00,Nil,Construction Materials - Not Elsewhere Classified,GPC,Not yet available,
Wakefield MDC,E08000036,30/09/2014,BUSINESS,A,Net (Surplus) / Deficit of Trading Operations,HOWDEN JOINERY ,Building Materials,Revenue,160660,6779,11/07/2014,449.40,Nil,Construction Materials - Not Elsewhere Classified,GPC,Not yet available,
Wakefield MDC,E08000036,30/09/2014,BUSINESS,A,Net (Surplus) / Deficit of Trading Operations,HOWDEN JOINERY ,Building Materials,Revenue,160660,6829,11/07/2014,52.40,Nil,Construction Materials - Not Elsewhere Classified,GPC,Not yet available,
Wakefield MDC,E08000036,30/09/2014,BUSINESS,A,Net (Surplus) / Deficit of Trading Operations,HOWDEN JOINERY ,Building Materials,Revenue,160660,6867,11/07/2014,46.00,Nil,Construction Materials - Not Elsewhere Classified,GPC,Not yet available,
Wakefield MDC,E08000036,30/09/2014,BUSINESS,A,Net (Surplus) / Deficit of Trading Operations,HOWDEN JOINERY ,Building Materials,Revenue,160660,2527,11/07/2014,218.70,Nil,Construction Materials - Not Elsewhere Classified,GPC,Not yet available,
Wakefield MDC,E08000036,30/09/2014,BUSINESS,A,Net (Surplus) / Deficit of Trading Operations,HOWDEN JOINERY ,Building Materials,Revenue,160660,6827,11/07/2014,33.60,Nil,Construction Materials - Not Elsewhere Classified,GPC,Not yet available,
Wakefield MDC,E08000036,30/09/2014,BUSINESS,A,Net (Surplus) / Deficit of Trading Operations,HOWDEN JOINERY ,Building Materials,Revenue,160660,6823,11/07/2014,102.20,Nil,Construction Materials - Not Elsewhere Classified,GPC,Not yet available,
Wakefield MDC,E08000036,30/09/2014,BUSINESS,A,Net (Surplus) / Deficit of Trading Operations,HOWDEN JOINERY ,Building Materials,Revenue,160660,6825,11/07/2014,72.45,Nil,Construction Materials - Not Elsewhere Classified,GPC,Not yet available,
Wakefield MDC,E08000036,30/09/2014,BUSINESS,A,Net (Surplus) / Deficit of Trading Operations,HOWDEN JOINERY ,Building Materials,Revenue,160660,2529,11/07/2014,11.61,Nil,Construction Materials - Not Elsewhere Classified,GPC,Not yet available,
Wakefield MDC,E08000036,30/09/2014,BUSINESS,A,Net (Surplus) / Deficit of Trading Operations,HOWDEN JOINERY ,Building Materials,Revenue,160691,3469,29/09/2014,3.67,Nil,Construction Materials - Not Elsewhere Classified,GPC,Not yet available,
Wakefield MDC,E08000036,30/09/2014,BUSINESS,A,Net (Surplus) / Deficit of Trading Operations,HOWDEN JOINERY ,Building Materials,Revenue,160691,2957,29/09/2014,6.05,Nil,Construction Materials - Not Elsewhere Classified,GPC,Not yet available,
Wakefield MDC,E08000036,30/09/2014,BUSINESS,A,Net (Surplus) / Deficit of Trading Operations,HSS TOOL HIRE,Building Materials,Revenue,160689,771,22/09/2014,103.25,Nil,Equip/Tool/Furn/Appliance Rental/Leasing,GPC,Not yet available,
Wakefield MDC,E08000036,30/09/2014,BUSINESS,A,Net (Surplus) / Deficit of Trading Operations,HSS TOOL HIRE,Building Materials,Revenue,160689,2924,22/09/2014,103.25,Nil,Equip/Tool/Furn/Appliance Rental/Leasing,GPC,Not yet available,
Wakefield MDC,E08000036,30/09/2014,BUSINESS,A,Net (Surplus) / Deficit of Trading Operations,IRONMONGERY DIRECT,Building Materials,Revenue,160661,3413,16/07/2014,15.90,Nil,Glass/Paint/Wallpaper Store,GPC,Not yet available,
Wakefield MDC,E08000036,30/09/2014,BUSINESS,A,Net (Surplus) / Deficit of Trading Operations,IRONMONGERY DIRECT,Building Materials,Revenue,160690,1395,25/09/2014,122.50,Nil,Glass/Paint/Wallpaper Store,GPC,Not yet available,
Wakefield MDC,E08000036,30/09/2014,BUSINESS,A,Net (Surplus) / Deficit of Trading Operations,IRONMONGERY DIRECT,Building Materials,Revenue,160681,462,20/08/2014,48.00,Nil,Glass/Paint/Wallpaper Store,GPC,Not yet available,
Wakefield MDC,E08000036,30/09/2014,BUSINESS,A,Net (Surplus) / Deficit of Trading Operations,IRONMONGERY DIRECT,Building Materials,Revenue,160668,231,30/07/2014,25.43,Nil,Glass/Paint/Wallpaper Store,GPC,Not yet available,
Wakefield MDC,E08000036,30/09/2014,BUSINESS,A,Net (Surplus) / Deficit of Trading Operations,IRONMONGERY DIRECT,Building Materials,Revenue,160674,131,07/08/2014,48.00,Nil,Glass/Paint/Wallpaper Store,GPC,Not yet available,
Wakefield MDC,E08000036,30/09/2014,BUSINESS,A,Net (Surplus) / Deficit of Trading Operations,IRONMONGERY DIRECT,Building Materials,Revenue,160661,3216,16/07/2014,96.90,Nil,Glass/Paint/Wallpaper Store,GPC,Not yet available,
Wakefield MDC,E08000036,30/09/2014,BUSINESS,A,Net (Surplus) / Deficit of Trading Operations,IRONMONGERY DIRECT,Building Materials,Revenue,160691,2042,29/09/2014,79.00,Nil,Glass/Paint/Wallpaper Store,GPC,Not yet available,
Wakefield MDC,E08000036,30/09/2014,BUSINESS,A,Net (Surplus) / Deficit of Trading Operations,IRONMONGERY DIRECT,Building Materials,Revenue,160683,521,27/08/2014,238.30,Nil,Glass/Paint/Wallpaper Store,GPC,Not yet available,
Wakefield MDC,E08000036,30/09/2014,BUSINESS,A,Net (Surplus) / Deficit of Trading Operations,IRONMONGERY DIRECT,Building Materials,Revenue,160660,4582,11/07/2014,14.85,Nil,Glass/Paint/Wallpaper Store,GPC,Not yet available,
Wakefield MDC,E08000036,30/09/2014,BUSINESS,A,Net (Surplus) / Deficit of Trading Operations,JAMES BURRELL LTD ,Building Materials,Revenue,160660,6366,11/07/2014,64.62,Nil,Lumber/Building Materials Stores,GPC,Not yet available,
Wakefield MDC,E08000036,30/09/2014,BUSINESS,A,Net (Surplus) / Deficit of Trading Operations,KITCHEN APPLIANCE ,Building Materials,Revenue,160661,2310,16/07/2014,19.96,Nil,Household Appliance Stores,GPC,Not yet available,
Wakefield MDC,E08000036,30/09/2014,BUSINESS,A,Net (Surplus) / Deficit of Trading Operations,LAB CENTRAL,Building Materials,Revenue,160689,223,22/09/2014,155.24,Nil,Medical/Dental/Ophthalmic/Hospital Equipment & Supplies,GPC,Not yet available,
Wakefield MDC,E08000036,30/09/2014,BUSINESS,A,Net (Surplus) / Deficit of Trading Operations,MATHEWSON & ROSEMOND LTD,Building Materials,Revenue,160686,1900,09/09/2014,4.53,Nil,Heating/Plumbing/Air-Con Contractors,GPC,Not yet available,
Wakefield MDC,E08000036,30/09/2014,BUSINESS,A,Net (Surplus) / Deficit of Trading Operations,MEYER TIMBER LTD ,Building Materials,Revenue,160689,3764,22/09/2014,472.50,Nil,Lumber/Building Materials Stores,GPC,Not yet available,
Wakefield MDC,E08000036,30/09/2014,BUSINESS,A,Net (Surplus) / Deficit of Trading Operations,MEYER TIMBER LTD ,Building Materials,Revenue,160689,3912,22/09/2014,393.75,Nil,Lumber/Building Materials Stores,GPC,Not yet available,
Wakefield MDC,E08000036,30/09/2014,BUSINESS,A,Net (Surplus) / Deficit of Trading Operations,MEYER TIMBER LTD ,Building Materials,Revenue,160686,644,09/09/2014,755.00,Nil,Lumber/Building Materials Stores,GPC,Not yet available,
Wakefield MDC,E08000036,30/09/2014,BUSINESS,A,Net (Surplus) / Deficit of Trading Operations,MEYER TIMBER LTD ,Building Materials,Revenue,160664,4643,22/07/2014,178.75,Nil,Lumber/Building Materials Stores,GPC,Not yet available,
Wakefield MDC,E08000036,30/09/2014,BUSINESS,A,Net (Surplus) / Deficit of Trading Operations,MEYER TIMBER LTD ,Building Materials,Revenue,160664,1219,22/07/2014,135.20,Nil,Lumber/Building Materials Stores,GPC,Not yet available,
Wakefield MDC,E08000036,30/09/2014,BUSINESS,A,Net (Surplus) / Deficit of Trading Operations,MEYER TIMBER LTD ,Building Materials,Revenue,160661,2912,16/07/2014,218.00,Nil,Lumber/Building Materials Stores,GPC,Not yet available,
Wakefield MDC,E08000036,30/09/2014,BUSINESS,A,Net (Surplus) / Deficit of Trading Operations,MEYER TIMBER LTD ,Building Materials,Revenue,160685,1009,01/09/2014,630.00,Nil,Lumber/Building Materials Stores,GPC,Not yet available,
Wakefield MDC,E08000036,30/09/2014,BUSINESS,A,Net (Surplus) / Deficit of Trading Operations,MEYER TIMBER LTD ,Building Materials,Revenue,160681,460,20/08/2014,155.60,Nil,Lumber/Building Materials Stores,GPC,Not yet available,
Wakefield MDC,E08000036,30/09/2014,BUSINESS,A,Net (Surplus) / Deficit of Trading Operations,NOEL KEGG,Building Materials,Revenue,160689,3831,22/09/2014,133.29,Nil,Hardware Stores,GPC,Not yet available,
Wakefield MDC,E08000036,30/09/2014,BUSINESS,A,Net (Surplus) / Deficit of Trading Operations,PLUMB CENTER,Building Materials,Revenue,160686,615,09/09/2014,15.00,Nil,Heating/Plumbing/Air-Con Contractors,GPC,Not yet available,
Wakefield MDC,E08000036,30/09/2014,BUSINESS,A,Net (Surplus) / Deficit of Trading Operations,PLUMB CENTER,Building Materials,Revenue,160686,613,09/09/2014,129.07,Nil,Heating/Plumbing/Air-Con Contractors,GPC,Not yet available,
Wakefield MDC,E08000036,30/09/2014,BUSINESS,A,Net (Surplus) / Deficit of Trading Operations,PLUMB CENTER,Building Materials,Revenue,160689,4087,22/09/2014,3.15,Nil,Heating/Plumbing/Air-Con Contractors,GPC,Not yet available,
Wakefield MDC,E08000036,30/09/2014,BUSINESS,A,Net (Surplus) / Deficit of Trading Operations,PLUMB CENTER,Building Materials,Revenue,160689,4083,22/09/2014,2.12,Nil,Heating/Plumbing/Air-Con Contractors,GPC,Not yet available,
Wakefield MDC,E08000036,30/09/2014,BUSINESS,A,Net (Surplus) / Deficit of Trading Operations,PLUMB CENTER,Building Materials,Revenue,160689,4085,22/09/2014,23.07,Nil,Heating/Plumbing/Air-Con Contractors,GPC,Not yet available,
Wakefield MDC,E08000036,30/09/2014,BUSINESS,A,Net (Surplus) / Deficit of Trading Operations,PLUMB CENTER ,Building Materials,Revenue,160660,6733,11/07/2014,129.07,Nil,Heating/Plumbing/Air-Con Contractors,GPC,Not yet available,
Wakefield MDC,E08000036,30/09/2014,BUSINESS,A,Net (Surplus) / Deficit of Trading Operations,PLUMB CENTER ,Building Materials,Revenue,160660,6777,11/07/2014,15.00,Nil,Heating/Plumbing/Air-Con Contractors,GPC,Not yet available,
Wakefield MDC,E08000036,30/09/2014,BUSINESS,A,Net (Surplus) / Deficit of Trading Operations,POLYSTAR PLASTICS,Building Materials,Revenue,160666,1692,25/07/2014,61.54,Nil,Misc General Merchandise,GPC,Not yet available,
Wakefield MDC,E08000036,30/09/2014,BUSINESS,A,Net (Surplus) / Deficit of Trading Operations,POLYSTAR PLASTICS,Building Materials,Revenue,160666,1694,25/07/2014,30.77,Nil,Misc General Merchandise,GPC,Not yet available,
Wakefield MDC,E08000036,30/09/2014,BUSINESS,A,Net (Surplus) / Deficit of Trading Operations,SCREWFIX,Building Materials,Revenue,160660,1355,11/07/2014,4.16,Nil,Lumber/Building Materials Stores,GPC,Not yet available,
Wakefield MDC,E08000036,30/09/2014,BUSINESS,A,Net (Surplus) / Deficit of Trading Operations,SCREWFIX,Building Materials,Revenue,160689,4048,22/09/2014,6.14,Nil,Lumber/Building Materials Stores,GPC,Not yet available,
Wakefield MDC,E08000036,30/09/2014,BUSINESS,A,Net (Surplus) / Deficit of Trading Operations,SCREWFIX,Building Materials,Revenue,160690,2882,25/09/2014,4.12,Nil,Lumber/Building Materials Stores,GPC,Not yet available,
Wakefield MDC,E08000036,30/09/2014,BUSINESS,A,Net (Surplus) / Deficit of Trading Operations,SCREWFIX,Building Materials,Revenue,160689,3732,22/09/2014,4.06,Nil,Lumber/Building Materials Stores,GPC,Not yet available,
Wakefield MDC,E08000036,30/09/2014,BUSINESS,A,Net (Surplus) / Deficit of Trading Operations,SCREWFIX,Building Materials,Revenue,160680,106,18/08/2014,12.49,Nil,Lumber/Building Materials Stores,GPC,Not yet available,
Wakefield MDC,E08000036,30/09/2014,BUSINESS,A,Net (Surplus) / Deficit of Trading Operations,SCREWFIX,Building Materials,Revenue,160664,2471,22/07/2014,9.16,Nil,Lumber/Building Materials Stores,GPC,Not yet available,
Wakefield MDC,E08000036,30/09/2014,BUSINESS,A,Net (Surplus) / Deficit of Trading Operations,SCREWFIX,Building Materials,Revenue,160694,10,02/10/2014,15.81,Nil,Lumber/Building Materials Stores,GPC,Not yet available,
Wakefield MDC,E08000036,30/09/2014,BUSINESS,A,Net (Surplus) / Deficit of Trading Operations,SCREWFIX,Building Materials,Revenue,160660,6731,11/07/2014,12.49,Nil,Lumber/Building Materials Stores,GPC,Not yet available,
Wakefield MDC,E08000036,30/09/2014,BUSINESS,A,Net (Surplus) / Deficit of Trading Operations,SCREWFIX,Building Materials,Revenue,160681,263,20/08/2014,4.16,Nil,Lumber/Building Materials Stores,GPC,Not yet available,
Wakefield MDC,E08000036,30/09/2014,BUSINESS,A,Net (Surplus) / Deficit of Trading Operations,SCREWFIX,Building Materials,Revenue,160686,419,09/09/2014,16.30,Nil,Lumber/Building Materials Stores,GPC,Not yet available,
Wakefield MDC,E08000036,30/09/2014,BUSINESS,A,Net (Surplus) / Deficit of Trading Operations,SCREWFIX,Building Materials,Revenue,160672,267,05/08/2014,5.82,Nil,Lumber/Building Materials Stores,GPC,Not yet available,
Wakefield MDC,E08000036,30/09/2014,BUSINESS,A,Net (Surplus) / Deficit of Trading Operations,SCREWFIX,Building Materials,Revenue,160663,794,18/07/2014,11.91,Nil,Lumber/Building Materials Stores,GPC,Not yet available,
Wakefield MDC,E08000036,30/09/2014,BUSINESS,A,Net (Surplus) / Deficit of Trading Operations,SCREWFIX,Building Materials,Revenue,160683,152,27/08/2014,13.72,Nil,Lumber/Building Materials Stores,GPC,Not yet available,
Wakefield MDC,E08000036,30/09/2014,BUSINESS,A,Net (Surplus) / Deficit of Trading Operations,SCREWFIX,Building Materials,Revenue,160667,406,29/07/2014,8.97,Nil,Lumber/Building Materials Stores,GPC,Not yet available,
Wakefield MDC,E08000036,30/09/2014,BUSINESS,A,Net (Surplus) / Deficit of Trading Operations,SCREWFIX,Building Materials,Revenue,160666,1440,25/07/2014,9.32,Nil,Lumber/Building Materials Stores,GPC,Not yet available,
Wakefield MDC,E08000036,30/09/2014,BUSINESS,A,Net (Surplus) / Deficit of Trading Operations,SCREWFIX,Building Materials,Revenue,160669,78,31/07/2014,12.97,Nil,Lumber/Building Materials Stores,GPC,Not yet available,
Wakefield MDC,E08000036,30/09/2014,BUSINESS,A,Net (Surplus) / Deficit of Trading Operations,SCREWFIX,Building Materials,Revenue,160668,175,30/07/2014,3.77,Nil,Lumber/Building Materials Stores,GPC,Not yet available,
Wakefield MDC,E08000036,30/09/2014,BUSINESS,A,Net (Surplus) / Deficit of Trading Operations,SCREWFIX,Building Materials,Revenue,160689,4305,22/09/2014,12.15,Nil,Lumber/Building Materials Stores,GPC,Not yet available,
Wakefield MDC,E08000036,30/09/2014,BUSINESS,A,Net (Surplus) / Deficit of Trading Operations,SCREWFIX ,Building Materials,Revenue,160694,6,02/10/2014,39.14,Nil,Lumber/Building Materials Stores,GPC,Not yet available,
Wakefield MDC,E08000036,30/09/2014,BUSINESS,A,Net (Surplus) / Deficit of Trading Operations,SIG,Building Materials,Revenue,160670,80,01/08/2014,97.50,Nil,Industrial Supplies - Not Elsewhere Classified,GPC,Not yet available,
Wakefield MDC,E08000036,30/09/2014,BUSINESS,A,Net (Surplus) / Deficit of Trading Operations,SIG,Building Materials,Revenue,160674,137,07/08/2014,552.50,Nil,Industrial Supplies - Not Elsewhere Classified,GPC,Not yet available,
Wakefield MDC,E08000036,30/09/2014,BUSINESS,A,Net (Surplus) / Deficit of Trading Operations,SIG,Building Materials,Revenue,160674,135,07/08/2014,"2,391.20",Nil,Industrial Supplies - Not Elsewhere Classified,GPC,Not yet available,
Wakefield MDC,E08000036,30/09/2014,BUSINESS,A,Net (Surplus) / Deficit of Trading Operations,SIG,Building Materials,Revenue,160681,448,20/08/2014,439.20,Nil,Industrial Supplies - Not Elsewhere Classified,GPC,Not yet available,
Wakefield MDC,E08000036,30/09/2014,BUSINESS,A,Net (Surplus) / Deficit of Trading Operations,SIG,Building Materials,Revenue,160661,2308,16/07/2014,"3,378.32",Nil,Industrial Supplies - Not Elsewhere Classified,GPC,Not yet available,
Wakefield MDC,E08000036,30/09/2014,BUSINESS,A,Net (Surplus) / Deficit of Trading Operations,SIG,Building Materials,Revenue,160664,222,22/07/2014,95.04,Nil,Industrial Supplies - Not Elsewhere Classified,GPC,Not yet available,
Wakefield MDC,E08000036,30/09/2014,BUSINESS,A,Net (Surplus) / Deficit of Trading Operations,SIG,Building Materials,Revenue,160661,2914,16/07/2014,829.12,Nil,Industrial Supplies - Not Elsewhere Classified,GPC,Not yet available,
Wakefield MDC,E08000036,30/09/2014,BUSINESS,A,Net (Surplus) / Deficit of Trading Operations,SIG,Building Materials,Revenue,160664,211,22/07/2014,126.72,Nil,Industrial Supplies - Not Elsewhere Classified,GPC,Not yet available,
Wakefield MDC,E08000036,30/09/2014,BUSINESS,A,Net (Surplus) / Deficit of Trading Operations,SIG,Building Materials,Revenue,160661,3075,16/07/2014,"3,978.75",Nil,Industrial Supplies - Not Elsewhere Classified,GPC,Not yet available,
Wakefield MDC,E08000036,30/09/2014,BUSINESS,A,Net (Surplus) / Deficit of Trading Operations,SIG,Building Materials,Revenue,160666,1690,25/07/2014,754.47,Nil,Industrial Supplies - Not Elsewhere Classified,GPC,Not yet available,
Wakefield MDC,E08000036,30/09/2014,BUSINESS,A,Net (Surplus) / Deficit of Trading Operations,SIG,Building Materials,Revenue,160683,525,27/08/2014,"3,731.60",Nil,Industrial Supplies - Not Elsewhere Classified,GPC,Not yet available,
Wakefield MDC,E08000036,30/09/2014,BUSINESS,A,Net (Surplus) / Deficit of Trading Operations,SIG ,Building Materials,Revenue,160666,,25/07/2014,"1,224.40",Nil,Industrial Supplies - Not Elsewhere Classified,GPC,Not yet available,
Wakefield MDC,E08000036,30/09/2014,BUSINESS,A,Net (Surplus) / Deficit of Trading Operations,SIG ,Building Materials,Revenue,160660,1139,11/07/2014,944.12,Nil,Industrial Supplies - Not Elsewhere Classified,GPC,Not yet available,
Wakefield MDC,E08000036,30/09/2014,BUSINESS,A,Net (Surplus) / Deficit of Trading Operations,SIG ,Building Materials,Revenue,160660,4031,11/07/2014,988.92,Nil,Industrial Supplies - Not Elsewhere Classified,GPC,Not yet available,
Wakefield MDC,E08000036,30/09/2014,BUSINESS,A,Net (Surplus) / Deficit of Trading Operations,SIG ,Building Materials,Revenue,160660,6288,11/07/2014,988.92,Nil,Industrial Supplies - Not Elsewhere Classified,GPC,Not yet available,
Wakefield MDC,E08000036,30/09/2014,BUSINESS,A,Net (Surplus) / Deficit of Trading Operations,SIG ,Building Materials,Revenue,160660,1141,11/07/2014,944.12,Nil,Industrial Supplies - Not Elsewhere Classified,GPC,Not yet available,
Wakefield MDC,E08000036,30/09/2014,BUSINESS,A,Net (Surplus) / Deficit of Trading Operations,SIG ,Building Materials,Revenue,160665,,24/07/2014,"1,250.00",Nil,Industrial Supplies - Not Elsewhere Classified,GPC,Not yet available,
Wakefield MDC,E08000036,30/09/2014,BUSINESS,A,Net (Surplus) / Deficit of Trading Operations,SIG ,Building Materials,Revenue,160665,2,24/07/2014,"1,250.00",Nil,Industrial Supplies - Not Elsewhere Classified,GPC,Not yet available,
Wakefield MDC,E08000036,30/09/2014,BUSINESS,A,Net (Surplus) / Deficit of Trading Operations,SIG ,Building Materials,Revenue,160665,4,24/07/2014,"1,250.00",Nil,Industrial Supplies - Not Elsewhere Classified,GPC,Not yet available,
Wakefield MDC,E08000036,30/09/2014,BUSINESS,A,Net (Surplus) / Deficit of Trading Operations,ST NICHOLAS HEATING,Building Materials,Revenue,160661,5523,16/07/2014,21.13,Nil,Plumbing/Heating Equipment & Supplies,GPC,Not yet available,
Wakefield MDC,E08000036,30/09/2014,BUSINESS,A,Net (Surplus) / Deficit of Trading Operations,ST NICHOLAS HEATING,Building Materials,Revenue,160686,638,09/09/2014,21.48,Nil,Plumbing/Heating Equipment & Supplies,GPC,Not yet available,
Wakefield MDC,E08000036,30/09/2014,BUSINESS,A,Net (Surplus) / Deficit of Trading Operations,ST NICHOLAS HEATING,Building Materials,Revenue,160686,636,09/09/2014,21.48,Nil,Plumbing/Heating Equipment & Supplies,GPC,Not yet available,
Wakefield MDC,E08000036,30/09/2014,BUSINESS,A,Net (Surplus) / Deficit of Trading Operations,THE SITEBOX,Building Materials,Revenue,160681,454,20/08/2014,10.23,Nil,Electrical Parts/Equipment,GPC,Not yet available,
Wakefield MDC,E08000036,30/09/2014,BUSINESS,A,Net (Surplus) / Deficit of Trading Operations,TIMBERWORLD,Building Materials,Revenue,160680,104,18/08/2014,211.51,Nil,Discount Stores,GPC,Not yet available,
Wakefield MDC,E08000036,30/09/2014,BUSINESS,A,Net (Surplus) / Deficit of Trading Operations,TOOL STATION,Building Materials,Revenue,160664,1458,22/07/2014,73.23,Nil,Hardware Stores,GPC,Not yet available,
Wakefield MDC,E08000036,30/09/2014,BUSINESS,A,Net (Surplus) / Deficit of Trading Operations,TOOL STATION,Building Materials,Revenue,160661,2507,16/07/2014,47.40,Nil,Hardware Stores,GPC,Not yet available,
Wakefield MDC,E08000036,30/09/2014,BUSINESS,A,Net (Surplus) / Deficit of Trading Operations,TOOL STATION,Building Materials,Revenue,160686,640,09/09/2014,18.73,Nil,Hardware Stores,GPC,Not yet available,
Wakefield MDC,E08000036,30/09/2014,BUSINESS,A,Net (Surplus) / Deficit of Trading Operations,TOOL STATION,Building Materials,Revenue,160686,642,09/09/2014,18.73,Nil,Hardware Stores,GPC,Not yet available,
Wakefield MDC,E08000036,30/09/2014,BUSINESS,A,Net (Surplus) / Deficit of Trading Operations,TOOL VENTURE,Building Materials,Revenue,160670,84,01/08/2014,14.88,Nil,Glass/Paint/Wallpaper Store,GPC,Not yet available,
Wakefield MDC,E08000036,30/09/2014,BUSINESS,A,Net (Surplus) / Deficit of Trading Operations,TOOL VENTURE,Building Materials,Revenue,160670,86,01/08/2014,9.92,Nil,Glass/Paint/Wallpaper Store,GPC,Not yet available,
Wakefield MDC,E08000036,30/09/2014,BUSINESS,A,Net (Surplus) / Deficit of Trading Operations,TOOL VENTURE,Building Materials,Revenue,160670,90,01/08/2014,24.79,Nil,Glass/Paint/Wallpaper Store,GPC,Not yet available,
Wakefield MDC,E08000036,30/09/2014,BUSINESS,A,Net (Surplus) / Deficit of Trading Operations,TOOL VENTURE,Building Materials,Revenue,160670,88,01/08/2014,9.92,Nil,Glass/Paint/Wallpaper Store,GPC,Not yet available,
Wakefield MDC,E08000036,30/09/2014,BUSINESS,A,Net (Surplus) / Deficit of Trading Operations,TP PONTEFRACT,Building Materials,Revenue,160690,51,25/09/2014,15.24,Nil,Lumber/Building Materials Stores,GPC,Not yet available,
Wakefield MDC,E08000036,30/09/2014,BUSINESS,A,Net (Surplus) / Deficit of Trading Operations,TP PONTEFRACT,Building Materials,Revenue,160690,65,25/09/2014,5.98,Nil,Lumber/Building Materials Stores,GPC,Not yet available,
Wakefield MDC,E08000036,30/09/2014,BUSINESS,A,Net (Surplus) / Deficit of Trading Operations,TP PONTEFRACT,Building Materials,Revenue,160690,53,25/09/2014,63.32,Nil,Lumber/Building Materials Stores,GPC,Not yet available,
Wakefield MDC,E08000036,30/09/2014,BUSINESS,A,Net (Surplus) / Deficit of Trading Operations,TP PONTEFRACT,Building Materials,Revenue,160663,445,18/07/2014,15.84,Nil,Lumber/Building Materials Stores,GPC,Not yet available,
Wakefield MDC,E08000036,30/09/2014,BUSINESS,A,Net (Surplus) / Deficit of Trading Operations,TP PONTEFRACT,Building Materials,Revenue,160663,449,18/07/2014,9.16,Nil,Lumber/Building Materials Stores,GPC,Not yet available,
Wakefield MDC,E08000036,30/09/2014,BUSINESS,A,Net (Surplus) / Deficit of Trading Operations,TP PONTEFRACT,Building Materials,Revenue,160663,443,18/07/2014,7.62,Nil,Lumber/Building Materials Stores,GPC,Not yet available,
Wakefield MDC,E08000036,30/09/2014,BUSINESS,A,Net (Surplus) / Deficit of Trading Operations,TP PONTEFRACT,Building Materials,Revenue,160663,447,18/07/2014,22.98,Nil,Lumber/Building Materials Stores,GPC,Not yet available,
Wakefield MDC,E08000036,30/09/2014,BUSINESS,A,Net (Surplus) / Deficit of Trading Operations,TP PONTEFRACT,Building Materials,Revenue,160663,451,18/07/2014,28.30,Nil,Lumber/Building Materials Stores,GPC,Not yet available,
Wakefield MDC,E08000036,30/09/2014,BUSINESS,A,Net (Surplus) / Deficit of Trading Operations,TP PONTEFRACT,Building Materials,Revenue,160694,257,02/10/2014,25.21,Nil,Lumber/Building Materials Stores,GPC,Not yet available,
Wakefield MDC,E08000036,30/09/2014,BUSINESS,A,Net (Surplus) / Deficit of Trading Operations,TP PONTEFRACT,Building Materials,Revenue,160691,2699,29/09/2014,46.83,Nil,Lumber/Building Materials Stores,GPC,Not yet available,
Wakefield MDC,E08000036,30/09/2014,BUSINESS,A,Net (Surplus) / Deficit of Trading Operations,TP PONTEFRACT,Building Materials,Revenue,160690,46,25/09/2014,15.84,Nil,Lumber/Building Materials Stores,GPC,Not yet available,
Wakefield MDC,E08000036,30/09/2014,BUSINESS,A,Net (Surplus) / Deficit of Trading Operations,TP PONTEFRACT,Building Materials,Revenue,160690,48,25/09/2014,11.08,Nil,Lumber/Building Materials Stores,GPC,Not yet available,
Wakefield MDC,E08000036,30/09/2014,BUSINESS,A,Net (Surplus) / Deficit of Trading Operations,TP PONTEFRACT,Building Materials,Revenue,160690,49,25/09/2014,46.83,Nil,Lumber/Building Materials Stores,GPC,Not yet available,
Wakefield MDC,E08000036,30/09/2014,BUSINESS,A,Net (Surplus) / Deficit of Trading Operations,TP PONTEFRACT,Building Materials,Revenue,160690,127,25/09/2014,15.32,Nil,Lumber/Building Materials Stores,GPC,Not yet available,
Wakefield MDC,E08000036,30/09/2014,BUSINESS,A,Net (Surplus) / Deficit of Trading Operations,TP PONTEFRACT,Building Materials,Revenue,160689,4050,22/09/2014,42.00,Nil,Lumber/Building Materials Stores,GPC,Not yet available,
Wakefield MDC,E08000036,30/09/2014,BUSINESS,A,Net (Surplus) / Deficit of Trading Operations,TP PONTEFRACT,Building Materials,Revenue,160689,4028,22/09/2014,2.54,Nil,Lumber/Building Materials Stores,GPC,Not yet available,
Wakefield MDC,E08000036,30/09/2014,BUSINESS,A,Net (Surplus) / Deficit of Trading Operations,TP PONTEFRACT,Building Materials,Revenue,160689,4081,22/09/2014,9.69,Nil,Lumber/Building Materials Stores,GPC,Not yet available,
Wakefield MDC,E08000036,30/09/2014,BUSINESS,A,Net (Surplus) / Deficit of Trading Operations,TP PONTEFRACT,Building Materials,Revenue,160670,76,01/08/2014,7.66,Nil,Lumber/Building Materials Stores,GPC,Not yet available,
Wakefield MDC,E08000036,30/09/2014,BUSINESS,A,Net (Surplus) / Deficit of Trading Operations,TP PONTEFRACT,Building Materials,Revenue,160665,1935,24/07/2014,11.58,Nil,Lumber/Building Materials Stores,GPC,Not yet available,
Wakefield MDC,E08000036,30/09/2014,BUSINESS,A,Net (Surplus) / Deficit of Trading Operations,TP PONTEFRACT,Building Materials,Revenue,160661,1569,16/07/2014,9.19,Nil,Lumber/Building Materials Stores,GPC,Not yet available,
Wakefield MDC,E08000036,30/09/2014,BUSINESS,A,Net (Surplus) / Deficit of Trading Operations,TP PONTEFRACT,Building Materials,Revenue,160665,1937,24/07/2014,2.43,Nil,Lumber/Building Materials Stores,GPC,Not yet available,
Wakefield MDC,E08000036,30/09/2014,BUSINESS,A,Net (Surplus) / Deficit of Trading Operations,TP PONTEFRACT,Building Materials,Revenue,160661,1679,16/07/2014,6.32,Nil,Lumber/Building Materials Stores,GPC,Not yet available,
Wakefield MDC,E08000036,30/09/2014,BUSINESS,A,Net (Surplus) / Deficit of Trading Operations,TP PONTEFRACT,Building Materials,Revenue,160665,1939,24/07/2014,9.88,Nil,Lumber/Building Materials Stores,GPC,Not yet available,
Wakefield MDC,E08000036,30/09/2014,BUSINESS,A,Net (Surplus) / Deficit of Trading Operations,TP PONTEFRACT,Building Materials,Revenue,160667,404,29/07/2014,2.80,Nil,Lumber/Building Materials Stores,GPC,Not yet available,
Wakefield MDC,E08000036,30/09/2014,BUSINESS,A,Net (Surplus) / Deficit of Trading Operations,TP PONTEFRACT ,Building Materials,Revenue,160683,4,27/08/2014,345.00,Nil,Lumber/Building Materials Stores,GPC,Not yet available,
Wakefield MDC,E08000036,30/09/2014,BUSINESS,A,Net (Surplus) / Deficit of Trading Operations,TP PONTEFRACT ,Building Materials,Revenue,160664,3817,22/07/2014,36.93,Nil,Lumber/Building Materials Stores,GPC,Not yet available,
Wakefield MDC,E08000036,30/09/2014,BUSINESS,A,Net (Surplus) / Deficit of Trading Operations,TP PONTEFRACT ,Building Materials,Revenue,160667,4,29/07/2014,7.05,Nil,Lumber/Building Materials Stores,GPC,Not yet available,
Wakefield MDC,E08000036,30/09/2014,BUSINESS,A,Net (Surplus) / Deficit of Trading Operations,TP PONTEFRACT ,Building Materials,Revenue,160667,6,29/07/2014,2.29,Nil,Lumber/Building Materials Stores,GPC,Not yet available,
Wakefield MDC,E08000036,30/09/2014,BUSINESS,A,Net (Surplus) / Deficit of Trading Operations,TP PONTEFRACT ,Building Materials,Revenue,160667,,29/07/2014,9.00,Nil,Lumber/Building Materials Stores,GPC,Not yet available,
Wakefield MDC,E08000036,30/09/2014,BUSINESS,A,Net (Surplus) / Deficit of Trading Operations,TP PONTEFRACT ,Building Materials,Revenue,160663,,18/07/2014,70.80,Nil,Lumber/Building Materials Stores,GPC,Not yet available,
Wakefield MDC,E08000036,30/09/2014,BUSINESS,A,Net (Surplus) / Deficit of Trading Operations,TP PONTEFRACT ,Building Materials,Revenue,160667,2,29/07/2014,1.99,Nil,Lumber/Building Materials Stores,GPC,Not yet available,
Wakefield MDC,E08000036,30/09/2014,BUSINESS,A,Net (Surplus) / Deficit of Trading Operations,TP PONTEFRACT ,Building Materials,Revenue,160663,8,18/07/2014,23.16,Nil,Lumber/Building Materials Stores,GPC,Not yet available,
Wakefield MDC,E08000036,30/09/2014,BUSINESS,A,Net (Surplus) / Deficit of Trading Operations,TP PONTEFRACT ,Building Materials,Revenue,160663,4,18/07/2014,7.92,Nil,Lumber/Building Materials Stores,GPC,Not yet available,
Wakefield MDC,E08000036,30/09/2014,BUSINESS,A,Net (Surplus) / Deficit of Trading Operations,TP PONTEFRACT ,Building Materials,Revenue,160664,3819,22/07/2014,36.93,Nil,Lumber/Building Materials Stores,GPC,Not yet available,
Wakefield MDC,E08000036,30/09/2014,BUSINESS,A,Net (Surplus) / Deficit of Trading Operations,TP PONTEFRACT ,Building Materials,Revenue,160663,6,18/07/2014,15.84,Nil,Lumber/Building Materials Stores,GPC,Not yet available,
Wakefield MDC,E08000036,30/09/2014,BUSINESS,A,Net (Surplus) / Deficit of Trading Operations,TP PONTEFRACT ,Building Materials,Revenue,160663,2,18/07/2014,15.96,Nil,Lumber/Building Materials Stores,GPC,Not yet available,
Wakefield MDC,E08000036,30/09/2014,BUSINESS,A,Net (Surplus) / Deficit of Trading Operations,TP PONTEFRACT ,Building Materials,Revenue,160681,472,20/08/2014,172.50,Nil,Lumber/Building Materials Stores,GPC,Not yet available,
Wakefield MDC,E08000036,30/09/2014,BUSINESS,A,Net (Surplus) / Deficit of Trading Operations,TP WAKEFIELD,Building Materials,Revenue,160667,508,29/07/2014,30.04,Nil,Lumber/Building Materials Stores,GPC,Not yet available,
Wakefield MDC,E08000036,30/09/2014,BUSINESS,A,Net (Surplus) / Deficit of Trading Operations,TP WAKEFIELD ,Building Materials,Revenue,160670,63,01/08/2014,8.50,Nil,Lumber/Building Materials Stores,GPC,Not yet available,
Wakefield MDC,E08000036,30/09/2014,BUSINESS,A,Net (Surplus) / Deficit of Trading Operations,TP WAKEFIELD ,Building Materials,Revenue,160670,61,01/08/2014,19.35,Nil,Lumber/Building Materials Stores,GPC,Not yet available,
Wakefield MDC,E08000036,30/09/2014,BUSINESS,A,Net (Surplus) / Deficit of Trading Operations,VICTORIAN PLUMBING,Building Materials,Revenue,160689,3803,22/09/2014,43.25,Nil,Misc House Furnishing Specialty Stores,GPC,Not yet available,
Wakefield MDC,E08000036,30/09/2014,BUSINESS,A,Net (Surplus) / Deficit of Trading Operations,WAKEFIELD BUILDBASE,Building Materials,Revenue,160669,33,31/07/2014,62.29,Nil,Lumber/Building Materials Stores,GPC,Not yet available,
Wakefield MDC,E08000036,30/09/2014,BUSINESS,A,Net (Surplus) / Deficit of Trading Operations,WAKEFIELD BUILDBASE,Building Materials,Revenue,160692,246,30/09/2014,31.09,Nil,Lumber/Building Materials Stores,GPC,Not yet available,
Wakefield MDC,E08000036,30/09/2014,BUSINESS,A,Net (Surplus) / Deficit of Trading Operations,WAKEFIELD BUILDBASE,Building Materials,Revenue,160686,2612,09/09/2014,42.52,Nil,Lumber/Building Materials Stores,GPC,Not yet available,
Wakefield MDC,E08000036,30/09/2014,BUSINESS,A,Net (Surplus) / Deficit of Trading Operations,WAKEFIELD BUILDBASE,Building Materials,Revenue,160691,2719,29/09/2014,185.19,Nil,Lumber/Building Materials Stores,GPC,Not yet available,
Wakefield MDC,E08000036,30/09/2014,BUSINESS,A,Net (Surplus) / Deficit of Trading Operations,WAKEFIELD BUILDBASE,Building Materials,Revenue,160668,40,30/07/2014,19.37,Nil,Lumber/Building Materials Stores,GPC,Not yet available,
Wakefield MDC,E08000036,30/09/2014,BUSINESS,A,Net (Surplus) / Deficit of Trading Operations,WAKEFIELD BUILDBASE,Building Materials,Revenue,160689,176,22/09/2014,8.01,Nil,Lumber/Building Materials Stores,GPC,Not yet available,
Wakefield MDC,E08000036,30/09/2014,BUSINESS,A,Net (Surplus) / Deficit of Trading Operations,WAKEFIELD BUILDBASE,Building Materials,Revenue,160689,186,22/09/2014,31.20,Nil,Lumber/Building Materials Stores,GPC,Not yet available,
Wakefield MDC,E08000036,30/09/2014,BUSINESS,A,Net (Surplus) / Deficit of Trading Operations,WAKEFIELD BUILDBASE,Building Materials,Revenue,160679,27,14/08/2014,5.00,Nil,Lumber/Building Materials Stores,GPC,Not yet available,
Wakefield MDC,E08000036,30/09/2014,BUSINESS,A,Net (Surplus) / Deficit of Trading Operations,WAKEFIELD BUILDBASE,Building Materials,Revenue,160689,178,22/09/2014,11.69,Nil,Lumber/Building Materials Stores,GPC,Not yet available,
Wakefield MDC,E08000036,30/09/2014,BUSINESS,A,Net (Surplus) / Deficit of Trading Operations,WAKEFIELD BUILDBASE,Building Materials,Revenue,160665,117,24/07/2014,6.95,Nil,Lumber/Building Materials Stores,GPC,Not yet available,
Wakefield MDC,E08000036,30/09/2014,BUSINESS,A,Net (Surplus) / Deficit of Trading Operations,WAKEFIELD BUILDBASE,Building Materials,Revenue,160681,4,20/08/2014,22.55,Nil,Lumber/Building Materials Stores,GPC,Not yet available,
Wakefield MDC,E08000036,30/09/2014,BUSINESS,A,Net (Surplus) / Deficit of Trading Operations,WAKEFIELD BUILDBASE,Building Materials,Revenue,160675,2,08/08/2014,76.15,Nil,Lumber/Building Materials Stores,GPC,Not yet available,
Wakefield MDC,E08000036,30/09/2014,BUSINESS,A,Net (Surplus) / Deficit of Trading Operations,WAKEFIELD BUILDBASE,Building Materials,Revenue,160682,2,22/08/2014,37.04,Nil,Lumber/Building Materials Stores,GPC,Not yet available,
Wakefield MDC,E08000036,30/09/2014,BUSINESS,A,Net (Surplus) / Deficit of Trading Operations,WAKEFIELD BUILDBASE,Building Materials,Revenue,160675,,08/08/2014,34.75,Nil,Lumber/Building Materials Stores,GPC,Not yet available,
Wakefield MDC,E08000036,30/09/2014,BUSINESS,A,Net (Surplus) / Deficit of Trading Operations,WAKEFIELD BUILDBASE,Building Materials,Revenue,160694,,02/10/2014,76.25,Nil,Lumber/Building Materials Stores,GPC,Not yet available,
Wakefield MDC,E08000036,30/09/2014,BUSINESS,A,Net (Surplus) / Deficit of Trading Operations,WAKEFIELD BUILDBASE,Building Materials,Revenue,160691,114,29/09/2014,34.45,Nil,Lumber/Building Materials Stores,GPC,Not yet available,
Wakefield MDC,E08000036,30/09/2014,BUSINESS,A,Net (Surplus) / Deficit of Trading Operations,WASHWARE ESSENTIALS,Building Materials,Revenue,160661,5316,16/07/2014,149.00,Nil,Discount Stores,GPC,Not yet available,
Wakefield MDC,E08000036,30/09/2014,BUSINESS,A,Net (Surplus) / Deficit of Trading Operations,WASHWARE ESSENTIALS,Building Materials,Revenue,160686,632,09/09/2014,979.00,Nil,Discount Stores,GPC,Not yet available,
Wakefield MDC,E08000036,30/09/2014,BUSINESS,A,Net (Surplus) / Deficit of Trading Operations,WICKES,Building Materials,Revenue,160681,337,20/08/2014,9.87,Nil,Lumber/Building Materials Stores,GPC,Not yet available,
Wakefield MDC,E08000036,30/09/2014,BUSINESS,A,Net (Surplus) / Deficit of Trading Operations,WICKES,Building Materials,Revenue,160689,3472,22/09/2014,22.49,Nil,Lumber/Building Materials Stores,GPC,Not yet available,
Wakefield MDC,E08000036,30/09/2014,BUSINESS,A,Net (Surplus) / Deficit of Trading Operations,WICKES ,Building Materials,Revenue,160686,1063,09/09/2014,151.22,Nil,Home Supply Warehouse Stores,GPC,Not yet available,
Wakefield MDC,E08000036,30/09/2014,BUSINESS,A,Net (Surplus) / Deficit of Trading Operations,WICKES ,Building Materials,Revenue,160689,3705,22/09/2014,8.47,Nil,Home Supply Warehouse Stores,GPC,Not yet available,
Wakefield MDC,E08000036,30/09/2014,BUSINESS,A,Net (Surplus) / Deficit of Trading Operations,WICKES ,Building Materials,Revenue,160694,12,02/10/2014,7.80,Nil,Lumber/Building Materials Stores,GPC,Not yet available,
Wakefield MDC,E08000036,30/09/2014,BUSINESS,A,Net (Surplus) / Deficit of Trading Operations,WICKES ,Building Materials,Revenue,160694,8,02/10/2014,8.32,Nil,Lumber/Building Materials Stores,GPC,Not yet available,
Wakefield MDC,E08000036,30/09/2014,BUSINESS,A,Net (Surplus) / Deficit of Trading Operations,WICKES ,Building Materials,Revenue,160692,182,30/09/2014,93.05,Nil,Lumber/Building Materials Stores,GPC,Not yet available,
Wakefield MDC,E08000036,30/09/2014,BUSINESS,A,Net (Surplus) / Deficit of Trading Operations,ALERT ELECTRICAL,Building Materials,Revenue,160661,3060,16/07/2014,30.32,Nil,Electronics Stores,GPC,Not yet available,
Wakefield MDC,E08000036,30/09/2014,BUSINESS,A,Net (Surplus) / Deficit of Trading Operations,ALERT ELECTRICAL,Building Materials,Revenue,160689,1538,22/09/2014,25.23,Nil,Electronics Stores,GPC,Not yet available,
Wakefield MDC,E08000036,30/09/2014,BUSINESS,A,Net (Surplus) / Deficit of Trading Operations,ALLGAS (WAKEFIELD) LTD ,Building Materials,Revenue,160662,1461,17/07/2014,92.25,Nil,Plumbing/Heating Equipment & Supplies,GPC,Not yet available,
Wakefield MDC,E08000036,30/09/2014,BUSINESS,A,Net (Surplus) / Deficit of Trading Operations,AS CATERING SUPPLIES ,Building Materials,Revenue,160673,120,06/08/2014,25.01,Nil,Commercial Equipment - Not Elsewhere Classified,GPC,Not yet available,
Wakefield MDC,E08000036,30/09/2014,BUSINESS,A,Net (Surplus) / Deficit of Trading Operations,AS CATERING SUPPLIES ,Building Materials,Revenue,160678,95,13/08/2014,20.84,Nil,Commercial Equipment - Not Elsewhere Classified,GPC,Not yet available,
Wakefield MDC,E08000036,30/09/2014,BUSINESS,A,Net (Surplus) / Deficit of Trading Operations,CALDER SECURITY,Building Materials,Revenue,160687,348,10/09/2014,23.40,Nil,Hardware Stores,GPC,Not yet available,
Wakefield MDC,E08000036,30/09/2014,BUSINESS,A,Net (Surplus) / Deficit of Trading Operations,CALDER SECURITY,Building Materials,Revenue,160682,94,22/08/2014,123.08,Nil,Hardware Stores,GPC,Not yet available,
Wakefield MDC,E08000036,30/09/2014,BUSINESS,A,Net (Surplus) / Deficit of Trading Operations,CITY ELECTRICAL,Building Materials,Revenue,160665,2058,24/07/2014,106.09,Nil,Lumber/Building Materials Stores,GPC,Not yet available,
Wakefield MDC,E08000036,30/09/2014,BUSINESS,A,Net (Surplus) / Deficit of Trading Operations,DIRECT HYGIENE ,Building Materials,Revenue,160672,348,05/08/2014,60.25,Nil,Stationery/Office/School Supply Stores,GPC,Not yet available,
Wakefield MDC,E08000036,30/09/2014,BUSINESS,A,Net (Surplus) / Deficit of Trading Operations,DIRECT PLASTICS ONLINE ,Building Materials,Revenue,160679,46,14/08/2014,50.33,Nil,Industrial Supplies - Not Elsewhere Classified,GPC,Not yet available,
Wakefield MDC,E08000036,30/09/2014,BUSINESS,A,Net (Surplus) / Deficit of Trading Operations,EDMUNDSON ELECTRICAL,Building Materials,Revenue,160689,1540,22/09/2014,7.54,Nil,Electrical Parts/Equipment,GPC,Not yet available,
Wakefield MDC,E08000036,30/09/2014,BUSINESS,A,Net (Surplus) / Deficit of Trading Operations,EDMUNDSON ELECTRICAL,Building Materials,Revenue,160686,493,09/09/2014,28.88,Nil,Electrical Parts/Equipment,GPC,Not yet available,
Wakefield MDC,E08000036,30/09/2014,BUSINESS,A,Net (Surplus) / Deficit of Trading Operations,EDMUNDSON ELECTRICAL,Building Materials,Revenue,160678,101,13/08/2014,33.67,Nil,Electrical Parts/Equipment,GPC,Not yet available,
Wakefield MDC,E08000036,30/09/2014,BUSINESS,A,Net (Surplus) / Deficit of Trading Operations,EDMUNDSON ELECTRICAL,Building Materials,Revenue,160672,352,05/08/2014,165.00,Nil,Electrical Parts/Equipment,GPC,Not yet available,
Wakefield MDC,E08000036,30/09/2014,BUSINESS,A,Net (Surplus) / Deficit of Trading Operations,EDMUNDSON ELECTRICAL,Building Materials,Revenue,160682,109,22/08/2014,14.10,Nil,Electrical Parts/Equipment,GPC,Not yet available,
Wakefield MDC,E08000036,30/09/2014,BUSINESS,A,Net (Surplus) / Deficit of Trading Operations,EDMUNDSON ELECTRICAL,Building Materials,Revenue,160687,356,10/09/2014,113.04,Nil,Electrical Parts/Equipment,GPC,Not yet available,
Wakefield MDC,E08000036,30/09/2014,BUSINESS,A,Net (Surplus) / Deficit of Trading Operations,EDMUNDSON ELECTRICAL,Building Materials,Revenue,160672,356,05/08/2014,5.21,Nil,Electrical Parts/Equipment,GPC,Not yet available,
Wakefield MDC,E08000036,30/09/2014,BUSINESS,A,Net (Surplus) / Deficit of Trading Operations,EDMUNDSON ELECTRICAL,Building Materials,Revenue,160662,1487,17/07/2014,78.52,Nil,Electrical Parts/Equipment,GPC,Not yet available,
Wakefield MDC,E08000036,30/09/2014,BUSINESS,A,Net (Surplus) / Deficit of Trading Operations,EDMUNDSON ELECTRICAL,Building Materials,Revenue,160672,354,05/08/2014,28.94,Nil,Electrical Parts/Equipment,GPC,Not yet available,
Wakefield MDC,E08000036,30/09/2014,BUSINESS,A,Net (Surplus) / Deficit of Trading Operations,EDMUNDSON ELECTRICAL,Building Materials,Revenue,160672,340,05/08/2014,7.03,Nil,Electrical Parts/Equipment,GPC,Not yet available,
Wakefield MDC,E08000036,30/09/2014,BUSINESS,A,Net (Surplus) / Deficit of Trading Operations,EDMUNDSON ELECTRICAL,Building Materials,Revenue,160689,1444,22/09/2014,275.84,Nil,Electrical Parts/Equipment,GPC,Not yet available,
Wakefield MDC,E08000036,30/09/2014,BUSINESS,A,Net (Surplus) / Deficit of Trading Operations,EDMUNDSON ELECTRICAL,Building Materials,Revenue,160674,79,07/08/2014,207.00,Nil,Electrical Parts/Equipment,GPC,Not yet available,
Wakefield MDC,E08000036,30/09/2014,BUSINESS,A,Net (Surplus) / Deficit of Trading Operations,EDMUNDSON ELECTRICAL,Building Materials,Revenue,160682,105,22/08/2014,10.53,Nil,Electrical Parts/Equipment,GPC,Not yet available,
Wakefield MDC,E08000036,30/09/2014,BUSINESS,A,Net (Surplus) / Deficit of Trading Operations,EDMUNDSON ELECTRICAL,Building Materials,Revenue,160672,344,05/08/2014,35.24,Nil,Electrical Parts/Equipment,GPC,Not yet available,
Wakefield MDC,E08000036,30/09/2014,BUSINESS,A,Net (Surplus) / Deficit of Trading Operations,EDMUNDSON ELECTRICAL,Building Materials,Revenue,160687,352,10/09/2014,26.50,Nil,Electrical Parts/Equipment,GPC,Not yet available,
Wakefield MDC,E08000036,30/09/2014,BUSINESS,A,Net (Surplus) / Deficit of Trading Operations,EDMUNDSON ELECTRICAL,Building Materials,Revenue,160672,342,05/08/2014,26.34,Nil,Electrical Parts/Equipment,GPC,Not yet available,
Wakefield MDC,E08000036,30/09/2014,BUSINESS,A,Net (Surplus) / Deficit of Trading Operations,EDMUNDSON ELECTRICAL,Building Materials,Revenue,160672,346,05/08/2014,2.75,Nil,Electrical Parts/Equipment,GPC,Not yet available,
Wakefield MDC,E08000036,30/09/2014,BUSINESS,A,Net (Surplus) / Deficit of Trading Operations,EDMUNDSON ELECTRICAL,Building Materials,Revenue,160681,371,20/08/2014,89.85,Nil,Electrical Parts/Equipment,GPC,Not yet available,
Wakefield MDC,E08000036,30/09/2014,BUSINESS,A,Net (Surplus) / Deficit of Trading Operations,EDMUNDSON ELECTRICAL,Building Materials,Revenue,160678,99,13/08/2014,3.17,Nil,Electrical Parts/Equipment,GPC,Not yet available,
Wakefield MDC,E08000036,30/09/2014,BUSINESS,A,Net (Surplus) / Deficit of Trading Operations,EDMUNDSON ELECTRICAL,Building Materials,Revenue,160661,2876,16/07/2014,330.16,Nil,Electrical Parts/Equipment,GPC,Not yet available,
Wakefield MDC,E08000036,30/09/2014,BUSINESS,A,Net (Surplus) / Deficit of Trading Operations,EDMUNDSON ELECTRICAL,Building Materials,Revenue,160679,40,14/08/2014,43.50,Nil,Electrical Parts/Equipment,GPC,Not yet available,
Wakefield MDC,E08000036,30/09/2014,BUSINESS,A,Net (Surplus) / Deficit of Trading Operations,EDMUNDSON ELECTRICAL,Building Materials,Revenue,160680,134,18/08/2014,27.96,Nil,Electrical Parts/Equipment,GPC,Not yet available,
Wakefield MDC,E08000036,30/09/2014,BUSINESS,A,Net (Surplus) / Deficit of Trading Operations,EDMUNDSON ELECTRICAL,Building Materials,Revenue,160662,1481,17/07/2014,20.85,Nil,Electrical Parts/Equipment,GPC,Not yet available,
Wakefield MDC,E08000036,30/09/2014,BUSINESS,A,Net (Surplus) / Deficit of Trading Operations,EDMUNDSON ELECTRICAL,Building Materials,Revenue,160679,44,14/08/2014,33.11,Nil,Electrical Parts/Equipment,GPC,Not yet available,
Wakefield MDC,E08000036,30/09/2014,BUSINESS,A,Net (Surplus) / Deficit of Trading Operations,EDMUNDSON ELECTRICAL,Building Materials,Revenue,160662,1479,17/07/2014,46.36,Nil,Electrical Parts/Equipment,GPC,Not yet available,
Wakefield MDC,E08000036,30/09/2014,BUSINESS,A,Net (Surplus) / Deficit of Trading Operations,EDMUNDSON ELECTRICAL,Building Materials,Revenue,160679,42,14/08/2014,72.27,Nil,Electrical Parts/Equipment,GPC,Not yet available,
Wakefield MDC,E08000036,30/09/2014,BUSINESS,A,Net (Surplus) / Deficit of Trading Operations,EDMUNDSON ELECTRICAL,Building Materials,Revenue,160682,101,22/08/2014,9.60,Nil,Electrical Parts/Equipment,GPC,Not yet available,
Wakefield MDC,E08000036,30/09/2014,BUSINESS,A,Net (Surplus) / Deficit of Trading Operations,EDMUNDSON ELECTRICAL,Building Materials,Revenue,160672,336,05/08/2014,24.56,Nil,Electrical Parts/Equipment,GPC,Not yet available,
Wakefield MDC,E08000036,30/09/2014,BUSINESS,A,Net (Surplus) / Deficit of Trading Operations,EDMUNDSON ELECTRICAL,Building Materials,Revenue,160662,1477,17/07/2014,129.64,Nil,Electrical Parts/Equipment,GPC,Not yet available,
Wakefield MDC,E08000036,30/09/2014,BUSINESS,A,Net (Surplus) / Deficit of Trading Operations,EDMUNDSON ELECTRICAL,Building Materials,Revenue,160682,103,22/08/2014,16.00,Nil,Electrical Parts/Equipment,GPC,Not yet available,
Wakefield MDC,E08000036,30/09/2014,BUSINESS,A,Net (Surplus) / Deficit of Trading Operations,EDMUNDSON ELECTRICAL,Building Materials,Revenue,160681,373,20/08/2014,117.72,Nil,Electrical Parts/Equipment,GPC,Not yet available,
Wakefield MDC,E08000036,30/09/2014,BUSINESS,A,Net (Surplus) / Deficit of Trading Operations,EDMUNDSON ELECTRICAL,Building Materials,Revenue,160691,3724,29/09/2014,10.00,Nil,Electrical Parts/Equipment,GPC,Not yet available,
Wakefield MDC,E08000036,30/09/2014,BUSINESS,A,Net (Surplus) / Deficit of Trading Operations,EDMUNDSON ELECTRICAL,Building Materials,Revenue,160689,460,22/09/2014,38.88,Nil,Electrical Parts/Equipment,GPC,Not yet available,
Wakefield MDC,E08000036,30/09/2014,BUSINESS,A,Net (Surplus) / Deficit of Trading Operations,EDMUNDSON ELECTRICAL,Building Materials,Revenue,160662,1483,17/07/2014,19.27,Nil,Electrical Parts/Equipment,GPC,Not yet available,
Wakefield MDC,E08000036,30/09/2014,BUSINESS,A,Net (Surplus) / Deficit of Trading Operations,EDMUNDSON ELECTRICAL,Building Materials,Revenue,160661,2878,16/07/2014,15.67,Nil,Electrical Parts/Equipment,GPC,Not yet available,
Wakefield MDC,E08000036,30/09/2014,BUSINESS,A,Net (Surplus) / Deficit of Trading Operations,EDMUNDSON ELECTRICAL,Building Materials,Revenue,160687,354,10/09/2014,7.60,Nil,Electrical Parts/Equipment,GPC,Not yet available,
Wakefield MDC,E08000036,30/09/2014,BUSINESS,A,Net (Surplus) / Deficit of Trading Operations,EDMUNDSON ELECTRICAL,Building Materials,Revenue,160689,458,22/09/2014,195.93,Nil,Electrical Parts/Equipment,GPC,Not yet available,
Wakefield MDC,E08000036,30/09/2014,BUSINESS,A,Net (Surplus) / Deficit of Trading Operations,EDMUNDSON ELECTRICAL,Building Materials,Revenue,160660,7679,11/07/2014,58.70,Nil,Electrical Parts/Equipment,GPC,Not yet available,
Wakefield MDC,E08000036,30/09/2014,BUSINESS,A,Net (Surplus) / Deficit of Trading Operations,EDMUNDSON ELECTRICAL,Building Materials,Revenue,160694,1804,02/10/2014,11.42,Nil,Electrical Parts/Equipment,GPC,Not yet available,
Wakefield MDC,E08000036,30/09/2014,BUSINESS,A,Net (Surplus) / Deficit of Trading Operations,EDMUNDSON ELECTRICAL,Building Materials,Revenue,160674,51,07/08/2014,52.92,Nil,Electrical Parts/Equipment,GPC,Not yet available,
Wakefield MDC,E08000036,30/09/2014,BUSINESS,A,Net (Surplus) / Deficit of Trading Operations,EDMUNDSON ELECTRICAL,Building Materials,Revenue,160690,823,25/09/2014,26.10,Nil,Electrical Parts/Equipment,GPC,Not yet available,
Wakefield MDC,E08000036,30/09/2014,BUSINESS,A,Net (Surplus) / Deficit of Trading Operations,EDMUNDSON ELECTRICAL,Building Materials,Revenue,160680,37,18/08/2014,63.97,Nil,Electrical Parts/Equipment,GPC,Not yet available,
Wakefield MDC,E08000036,30/09/2014,BUSINESS,A,Net (Surplus) / Deficit of Trading Operations,EDMUNDSON ELECTRICAL,Building Materials,Revenue,160680,35,18/08/2014,109.80,Nil,Electrical Parts/Equipment,GPC,Not yet available,
Wakefield MDC,E08000036,30/09/2014,BUSINESS,A,Net (Surplus) / Deficit of Trading Operations,EDMUNDSON ELECTRICAL,Building Materials,Revenue,160691,2934,29/09/2014,25.75,Nil,Electrical Parts/Equipment,GPC,Not yet available,
Wakefield MDC,E08000036,30/09/2014,BUSINESS,A,Net (Surplus) / Deficit of Trading Operations,EDMUNDSON ELECTRICAL,Building Materials,Revenue,160665,2052,24/07/2014,7.61,Nil,Electrical Parts/Equipment,GPC,Not yet available,
Wakefield MDC,E08000036,30/09/2014,BUSINESS,A,Net (Surplus) / Deficit of Trading Operations,EDMUNDSON ELECTRICAL,Building Materials,Revenue,160691,2932,29/09/2014,2.55,Nil,Electrical Parts/Equipment,GPC,Not yet available,
Wakefield MDC,E08000036,30/09/2014,BUSINESS,A,Net (Surplus) / Deficit of Trading Operations,EDMUNDSON ELECTRICAL,Building Materials,Revenue,160689,393,22/09/2014,27.06,Nil,Electrical Parts/Equipment,GPC,Not yet available,
Wakefield MDC,E08000036,30/09/2014,BUSINESS,A,Net (Surplus) / Deficit of Trading Operations,EDMUNDSON ELECTRICAL,Building Materials,Revenue,160672,332,05/08/2014,14.66,Nil,Electrical Parts/Equipment,GPC,Not yet available,
Wakefield MDC,E08000036,30/09/2014,BUSINESS,A,Net (Surplus) / Deficit of Trading Operations,EDMUNDSON ELECTRICAL,Building Materials,Revenue,160691,2873,29/09/2014,33.08,Nil,Electrical Parts/Equipment,GPC,Not yet available,
Wakefield MDC,E08000036,30/09/2014,BUSINESS,A,Net (Surplus) / Deficit of Trading Operations,EDMUNDSON ELECTRICAL,Building Materials,Revenue,160687,342,10/09/2014,50.41,Nil,Electrical Parts/Equipment,GPC,Not yet available,
Wakefield MDC,E08000036,30/09/2014,BUSINESS,A,Net (Surplus) / Deficit of Trading Operations,EDMUNDSON ELECTRICAL,Building Materials,Revenue,160662,1475,17/07/2014,54.00,Nil,Electrical Parts/Equipment,GPC,Not yet available,
Wakefield MDC,E08000036,30/09/2014,BUSINESS,A,Net (Surplus) / Deficit of Trading Operations,EDMUNDSON ELECTRICAL,Building Materials,Revenue,160682,96,22/08/2014,25.19,Nil,Electrical Parts/Equipment,GPC,Not yet available,
Wakefield MDC,E08000036,30/09/2014,BUSINESS,A,Net (Surplus) / Deficit of Trading Operations,EDMUNDSON ELECTRICAL,Building Materials,Revenue,160679,36,14/08/2014,11.95,Nil,Electrical Parts/Equipment,GPC,Not yet available,
Wakefield MDC,E08000036,30/09/2014,BUSINESS,A,Net (Surplus) / Deficit of Trading Operations,EDMUNDSON ELECTRICAL,Building Materials,Revenue,160672,330,05/08/2014,44.33,Nil,Electrical Parts/Equipment,GPC,Not yet available,
Wakefield MDC,E08000036,30/09/2014,BUSINESS,A,Net (Surplus) / Deficit of Trading Operations,EDMUNDSON ELECTRICAL,Building Materials,Revenue,160687,350,10/09/2014,7.60,Nil,Electrical Parts/Equipment,GPC,Not yet available,
Wakefield MDC,E08000036,30/09/2014,BUSINESS,A,Net (Surplus) / Deficit of Trading Operations,EDMUNDSON ELECTRICAL,Building Materials,Revenue,160691,2871,29/09/2014,47.65,Nil,Electrical Parts/Equipment,GPC,Not yet available,
Wakefield MDC,E08000036,30/09/2014,BUSINESS,A,Net (Surplus) / Deficit of Trading Operations,EDMUNDSON ELECTRICAL,Building Materials,Revenue,160660,5094,11/07/2014,59.85,Nil,Electrical Parts/Equipment,GPC,Not yet available,
Wakefield MDC,E08000036,30/09/2014,BUSINESS,A,Net (Surplus) / Deficit of Trading Operations,EDMUNDSON ELECTRICAL,Building Materials,Revenue,160690,454,25/09/2014,20.40,Nil,Electrical Parts/Equipment,GPC,Not yet available,
Wakefield MDC,E08000036,30/09/2014,BUSINESS,A,Net (Surplus) / Deficit of Trading Operations,EDMUNDSON ELECTRICAL,Building Materials,Revenue,160691,2060,29/09/2014,19.95,Nil,Electrical Parts/Equipment,GPC,Not yet available,
Wakefield MDC,E08000036,30/09/2014,BUSINESS,A,Net (Surplus) / Deficit of Trading Operations,EDMUNDSON ELECTRICAL,Building Materials,Revenue,160665,2050,24/07/2014,15.88,Nil,Electrical Parts/Equipment,GPC,Not yet available,
Wakefield MDC,E08000036,30/09/2014,BUSINESS,A,Net (Surplus) / Deficit of Trading Operations,EDMUNDSON ELECTRICAL,Building Materials,Revenue,160665,2048,24/07/2014,19.89,Nil,Electrical Parts/Equipment,GPC,Not yet available,
Wakefield MDC,E08000036,30/09/2014,BUSINESS,A,Net (Surplus) / Deficit of Trading Operations,EDMUNDSON ELECTRICAL,Building Materials,Revenue,160689,3988,22/09/2014,321.00,Nil,Electrical Parts/Equipment,GPC,Not yet available,
Wakefield MDC,E08000036,30/09/2014,BUSINESS,A,Net (Surplus) / Deficit of Trading Operations,EDMUNDSON ELECTRICAL,Building Materials,Revenue,160662,1473,17/07/2014,134.91,Nil,Electrical Parts/Equipment,GPC,Not yet available,
Wakefield MDC,E08000036,30/09/2014,BUSINESS,A,Net (Surplus) / Deficit of Trading Operations,EDMUNDSON ELECTRICAL,Building Materials,Revenue,160690,698,25/09/2014,11.00,Nil,Electrical Parts/Equipment,GPC,Not yet available,
Wakefield MDC,E08000036,30/09/2014,BUSINESS,A,Net (Surplus) / Deficit of Trading Operations,EDMUNDSON ELECTRICAL,Building Materials,Revenue,160691,2065,29/09/2014,30.48,Nil,Electrical Parts/Equipment,GPC,Not yet available,
Wakefield MDC,E08000036,30/09/2014,BUSINESS,A,Net (Surplus) / Deficit of Trading Operations,EDMUNDSON ELECTRICAL,Building Materials,Revenue,160689,3990,22/09/2014,59.85,Nil,Electrical Parts/Equipment,GPC,Not yet available,
Wakefield MDC,E08000036,30/09/2014,BUSINESS,A,Net (Surplus) / Deficit of Trading Operations,EDMUNDSON ELECTRICAL,Building Materials,Revenue,160687,340,10/09/2014,14.95,Nil,Electrical Parts/Equipment,GPC,Not yet available,
Wakefield MDC,E08000036,30/09/2014,BUSINESS,A,Net (Surplus) / Deficit of Trading Operations,EDMUNDSON ELECTRICAL,Building Materials,Revenue,160691,3853,29/09/2014,3.25,Nil,Electrical Parts/Equipment,GPC,Not yet available,
Wakefield MDC,E08000036,30/09/2014,BUSINESS,A,Net (Surplus) / Deficit of Trading Operations,HALFORDS ,Building Materials,Revenue,160678,97,13/08/2014,9.97,Nil,Bicycle Shops - Sales/Service,GPC,Not yet available,
Wakefield MDC,E08000036,30/09/2014,BUSINESS,A,Net (Surplus) / Deficit of Trading Operations,NEWEY  EYRE,Building Materials,Revenue,160689,841,22/09/2014,2.67,Nil,Electrical Parts/Equipment,GPC,Not yet available,
Wakefield MDC,E08000036,30/09/2014,BUSINESS,A,Net (Surplus) / Deficit of Trading Operations,NEWEY  EYRE,Building Materials,Revenue,160689,839,22/09/2014,34.72,Nil,Electrical Parts/Equipment,GPC,Not yet available,
Wakefield MDC,E08000036,30/09/2014,BUSINESS,A,Net (Surplus) / Deficit of Trading Operations,NEWEY  EYRE,Building Materials,Revenue,160689,747,22/09/2014,11.57,Nil,Electrical Parts/Equipment,GPC,Not yet available,
Wakefield MDC,E08000036,30/09/2014,BUSINESS,A,Net (Surplus) / Deficit of Trading Operations,NEWEY  EYRE ,Building Materials,Revenue,160690,456,25/09/2014,2.00,Nil,Electrical Parts/Equipment,GPC,Not yet available,
Wakefield MDC,E08000036,30/09/2014,BUSINESS,A,Net (Surplus) / Deficit of Trading Operations,NORTHERN FANS ,Building Materials,Revenue,160673,118,06/08/2014,157.25,Nil,Metal Service Centers & Offices,GPC,Not yet available,
Wakefield MDC,E08000036,30/09/2014,BUSINESS,A,Net (Surplus) / Deficit of Trading Operations,SCREWFIX,Building Materials,Revenue,160682,98,22/08/2014,14.99,Nil,Lumber/Building Materials Stores,GPC,Not yet available,
Wakefield MDC,E08000036,30/09/2014,BUSINESS,A,Net (Surplus) / Deficit of Trading Operations,SCREWFIX ,Building Materials,Revenue,160662,1485,17/07/2014,20.00,Nil,Lumber/Building Materials Stores,GPC,Not yet available,
Wakefield MDC,E08000036,30/09/2014,BUSINESS,A,Net (Surplus) / Deficit of Trading Operations,SCREWFIX ,Building Materials,Revenue,160694,2022,02/10/2014,16.66,Nil,Lumber/Building Materials Stores,GPC,Not yet available,
Wakefield MDC,E08000036,30/09/2014,BUSINESS,A,Net (Surplus) / Deficit of Trading Operations,SD FIRE ALARMS,Building Materials,Revenue,160672,350,05/08/2014,13.52,Nil,Special Trade Contractors - Not Elsewhere Classified,GPC,Not yet available,
Wakefield MDC,E08000036,30/09/2014,BUSINESS,A,Net (Surplus) / Deficit of Trading Operations,BMB BUILDBASE,Building Materials,Revenue,160689,3779,22/09/2014,26.41,Nil,Lumber/Building Materials Stores,GPC,Not yet available,
Wakefield MDC,E08000036,30/09/2014,BUSINESS,A,Net (Surplus) / Deficit of Trading Operations,BMB BUILDBASE,Building Materials,Revenue,160693,1834,01/10/2014,46.84,Nil,Lumber/Building Materials Stores,GPC,Not yet available,
Wakefield MDC,E08000036,30/09/2014,BUSINESS,A,Net (Surplus) / Deficit of Trading Operations,J DAVIDSON PIPES,Building Materials,Revenue,160690,743,25/09/2014,142.20,Nil,Construction Materials - Not Elsewhere Classified,GPC,Not yet available,
Wakefield MDC,E08000036,30/09/2014,BUSINESS,A,Net (Surplus) / Deficit of Trading Operations,J DAVIDSON PIPES,Building Materials,Revenue,160690,1401,25/09/2014,57.45,Nil,Construction Materials - Not Elsewhere Classified,GPC,Not yet available,
Wakefield MDC,E08000036,30/09/2014,BUSINESS,A,Net (Surplus) / Deficit of Trading Operations,J DAVIDSON PIPES,Building Materials,Revenue,160689,3781,22/09/2014,118.78,Nil,Construction Materials - Not Elsewhere Classified,GPC,Not yet available,
Wakefield MDC,E08000036,30/09/2014,BUSINESS,A,Net (Surplus) / Deficit of Trading Operations,J DAVIDSON PIPES ,Building Materials,Revenue,160690,1421,25/09/2014,25.00,Nil,Construction Materials - Not Elsewhere Classified,GPC,Not yet available,
Wakefield MDC,E08000036,30/09/2014,BUSINESS,A,Net (Surplus) / Deficit of Trading Operations,J M HUNT  CO ,Building Materials,Revenue,160674,109,07/08/2014,6.12,Nil,Plumbing/Heating Equipment & Supplies,GPC,Not yet available,
Wakefield MDC,E08000036,30/09/2014,BUSINESS,A,Net (Surplus) / Deficit of Trading Operations,TP WAKEFIELD,Building Materials,Revenue,160692,2618,30/09/2014,21.45,Nil,Lumber/Building Materials Stores,GPC,Not yet available,
Wakefield MDC,E08000036,30/09/2014,BUSINESS,A,Net (Surplus) / Deficit of Trading Operations,TP WAKEFIELD ,Building Materials,Revenue,160686,585,09/09/2014,20.42,Nil,Lumber/Building Materials Stores,GPC,Not yet available,
Wakefield MDC,E08000036,30/09/2014,BUSINESS,A,Net (Surplus) / Deficit of Trading Operations,WAKEFIELD BUILDBASE,Building Materials,Revenue,160692,2613,30/09/2014,14.53,Nil,Lumber/Building Materials Stores,GPC,Not yet available,
Wakefield MDC,E08000036,30/09/2014,BUSINESS,A,Net (Surplus) / Deficit of Trading Operations,B & Q ,Building Materials,Revenue,160683,145,27/08/2014,2.90,Nil,Lumber/Building Materials Stores,GPC,Not yet available,
Wakefield MDC,E08000036,30/09/2014,BUSINESS,A,Net (Surplus) / Deficit of Trading Operations,B & Q ,Building Materials,Revenue,160681,238,20/08/2014,6.23,Nil,Lumber/Building Materials Stores,GPC,Not yet available,
Wakefield MDC,E08000036,30/09/2014,BUSINESS,A,Net (Surplus) / Deficit of Trading Operations,CROSSLING BANCROFT,Building Materials,Revenue,160661,3185,16/07/2014,37.41,Nil,Plumbing/Heating Equipment & Supplies,GPC,Not yet available,
Wakefield MDC,E08000036,30/09/2014,BUSINESS,A,Net (Surplus) / Deficit of Trading Operations,EDMUNDSON ELECTRICAL,Building Materials,Revenue,160660,7681,11/07/2014,81.31,Nil,Electrical Parts/Equipment,GPC,Not yet available,
Wakefield MDC,E08000036,30/09/2014,BUSINESS,A,Net (Surplus) / Deficit of Trading Operations,HOWARTH TMBR ,Building Materials,Revenue,160685,367,01/09/2014,4.22,Nil,Lumber/Building Materials Stores,GPC,Not yet available,
Wakefield MDC,E08000036,30/09/2014,BUSINESS,A,Net (Surplus) / Deficit of Trading Operations,HOWARTH TMBR ,Building Materials,Revenue,160668,165,30/07/2014,24.59,Nil,Lumber/Building Materials Stores,GPC,Not yet available,
Wakefield MDC,E08000036,30/09/2014,BUSINESS,A,Net (Surplus) / Deficit of Trading Operations,HOWARTH TMBR ,Building Materials,Revenue,160670,74,01/08/2014,163.28,Nil,Lumber/Building Materials Stores,GPC,Not yet available,
Wakefield MDC,E08000036,30/09/2014,BUSINESS,A,Net (Surplus) / Deficit of Trading Operations,HOWARTH TMBR ,Building Materials,Revenue,160668,167,30/07/2014,128.52,Nil,Lumber/Building Materials Stores,GPC,Not yet available,
Wakefield MDC,E08000036,30/09/2014,BUSINESS,A,Net (Surplus) / Deficit of Trading Operations,HOWARTH TMBR ,Building Materials,Revenue,160668,169,30/07/2014,128.52,Nil,Lumber/Building Materials Stores,GPC,Not yet available,
Wakefield MDC,E08000036,30/09/2014,BUSINESS,A,Net (Surplus) / Deficit of Trading Operations,HOWARTH TMBR ,Building Materials,Revenue,160669,75,31/07/2014,48.26,Nil,Lumber/Building Materials Stores,GPC,Not yet available,
Wakefield MDC,E08000036,30/09/2014,BUSINESS,A,Net (Surplus) / Deficit of Trading Operations,MATRIX HARDWARE,Building Materials,Revenue,160661,2046,16/07/2014,57.90,Nil,Hardware/Equipment/Supplies,GPC,Not yet available,
Wakefield MDC,E08000036,30/09/2014,BUSINESS,A,Net (Surplus) / Deficit of Trading Operations,SCREWFIX ,Building Materials,Revenue,160683,143,27/08/2014,-13.32,Nil,Lumber/Building Materials Stores,GPC,Not yet available,
Wakefield MDC,E08000036,30/09/2014,BUSINESS,A,Net (Surplus) / Deficit of Trading Operations,SCREWFIX ,Building Materials,Revenue,160683,141,27/08/2014,13.32,Nil,Lumber/Building Materials Stores,GPC,Not yet available,
Wakefield MDC,E08000036,30/09/2014,BUSINESS,A,Net (Surplus) / Deficit of Trading Operations,CARPET  FLOORING,Building Materials,Revenue,160691,2889,29/09/2014,"2,187.59",Nil,Industrial Supplies - Not Elsewhere Classified,GPC,Not yet available,
Wakefield MDC,E08000036,30/09/2014,BUSINESS,A,Net (Surplus) / Deficit of Trading Operations,HEADLAM,Building Materials,Revenue,160668,227,30/07/2014,406.11,Nil,Floor Covering Stores,GPC,Not yet available,
Wakefield MDC,E08000036,30/09/2014,BUSINESS,A,Net (Surplus) / Deficit of Trading Operations,HEADLAM,Building Materials,Revenue,160668,229,30/07/2014,-92.61,Nil,Floor Covering Stores,GPC,Not yet available,
Wakefield MDC,E08000036,30/09/2014,BUSINESS,A,Net (Surplus) / Deficit of Trading Operations,MERCADO ,Building Materials,Revenue,160660,1556,11/07/2014,118.46,Nil,Floor Covering Stores,GPC,Not yet available,
Wakefield MDC,E08000036,30/09/2014,BUSINESS,A,Net (Surplus) / Deficit of Trading Operations,MERCADO ,Building Materials,Revenue,160660,1558,11/07/2014,271.65,Nil,Floor Covering Stores,GPC,Not yet available,
Wakefield MDC,E08000036,30/09/2014,BUSINESS,A,Net (Surplus) / Deficit of Trading Operations,MERCADO ,Building Materials,Revenue,160660,6003,11/07/2014,-271.65,Nil,Floor Covering Stores,GPC,Not yet available,
Wakefield MDC,E08000036,30/09/2014,BUSINESS,A,Net (Surplus) / Deficit of Trading Operations,AJH PUMP SUPPLY  ,Building Materials,Revenue,160689,2633,22/09/2014,340.00,Nil,Electrical Parts/Equipment,GPC,Not yet available,
Wakefield MDC,E08000036,30/09/2014,BUSINESS,A,Net (Surplus) / Deficit of Trading Operations,ALLGAS (WAKEFIELD) LTD ,Building Materials,Revenue,160686,1079,09/09/2014,2.32,Nil,Plumbing/Heating Equipment & Supplies,GPC,Not yet available,
Wakefield MDC,E08000036,30/09/2014,BUSINESS,A,Net (Surplus) / Deficit of Trading Operations,ALLGAS (WAKEFIELD) LTD ,Building Materials,Revenue,160663,993,18/07/2014,10.42,Nil,Plumbing/Heating Equipment & Supplies,GPC,Not yet available,
Wakefield MDC,E08000036,30/09/2014,BUSINESS,A,Net (Surplus) / Deficit of Trading Operations,ALLGAS (WAKEFIELD) LTD ,Building Materials,Revenue,160669,91,31/07/2014,375.00,Nil,Plumbing/Heating Equipment & Supplies,GPC,Not yet available,
Wakefield MDC,E08000036,30/09/2014,BUSINESS,A,Net (Surplus) / Deficit of Trading Operations,ALLGAS (WAKEFIELD) LTD ,Building Materials,Revenue,160669,89,31/07/2014,32.86,Nil,Plumbing/Heating Equipment & Supplies,GPC,Not yet available,
Wakefield MDC,E08000036,30/09/2014,BUSINESS,A,Net (Surplus) / Deficit of Trading Operations,ALLGAS (WAKEFIELD) LTD ,Building Materials,Revenue,160680,128,18/08/2014,108.00,Nil,Plumbing/Heating Equipment & Supplies,GPC,Not yet available,
Wakefield MDC,E08000036,30/09/2014,BUSINESS,A,Net (Surplus) / Deficit of Trading Operations,ALLGAS (WAKEFIELD) LTD ,Building Materials,Revenue,160683,350,27/08/2014,289.76,Nil,Plumbing/Heating Equipment & Supplies,GPC,Not yet available,
Wakefield MDC,E08000036,30/09/2014,BUSINESS,A,Net (Surplus) / Deficit of Trading Operations,ALLGAS (WAKEFIELD) LTD ,Building Materials,Revenue,160686,1073,09/09/2014,5.33,Nil,Plumbing/Heating Equipment & Supplies,GPC,Not yet available,
Wakefield MDC,E08000036,30/09/2014,BUSINESS,A,Net (Surplus) / Deficit of Trading Operations,ALLGAS (WAKEFIELD) LTD ,Building Materials,Revenue,160680,124,18/08/2014,252.98,Nil,Plumbing/Heating Equipment & Supplies,GPC,Not yet available,
Wakefield MDC,E08000036,30/09/2014,BUSINESS,A,Net (Surplus) / Deficit of Trading Operations,ALLGAS (WAKEFIELD) LTD ,Building Materials,Revenue,160690,3853,25/09/2014,152.76,Nil,Plumbing/Heating Equipment & Supplies,GPC,Not yet available,
Wakefield MDC,E08000036,30/09/2014,BUSINESS,A,Net (Surplus) / Deficit of Trading Operations,ALLGAS (WAKEFIELD) LTD ,Building Materials,Revenue,160692,851,30/09/2014,350.00,Nil,Plumbing/Heating Equipment & Supplies,GPC,Not yet available,
Wakefield MDC,E08000036,30/09/2014,BUSINESS,A,Net (Surplus) / Deficit of Trading Operations,ALLGAS (WAKEFIELD) LTD ,Building Materials,Revenue,160680,122,18/08/2014,208.58,Nil,Plumbing/Heating Equipment & Supplies,GPC,Not yet available,
Wakefield MDC,E08000036,30/09/2014,BUSINESS,A,Net (Surplus) / Deficit of Trading Operations,ALLGAS (WAKEFIELD) LTD ,Building Materials,Revenue,160690,3528,25/09/2014,28.92,Nil,Plumbing/Heating Equipment & Supplies,GPC,Not yet available,
Wakefield MDC,E08000036,30/09/2014,BUSINESS,A,Net (Surplus) / Deficit of Trading Operations,ALLGAS (WAKEFIELD) LTD ,Building Materials,Revenue,160680,126,18/08/2014,58.21,Nil,Plumbing/Heating Equipment & Supplies,GPC,Not yet available,
Wakefield MDC,E08000036,30/09/2014,BUSINESS,A,Net (Surplus) / Deficit of Trading Operations,ALLGAS (WAKEFIELD) LTD ,Building Materials,Revenue,160680,120,18/08/2014,198.52,Nil,Plumbing/Heating Equipment & Supplies,GPC,Not yet available,
Wakefield MDC,E08000036,30/09/2014,BUSINESS,A,Net (Surplus) / Deficit of Trading Operations,ALLGAS (WAKEFIELD) LTD ,Building Materials,Revenue,160663,989,18/07/2014,103.47,Nil,Plumbing/Heating Equipment & Supplies,GPC,Not yet available,
Wakefield MDC,E08000036,30/09/2014,BUSINESS,A,Net (Surplus) / Deficit of Trading Operations,ALLGAS (WAKEFIELD) LTD ,Building Materials,Revenue,160662,1469,17/07/2014,172.52,Nil,Plumbing/Heating Equipment & Supplies,GPC,Not yet available,
Wakefield MDC,E08000036,30/09/2014,BUSINESS,A,Net (Surplus) / Deficit of Trading Operations,ALLGAS (WAKEFIELD) LTD ,Building Materials,Revenue,160692,613,30/09/2014,24.43,Nil,Plumbing/Heating Equipment & Supplies,GPC,Not yet available,
Wakefield MDC,E08000036,30/09/2014,BUSINESS,A,Net (Surplus) / Deficit of Trading Operations,ALLGAS (WAKEFIELD) LTD ,Building Materials,Revenue,160662,1467,17/07/2014,39.89,Nil,Plumbing/Heating Equipment & Supplies,GPC,Not yet available,
Wakefield MDC,E08000036,30/09/2014,BUSINESS,A,Net (Surplus) / Deficit of Trading Operations,ALLGAS (WAKEFIELD) LTD ,Building Materials,Revenue,160680,116,18/08/2014,213.82,Nil,Plumbing/Heating Equipment & Supplies,GPC,Not yet available,
Wakefield MDC,E08000036,30/09/2014,BUSINESS,A,Net (Surplus) / Deficit of Trading Operations,ALLGAS (WAKEFIELD) LTD ,Building Materials,Revenue,160662,1465,17/07/2014,18.62,Nil,Plumbing/Heating Equipment & Supplies,GPC,Not yet available,
Wakefield MDC,E08000036,30/09/2014,BUSINESS,A,Net (Surplus) / Deficit of Trading Operations,ALLGAS (WAKEFIELD) LTD ,Building Materials,Revenue,160689,4036,22/09/2014,132.57,Nil,Plumbing/Heating Equipment & Supplies,GPC,Not yet available,
Wakefield MDC,E08000036,30/09/2014,BUSINESS,A,Net (Surplus) / Deficit of Trading Operations,ALLGAS (WAKEFIELD) LTD ,Building Materials,Revenue,160680,112,18/08/2014,69.01,Nil,Plumbing/Heating Equipment & Supplies,GPC,Not yet available,
Wakefield MDC,E08000036,30/09/2014,BUSINESS,A,Net (Surplus) / Deficit of Trading Operations,ALLGAS (WAKEFIELD) LTD ,Building Materials,Revenue,160692,611,30/09/2014,162.11,Nil,Plumbing/Heating Equipment & Supplies,GPC,Not yet available,
Wakefield MDC,E08000036,30/09/2014,BUSINESS,A,Net (Surplus) / Deficit of Trading Operations,ALLGAS (WAKEFIELD) LTD ,Building Materials,Revenue,160683,354,27/08/2014,162.11,Nil,Plumbing/Heating Equipment & Supplies,GPC,Not yet available,
Wakefield MDC,E08000036,30/09/2014,BUSINESS,A,Net (Surplus) / Deficit of Trading Operations,ALLGAS (WAKEFIELD) LTD ,Building Materials,Revenue,160660,5068,11/07/2014,4.77,Nil,Plumbing/Heating Equipment & Supplies,GPC,Not yet available,
Wakefield MDC,E08000036,30/09/2014,BUSINESS,A,Net (Surplus) / Deficit of Trading Operations,ALLGAS (WAKEFIELD) LTD ,Building Materials,Revenue,160686,1071,09/09/2014,92.64,Nil,Plumbing/Heating Equipment & Supplies,GPC,Not yet available,
Wakefield MDC,E08000036,30/09/2014,BUSINESS,A,Net (Surplus) / Deficit of Trading Operations,ALLGAS (WAKEFIELD) LTD ,Building Materials,Revenue,160686,1067,09/09/2014,28.29,Nil,Plumbing/Heating Equipment & Supplies,GPC,Not yet available,
Wakefield MDC,E08000036,30/09/2014,BUSINESS,A,Net (Surplus) / Deficit of Trading Operations,ALLGAS (WAKEFIELD) LTD ,Building Materials,Revenue,160663,987,18/07/2014,162.11,Nil,Plumbing/Heating Equipment & Supplies,GPC,Not yet available,
Wakefield MDC,E08000036,30/09/2014,BUSINESS,A,Net (Surplus) / Deficit of Trading Operations,ALLGAS (WAKEFIELD) LTD ,Building Materials,Revenue,160689,3740,22/09/2014,7.55,Nil,Plumbing/Heating Equipment & Supplies,GPC,Not yet available,
Wakefield MDC,E08000036,30/09/2014,BUSINESS,A,Net (Surplus) / Deficit of Trading Operations,ALLGAS (WAKEFIELD) LTD ,Building Materials,Revenue,160663,991,18/07/2014,126.52,Nil,Plumbing/Heating Equipment & Supplies,GPC,Not yet available,
Wakefield MDC,E08000036,30/09/2014,BUSINESS,A,Net (Surplus) / Deficit of Trading Operations,ALLGAS (WAKEFIELD) LTD ,Building Materials,Revenue,160686,1069,09/09/2014,199.96,Nil,Plumbing/Heating Equipment & Supplies,GPC,Not yet available,
Wakefield MDC,E08000036,30/09/2014,BUSINESS,A,Net (Surplus) / Deficit of Trading Operations,ALLGAS (WAKEFIELD) LTD ,Building Materials,Revenue,160680,114,18/08/2014,9.47,Nil,Plumbing/Heating Equipment & Supplies,GPC,Not yet available,
Wakefield MDC,E08000036,30/09/2014,BUSINESS,A,Net (Surplus) / Deficit of Trading Operations,ALLGAS (WAKEFIELD) LTD ,Building Materials,Revenue,160690,3851,25/09/2014,48.98,Nil,Plumbing/Heating Equipment & Supplies,GPC,Not yet available,
Wakefield MDC,E08000036,30/09/2014,BUSINESS,A,Net (Surplus) / Deficit of Trading Operations,ALLGAS (WAKEFIELD) LTD ,Building Materials,Revenue,160662,1463,17/07/2014,98.03,Nil,Plumbing/Heating Equipment & Supplies,GPC,Not yet available,
Wakefield MDC,E08000036,30/09/2014,BUSINESS,A,Net (Surplus) / Deficit of Trading Operations,ALLGAS (WAKEFIELD) LTD ,Building Materials,Revenue,160660,5066,11/07/2014,4.77,Nil,Plumbing/Heating Equipment & Supplies,GPC,Not yet available,
Wakefield MDC,E08000036,30/09/2014,BUSINESS,A,Net (Surplus) / Deficit of Trading Operations,ALLGAS (WAKEFIELD) LTD ,Building Materials,Revenue,160683,352,27/08/2014,42.87,Nil,Plumbing/Heating Equipment & Supplies,GPC,Not yet available,
Wakefield MDC,E08000036,30/09/2014,BUSINESS,A,Net (Surplus) / Deficit of Trading Operations,ALLGAS (WAKEFIELD) LTD ,Building Materials,Revenue,160674,74,07/08/2014,63.16,Nil,Plumbing/Heating Equipment & Supplies,GPC,Not yet available,
Wakefield MDC,E08000036,30/09/2014,BUSINESS,A,Net (Surplus) / Deficit of Trading Operations,ALLGAS (WAKEFIELD) LTD ,Building Materials,Revenue,160690,3857,25/09/2014,4.43,Nil,Plumbing/Heating Equipment & Supplies,GPC,Not yet available,
Wakefield MDC,E08000036,30/09/2014,BUSINESS,A,Net (Surplus) / Deficit of Trading Operations,ALLGAS (WAKEFIELD) LTD ,Building Materials,Revenue,160662,1471,17/07/2014,32.50,Nil,Plumbing/Heating Equipment & Supplies,GPC,Not yet available,
Wakefield MDC,E08000036,30/09/2014,BUSINESS,A,Net (Surplus) / Deficit of Trading Operations,ALLGAS (WAKEFIELD) LTD ,Building Materials,Revenue,160690,3855,25/09/2014,108.50,Nil,Plumbing/Heating Equipment & Supplies,GPC,Not yet available,
Wakefield MDC,E08000036,30/09/2014,BUSINESS,A,Net (Surplus) / Deficit of Trading Operations,ALLGAS (WAKEFIELD) LTD ,Building Materials,Revenue,160684,263,28/08/2014,23.30,Nil,Plumbing/Heating Equipment & Supplies,GPC,Not yet available,
Wakefield MDC,E08000036,30/09/2014,BUSINESS,A,Net (Surplus) / Deficit of Trading Operations,ALLGAS (WAKEFIELD) LTD ,Building Materials,Revenue,160674,72,07/08/2014,50.39,Nil,Plumbing/Heating Equipment & Supplies,GPC,Not yet available,
Wakefield MDC,E08000036,30/09/2014,BUSINESS,A,Net (Surplus) / Deficit of Trading Operations,ALLGAS (WAKEFIELD) LTD ,Building Materials,Revenue,160674,70,07/08/2014,126.03,Nil,Plumbing/Heating Equipment & Supplies,GPC,Not yet available,
Wakefield MDC,E08000036,30/09/2014,BUSINESS,A,Net (Surplus) / Deficit of Trading Operations,ALLGAS (WAKEFIELD) LTD ,Building Materials,Revenue,160692,537,30/09/2014,80.39,Nil,Plumbing/Heating Equipment & Supplies,GPC,Not yet available,
Wakefield MDC,E08000036,30/09/2014,BUSINESS,A,Net (Surplus) / Deficit of Trading Operations,ALLGAS (WAKEFIELD) LTD ,Building Materials,Revenue,160682,86,22/08/2014,1.22,Nil,Plumbing/Heating Equipment & Supplies,GPC,Not yet available,
Wakefield MDC,E08000036,30/09/2014,BUSINESS,A,Net (Surplus) / Deficit of Trading Operations,ALLGAS (WAKEFIELD) LTD ,Building Materials,Revenue,160690,3264,25/09/2014,29.85,Nil,Plumbing/Heating Equipment & Supplies,GPC,Not yet available,
Wakefield MDC,E08000036,30/09/2014,BUSINESS,A,Net (Surplus) / Deficit of Trading Operations,ALLGAS (WAKEFIELD) LTD ,Building Materials,Revenue,160682,90,22/08/2014,1.43,Nil,Plumbing/Heating Equipment & Supplies,GPC,Not yet available,
Wakefield MDC,E08000036,30/09/2014,BUSINESS,A,Net (Surplus) / Deficit of Trading Operations,AMAZON,Building Materials,Revenue,160681,35,20/08/2014,19.70,Nil,Book Stores,GPC,Not yet available,
Wakefield MDC,E08000036,30/09/2014,BUSINESS,A,Net (Surplus) / Deficit of Trading Operations,AMAZON,Building Materials,Revenue,160678,,13/08/2014,12.50,Nil,Direct Marketing - Other Direct Marketers - Not Elsewhere Classified,GPC,Not yet available,
Wakefield MDC,E08000036,30/09/2014,BUSINESS,A,Net (Surplus) / Deficit of Trading Operations,AO RETAIL LIMITED ,Building Materials,Revenue,160672,7,05/08/2014,324.99,Nil,Household Appliance Stores,GPC,Not yet available,
Wakefield MDC,E08000036,30/09/2014,BUSINESS,A,Net (Surplus) / Deficit of Trading Operations,B & Q ,Building Materials,Revenue,160690,1557,25/09/2014,16.65,Nil,Lumber/Building Materials Stores,GPC,Not yet available,
Wakefield MDC,E08000036,30/09/2014,BUSINESS,A,Net (Surplus) / Deficit of Trading Operations,B & Q ,Building Materials,Revenue,160690,1537,25/09/2014,13.32,Nil,Lumber/Building Materials Stores,GPC,Not yet available,
Wakefield MDC,E08000036,30/09/2014,BUSINESS,A,Net (Surplus) / Deficit of Trading Operations,BES LTD ,Building Materials,Revenue,160690,3905,25/09/2014,357.98,Nil,Hardware Stores,GPC,Not yet available,
Wakefield MDC,E08000036,30/09/2014,BUSINESS,A,Net (Surplus) / Deficit of Trading Operations,BILCO UK LTD,Building Materials,Revenue,160683,513,27/08/2014,685.00,Nil,Durable Goods - Not Elsewhere Classified,GPC,Not yet available,
Wakefield MDC,E08000036,30/09/2014,BUSINESS,A,Net (Surplus) / Deficit of Trading Operations,BILCO UK LTD,Building Materials,Revenue,160686,634,09/09/2014,375.00,Nil,Durable Goods - Not Elsewhere Classified,GPC,Not yet available,
Wakefield MDC,E08000036,30/09/2014,BUSINESS,A,Net (Surplus) / Deficit of Trading Operations,BMB BUILDBASE ,Building Materials,Revenue,160669,99,31/07/2014,5.36,Nil,Lumber/Building Materials Stores,GPC,Not yet available,
Wakefield MDC,E08000036,30/09/2014,BUSINESS,A,Net (Surplus) / Deficit of Trading Operations,BMB BUILDBASE ,Building Materials,Revenue,160683,356,27/08/2014,9.58,Nil,Lumber/Building Materials Stores,GPC,Not yet available,
Wakefield MDC,E08000036,30/09/2014,BUSINESS,A,Net (Surplus) / Deficit of Trading Operations,BOC GASES,Building Materials,Revenue,160690,482,25/09/2014,11.89,Nil,Household Appliance Stores,GPC,Not yet available,
Wakefield MDC,E08000036,30/09/2014,BUSINESS,A,Net (Surplus) / Deficit of Trading Operations,BOC GASES,Building Materials,Revenue,160690,791,25/09/2014,10.40,Nil,Household Appliance Stores,GPC,Not yet available,
Wakefield MDC,E08000036,30/09/2014,BUSINESS,A,Net (Surplus) / Deficit of Trading Operations,BOC GASES,Building Materials,Revenue,160690,807,25/09/2014,0.79,Nil,Household Appliance Stores,GPC,Not yet available,
Wakefield MDC,E08000036,30/09/2014,BUSINESS,A,Net (Surplus) / Deficit of Trading Operations,BOC GASES,Building Materials,Revenue,160690,703,25/09/2014,36.44,Nil,Household Appliance Stores,GPC,Not yet available,
Wakefield MDC,E08000036,30/09/2014,BUSINESS,A,Net (Surplus) / Deficit of Trading Operations,BOC GASES,Building Materials,Revenue,160690,789,25/09/2014,0.79,Nil,Household Appliance Stores,GPC,Not yet available,
Wakefield MDC,E08000036,30/09/2014,BUSINESS,A,Net (Surplus) / Deficit of Trading Operations,BSS GROUP PLC,Building Materials,Revenue,160683,391,27/08/2014,14.44,Nil,Heating/Plumbing/Air-Con Contractors,GPC,Not yet available,
Wakefield MDC,E08000036,30/09/2014,BUSINESS,A,Net (Surplus) / Deficit of Trading Operations,BSS GROUP PLC,Building Materials,Revenue,160683,389,27/08/2014,12.00,Nil,Heating/Plumbing/Air-Con Contractors,GPC,Not yet available,
Wakefield MDC,E08000036,30/09/2014,BUSINESS,A,Net (Surplus) / Deficit of Trading Operations,BSS GROUP PLC,Building Materials,Revenue,160683,393,27/08/2014,17.18,Nil,Heating/Plumbing/Air-Con Contractors,GPC,Not yet available,
Wakefield MDC,E08000036,30/09/2014,BUSINESS,A,Net (Surplus) / Deficit of Trading Operations,BSS GROUP PLC,Building Materials,Revenue,160683,387,27/08/2014,10.68,Nil,Heating/Plumbing/Air-Con Contractors,GPC,Not yet available,
Wakefield MDC,E08000036,30/09/2014,BUSINESS,A,Net (Surplus) / Deficit of Trading Operations,BSS GROUP PLC,Building Materials,Revenue,160684,290,28/08/2014,5.67,Nil,Heating/Plumbing/Air-Con Contractors,GPC,Not yet available,
Wakefield MDC,E08000036,30/09/2014,BUSINESS,A,Net (Surplus) / Deficit of Trading Operations,BSS GROUP PLC,Building Materials,Revenue,160683,385,27/08/2014,12.36,Nil,Heating/Plumbing/Air-Con Contractors,GPC,Not yet available,
Wakefield MDC,E08000036,30/09/2014,BUSINESS,A,Net (Surplus) / Deficit of Trading Operations,BSS GROUP PLC,Building Materials,Revenue,160669,95,31/07/2014,33.21,Nil,Heating/Plumbing/Air-Con Contractors,GPC,Not yet available,
Wakefield MDC,E08000036,30/09/2014,BUSINESS,A,Net (Surplus) / Deficit of Trading Operations,BSS GROUP PLC,Building Materials,Revenue,160683,338,27/08/2014,13.02,Nil,Heating/Plumbing/Air-Con Contractors,GPC,Not yet available,
Wakefield MDC,E08000036,30/09/2014,BUSINESS,A,Net (Surplus) / Deficit of Trading Operations,BSS GROUP PLC,Building Materials,Revenue,160683,342,27/08/2014,3.00,Nil,Heating/Plumbing/Air-Con Contractors,GPC,Not yet available,
Wakefield MDC,E08000036,30/09/2014,BUSINESS,A,Net (Surplus) / Deficit of Trading Operations,BSS GROUP PLC,Building Materials,Revenue,160683,344,27/08/2014,11.20,Nil,Heating/Plumbing/Air-Con Contractors,GPC,Not yet available,
Wakefield MDC,E08000036,30/09/2014,BUSINESS,A,Net (Surplus) / Deficit of Trading Operations,BSS GROUP PLC,Building Materials,Revenue,160683,346,27/08/2014,9.12,Nil,Heating/Plumbing/Air-Con Contractors,GPC,Not yet available,
Wakefield MDC,E08000036,30/09/2014,BUSINESS,A,Net (Surplus) / Deficit of Trading Operations,BSS GROUP PLC,Building Materials,Revenue,160683,340,27/08/2014,16.32,Nil,Heating/Plumbing/Air-Con Contractors,GPC,Not yet available,
Wakefield MDC,E08000036,30/09/2014,BUSINESS,A,Net (Surplus) / Deficit of Trading Operations,BSS GROUP PLC,Building Materials,Revenue,160683,383,27/08/2014,26.89,Nil,Lumber/Building Materials Stores,GPC,Not yet available,
Wakefield MDC,E08000036,30/09/2014,BUSINESS,A,Net (Surplus) / Deficit of Trading Operations,BSS GROUP PLC,Building Materials,Revenue,160682,113,22/08/2014,38.72,Nil,Lumber/Building Materials Stores,GPC,Not yet available,
Wakefield MDC,E08000036,30/09/2014,BUSINESS,A,Net (Surplus) / Deficit of Trading Operations,BSS GROUP PLC,Building Materials,Revenue,160682,111,22/08/2014,-50.40,Nil,Lumber/Building Materials Stores,GPC,Not yet available,
Wakefield MDC,E08000036,30/09/2014,BUSINESS,A,Net (Surplus) / Deficit of Trading Operations,BSS GROUP PLC,Building Materials,Revenue,160683,381,27/08/2014,50.40,Nil,Lumber/Building Materials Stores,GPC,Not yet available,
Wakefield MDC,E08000036,30/09/2014,BUSINESS,A,Net (Surplus) / Deficit of Trading Operations,BSS GROUP PLC,Building Materials,Revenue,160690,2046,25/09/2014,93.95,Nil,Lumber/Building Materials Stores,GPC,Not yet available,
Wakefield MDC,E08000036,30/09/2014,BUSINESS,A,Net (Surplus) / Deficit of Trading Operations,BSS GROUP PLC,Building Materials,Revenue,160690,2456,25/09/2014,33.23,Nil,Lumber/Building Materials Stores,GPC,Not yet available,
Wakefield MDC,E08000036,30/09/2014,BUSINESS,A,Net (Surplus) / Deficit of Trading Operations,BSS GROUP PLC,Building Materials,Revenue,160690,2814,25/09/2014,40.61,Nil,Lumber/Building Materials Stores,GPC,Not yet available,
Wakefield MDC,E08000036,30/09/2014,BUSINESS,A,Net (Surplus) / Deficit of Trading Operations,BSS GROUP PLC,Building Materials,Revenue,160690,2454,25/09/2014,6.67,Nil,Lumber/Building Materials Stores,GPC,Not yet available,
Wakefield MDC,E08000036,30/09/2014,BUSINESS,A,Net (Surplus) / Deficit of Trading Operations,BSS GROUP PLC,Building Materials,Revenue,160690,2816,25/09/2014,40.62,Nil,Lumber/Building Materials Stores,GPC,Not yet available,
Wakefield MDC,E08000036,30/09/2014,BUSINESS,A,Net (Surplus) / Deficit of Trading Operations,BSS GROUP PLC,Building Materials,Revenue,160690,2215,25/09/2014,11.14,Nil,Lumber/Building Materials Stores,GPC,Not yet available,
Wakefield MDC,E08000036,30/09/2014,BUSINESS,A,Net (Surplus) / Deficit of Trading Operations,BSS GROUP PLC,Building Materials,Revenue,160690,2048,25/09/2014,17.60,Nil,Lumber/Building Materials Stores,GPC,Not yet available,
Wakefield MDC,E08000036,30/09/2014,BUSINESS,A,Net (Surplus) / Deficit of Trading Operations,BSS GROUP PLC,Building Materials,Revenue,160690,2719,25/09/2014,84.99,Nil,Lumber/Building Materials Stores,GPC,Not yet available,
Wakefield MDC,E08000036,30/09/2014,BUSINESS,A,Net (Surplus) / Deficit of Trading Operations,BSS GROUP PLC ,Building Materials,Revenue,160661,250,16/07/2014,132.36,Nil,Heating/Plumbing/Air-Con Contractors,GPC,Not yet available,
Wakefield MDC,E08000036,30/09/2014,BUSINESS,A,Net (Surplus) / Deficit of Trading Operations,BSS PTS WAKEFIELD ,Building Materials,Revenue,160661,2084,16/07/2014,18.32,Nil,Lumber/Building Materials Stores,GPC,Not yet available,
Wakefield MDC,E08000036,30/09/2014,BUSINESS,A,Net (Surplus) / Deficit of Trading Operations,BURDENS ZB ,Building Materials,Revenue,160689,2964,22/09/2014,4.32,Nil,Heating/Plumbing/Air-Con Contractors,GPC,Not yet available,
Wakefield MDC,E08000036,30/09/2014,BUSINESS,A,Net (Surplus) / Deficit of Trading Operations,BURDENS ZB ,Building Materials,Revenue,160689,2990,22/09/2014,5.16,Nil,Heating/Plumbing/Air-Con Contractors,GPC,Not yet available,
Wakefield MDC,E08000036,30/09/2014,BUSINESS,A,Net (Surplus) / Deficit of Trading Operations,BURDENS ZB ,Building Materials,Revenue,160689,2992,22/09/2014,3.66,Nil,Heating/Plumbing/Air-Con Contractors,GPC,Not yet available,
Wakefield MDC,E08000036,30/09/2014,BUSINESS,A,Net (Surplus) / Deficit of Trading Operations,BURDENS ZB ,Building Materials,Revenue,160689,2635,22/09/2014,55.80,Nil,Heating/Plumbing/Air-Con Contractors,GPC,Not yet available,
Wakefield MDC,E08000036,30/09/2014,BUSINESS,A,Net (Surplus) / Deficit of Trading Operations,BURDENS ZB ,Building Materials,Revenue,160689,2886,22/09/2014,5.16,Nil,Heating/Plumbing/Air-Con Contractors,GPC,Not yet available,
Wakefield MDC,E08000036,30/09/2014,BUSINESS,A,Net (Surplus) / Deficit of Trading Operations,CALDER SECURITY,Building Materials,Revenue,160680,142,18/08/2014,28.21,Nil,Hardware Stores,GPC,Not yet available,
Wakefield MDC,E08000036,30/09/2014,BUSINESS,A,Net (Surplus) / Deficit of Trading Operations,CALDER SECURITY ,Building Materials,Revenue,160661,2856,16/07/2014,13.56,Nil,Hardware Stores,GPC,Not yet available,
Wakefield MDC,E08000036,30/09/2014,BUSINESS,A,Net (Surplus) / Deficit of Trading Operations,CALDER SECURITY ,Building Materials,Revenue,160674,76,07/08/2014,23.85,Nil,Hardware Stores,GPC,Not yet available,
Wakefield MDC,E08000036,30/09/2014,BUSINESS,A,Net (Surplus) / Deficit of Trading Operations,CAPITA GAS ,Building Materials,Revenue,160660,4016,11/07/2014,2.20,Nil,Govt Services - Not Elsewhere Classified,GPC,Not yet available,
Wakefield MDC,E08000036,30/09/2014,BUSINESS,A,Net (Surplus) / Deficit of Trading Operations,CITY ELECTRICAL,Building Materials,Revenue,160687,344,10/09/2014,1.56,Nil,Lumber/Building Materials Stores,GPC,Not yet available,
Wakefield MDC,E08000036,30/09/2014,BUSINESS,A,Net (Surplus) / Deficit of Trading Operations,COMMERCIAL CATERING,Building Materials,Revenue,160663,981,18/07/2014,137.72,Nil,Industrial Supplies - Not Elsewhere Classified,GPC,Not yet available,
Wakefield MDC,E08000036,30/09/2014,BUSINESS,A,Net (Surplus) / Deficit of Trading Operations,COMMERCIAL CATERING,Building Materials,Revenue,160663,979,18/07/2014,310.00,Nil,Industrial Supplies - Not Elsewhere Classified,GPC,Not yet available,
Wakefield MDC,E08000036,30/09/2014,BUSINESS,A,Net (Surplus) / Deficit of Trading Operations,COMMERCIAL CATERING,Building Materials,Revenue,160683,332,27/08/2014,140.75,Nil,Industrial Supplies - Not Elsewhere Classified,GPC,Not yet available,
Wakefield MDC,E08000036,30/09/2014,BUSINESS,A,Net (Surplus) / Deficit of Trading Operations,COMMERCIAL CATERING,Building Materials,Revenue,160693,482,01/10/2014,58.47,Nil,Industrial Supplies - Not Elsewhere Classified,GPC,Not yet available,
Wakefield MDC,E08000036,30/09/2014,BUSINESS,A,Net (Surplus) / Deficit of Trading Operations,COMMERCIAL CATERING,Building Materials,Revenue,160663,983,18/07/2014,66.01,Nil,Industrial Supplies - Not Elsewhere Classified,GPC,Not yet available,
Wakefield MDC,E08000036,30/09/2014,BUSINESS,A,Net (Surplus) / Deficit of Trading Operations,COMMERCIAL CATERING,Building Materials,Revenue,160683,326,27/08/2014,-106.62,Nil,Industrial Supplies - Not Elsewhere Classified,GPC,Not yet available,
Wakefield MDC,E08000036,30/09/2014,BUSINESS,A,Net (Surplus) / Deficit of Trading Operations,COMMERCIAL CATERING,Building Materials,Revenue,160693,540,01/10/2014,44.87,Nil,Industrial Supplies - Not Elsewhere Classified,GPC,Not yet available,
Wakefield MDC,E08000036,30/09/2014,BUSINESS,A,Net (Surplus) / Deficit of Trading Operations,COMMERCIAL CATERING,Building Materials,Revenue,160683,328,27/08/2014,98.60,Nil,Industrial Supplies - Not Elsewhere Classified,GPC,Not yet available,
Wakefield MDC,E08000036,30/09/2014,BUSINESS,A,Net (Surplus) / Deficit of Trading Operations,COMMERCIAL CATERING,Building Materials,Revenue,160663,985,18/07/2014,27.20,Nil,Industrial Supplies - Not Elsewhere Classified,GPC,Not yet available,
Wakefield MDC,E08000036,30/09/2014,BUSINESS,A,Net (Surplus) / Deficit of Trading Operations,COMMERCIAL CATERING,Building Materials,Revenue,160674,68,07/08/2014,80.73,Nil,Industrial Supplies - Not Elsewhere Classified,GPC,Not yet available,
Wakefield MDC,E08000036,30/09/2014,BUSINESS,A,Net (Surplus) / Deficit of Trading Operations,COMMERCIAL CATERING,Building Materials,Revenue,160693,487,01/10/2014,65.47,Nil,Industrial Supplies - Not Elsewhere Classified,GPC,Not yet available,
Wakefield MDC,E08000036,30/09/2014,BUSINESS,A,Net (Surplus) / Deficit of Trading Operations,COMMERCIAL CATERING,Building Materials,Revenue,160693,600,01/10/2014,43.00,Nil,Industrial Supplies - Not Elsewhere Classified,GPC,Not yet available,
Wakefield MDC,E08000036,30/09/2014,BUSINESS,A,Net (Surplus) / Deficit of Trading Operations,COMMERCIAL CATERING,Building Materials,Revenue,160690,1873,25/09/2014,140.75,Nil,Industrial Supplies - Not Elsewhere Classified,GPC,Not yet available,
Wakefield MDC,E08000036,30/09/2014,BUSINESS,A,Net (Surplus) / Deficit of Trading Operations,COMMERCIAL CATERING,Building Materials,Revenue,160663,977,18/07/2014,49.80,Nil,Industrial Supplies - Not Elsewhere Classified,GPC,Not yet available,
Wakefield MDC,E08000036,30/09/2014,BUSINESS,A,Net (Surplus) / Deficit of Trading Operations,COMMERCIAL CATERING,Building Materials,Revenue,160693,542,01/10/2014,33.86,Nil,Industrial Supplies - Not Elsewhere Classified,GPC,Not yet available,
Wakefield MDC,E08000036,30/09/2014,BUSINESS,A,Net (Surplus) / Deficit of Trading Operations,COMMERCIAL CATERING,Building Materials,Revenue,160690,1559,25/09/2014,15.93,Nil,Industrial Supplies - Not Elsewhere Classified,GPC,Not yet available,
Wakefield MDC,E08000036,30/09/2014,BUSINESS,A,Net (Surplus) / Deficit of Trading Operations,CROSSLING BANCROFT,Building Materials,Revenue,160686,1048,09/09/2014,97.75,Nil,Plumbing/Heating Equipment & Supplies,GPC,Not yet available,
Wakefield MDC,E08000036,30/09/2014,BUSINESS,A,Net (Surplus) / Deficit of Trading Operations,CROSSLING BANCROFT,Building Materials,Revenue,160686,937,09/09/2014,21.19,Nil,Plumbing/Heating Equipment & Supplies,GPC,Not yet available,
Wakefield MDC,E08000036,30/09/2014,BUSINESS,A,Net (Surplus) / Deficit of Trading Operations,CROSSLING BANCROFT,Building Materials,Revenue,160689,3980,22/09/2014,28.60,Nil,Plumbing/Heating Equipment & Supplies,GPC,Not yet available,
Wakefield MDC,E08000036,30/09/2014,BUSINESS,A,Net (Surplus) / Deficit of Trading Operations,CROSSLING BANCROFT,Building Materials,Revenue,160690,3865,25/09/2014,81.00,Nil,Plumbing/Heating Equipment & Supplies,GPC,Not yet available,
Wakefield MDC,E08000036,30/09/2014,BUSINESS,A,Net (Surplus) / Deficit of Trading Operations,CROSSLING BANCROFT,Building Materials,Revenue,160680,130,18/08/2014,72.05,Nil,Plumbing/Heating Equipment & Supplies,GPC,Not yet available,
Wakefield MDC,E08000036,30/09/2014,BUSINESS,A,Net (Surplus) / Deficit of Trading Operations,CROSSLING BANCROFT,Building Materials,Revenue,160680,132,18/08/2014,22.68,Nil,Plumbing/Heating Equipment & Supplies,GPC,Not yet available,
Wakefield MDC,E08000036,30/09/2014,BUSINESS,A,Net (Surplus) / Deficit of Trading Operations,CROSSLING BANCROFT ,Building Materials,Revenue,160680,144,18/08/2014,187.91,Nil,Plumbing/Heating Equipment & Supplies,GPC,Not yet available,
Wakefield MDC,E08000036,30/09/2014,BUSINESS,A,Net (Surplus) / Deficit of Trading Operations,CROSSLING BANCROFT ,Building Materials,Revenue,160690,1464,25/09/2014,64.16,Nil,Plumbing/Heating Equipment & Supplies,GPC,Not yet available,
Wakefield MDC,E08000036,30/09/2014,BUSINESS,A,Net (Surplus) / Deficit of Trading Operations,CROSSLING BANCROFT ,Building Materials,Revenue,160690,1365,25/09/2014,154.51,Nil,Plumbing/Heating Equipment & Supplies,GPC,Not yet available,
Wakefield MDC,E08000036,30/09/2014,BUSINESS,A,Net (Surplus) / Deficit of Trading Operations,CROSSLING BANCROFT ,Building Materials,Revenue,160689,3969,22/09/2014,333.33,Nil,Plumbing/Heating Equipment & Supplies,GPC,Not yet available,
Wakefield MDC,E08000036,30/09/2014,BUSINESS,A,Net (Surplus) / Deficit of Trading Operations,CROSSLING BANCROFT ,Building Materials,Revenue,160689,3938,22/09/2014,106.35,Nil,Plumbing/Heating Equipment & Supplies,GPC,Not yet available,
Wakefield MDC,E08000036,30/09/2014,BUSINESS,A,Net (Surplus) / Deficit of Trading Operations,CROSSLING BANCROFT ,Building Materials,Revenue,160689,3974,22/09/2014,333.33,Nil,Plumbing/Heating Equipment & Supplies,GPC,Not yet available,
Wakefield MDC,E08000036,30/09/2014,BUSINESS,A,Net (Surplus) / Deficit of Trading Operations,CROSSLING BANCROFT ,Building Materials,Revenue,160689,3967,22/09/2014,333.33,Nil,Plumbing/Heating Equipment & Supplies,GPC,Not yet available,
Wakefield MDC,E08000036,30/09/2014,BUSINESS,A,Net (Surplus) / Deficit of Trading Operations,CROSSLING BANCROFT ,Building Materials,Revenue,160662,1538,17/07/2014,90.50,Nil,Plumbing/Heating Equipment & Supplies,GPC,Not yet available,
Wakefield MDC,E08000036,30/09/2014,BUSINESS,A,Net (Surplus) / Deficit of Trading Operations,CROSSLING BANCROFT ,Building Materials,Revenue,160680,157,18/08/2014,131.83,Nil,Plumbing/Heating Equipment & Supplies,GPC,Not yet available,
Wakefield MDC,E08000036,30/09/2014,BUSINESS,A,Net (Surplus) / Deficit of Trading Operations,CROSSLING BANCROFT ,Building Materials,Revenue,160680,159,18/08/2014,119.68,Nil,Plumbing/Heating Equipment & Supplies,GPC,Not yet available,
Wakefield MDC,E08000036,30/09/2014,BUSINESS,A,Net (Surplus) / Deficit of Trading Operations,CROSSLING BANCROFT ,Building Materials,Revenue,160666,4,25/07/2014,4.51,Nil,Plumbing/Heating Equipment & Supplies,GPC,Not yet available,
Wakefield MDC,E08000036,30/09/2014,BUSINESS,A,Net (Surplus) / Deficit of Trading Operations,CROSSLING BANCROFT ,Building Materials,Revenue,160689,3747,22/09/2014,15.17,Nil,Plumbing/Heating Equipment & Supplies,GPC,Not yet available,
Wakefield MDC,E08000036,30/09/2014,BUSINESS,A,Net (Surplus) / Deficit of Trading Operations,CROSSLING BANCROFT ,Building Materials,Revenue,160690,2784,25/09/2014,24.30,Nil,Plumbing/Heating Equipment & Supplies,GPC,Not yet available,
Wakefield MDC,E08000036,30/09/2014,BUSINESS,A,Net (Surplus) / Deficit of Trading Operations,CROSSLING BANCROFT ,Building Materials,Revenue,160683,408,27/08/2014,30.86,Nil,Plumbing/Heating Equipment & Supplies,GPC,Not yet available,
Wakefield MDC,E08000036,30/09/2014,BUSINESS,A,Net (Surplus) / Deficit of Trading Operations,CROSSLING BANCROFT ,Building Materials,Revenue,160684,265,28/08/2014,163.19,Nil,Plumbing/Heating Equipment & Supplies,GPC,Not yet available,
Wakefield MDC,E08000036,30/09/2014,BUSINESS,A,Net (Surplus) / Deficit of Trading Operations,DIXON HALL AND CO,Building Materials,Revenue,160680,118,18/08/2014,36.02,Nil,Hardware/Equipment/Supplies,GPC,Not yet available,
Wakefield MDC,E08000036,30/09/2014,BUSINESS,A,Net (Surplus) / Deficit of Trading Operations,DIXON HALL AND CO,Building Materials,Revenue,160680,110,18/08/2014,23.50,Nil,Hardware/Equipment/Supplies,GPC,Not yet available,
Wakefield MDC,E08000036,30/09/2014,BUSINESS,A,Net (Surplus) / Deficit of Trading Operations,DIXON HALL AND CO,Building Materials,Revenue,160690,773,25/09/2014,19.90,Nil,Hardware/Equipment/Supplies,GPC,Not yet available,
Wakefield MDC,E08000036,30/09/2014,BUSINESS,A,Net (Surplus) / Deficit of Trading Operations,DIXON HALL AND CO ,Building Materials,Revenue,160686,1013,09/09/2014,27.04,Nil,Hardware/Equipment/Supplies,GPC,Not yet available,
Wakefield MDC,E08000036,30/09/2014,BUSINESS,A,Net (Surplus) / Deficit of Trading Operations,DIXON HALL AND CO ,Building Materials,Revenue,160686,492,09/09/2014,79.00,Nil,Hardware/Equipment/Supplies,GPC,Not yet available,
Wakefield MDC,E08000036,30/09/2014,BUSINESS,A,Net (Surplus) / Deficit of Trading Operations,DIXON HALL AND CO ,Building Materials,Revenue,160686,490,09/09/2014,38.57,Nil,Hardware/Equipment/Supplies,GPC,Not yet available,
Wakefield MDC,E08000036,30/09/2014,BUSINESS,A,Net (Surplus) / Deficit of Trading Operations,DIXON HALL AND CO ,Building Materials,Revenue,160682,88,22/08/2014,79.00,Nil,Hardware/Equipment/Supplies,GPC,Not yet available,
Wakefield MDC,E08000036,30/09/2014,BUSINESS,A,Net (Surplus) / Deficit of Trading Operations,DIXON HALL AND CO ,Building Materials,Revenue,160661,5498,16/07/2014,41.82,Nil,Hardware/Equipment/Supplies,GPC,Not yet available,
Wakefield MDC,E08000036,30/09/2014,BUSINESS,A,Net (Surplus) / Deficit of Trading Operations,DIXON HALL AND CO ,Building Materials,Revenue,160686,1081,09/09/2014,5.14,Nil,Hardware/Equipment/Supplies,GPC,Not yet available,
Wakefield MDC,E08000036,30/09/2014,BUSINESS,A,Net (Surplus) / Deficit of Trading Operations,DIXON HALL AND CO ,Building Materials,Revenue,160686,1075,09/09/2014,18.41,Nil,Hardware/Equipment/Supplies,GPC,Not yet available,
Wakefield MDC,E08000036,30/09/2014,BUSINESS,A,Net (Surplus) / Deficit of Trading Operations,DIXON HALL AND CO ,Building Materials,Revenue,160686,1077,09/09/2014,23.56,Nil,Hardware/Equipment/Supplies,GPC,Not yet available,
Wakefield MDC,E08000036,30/09/2014,BUSINESS,A,Net (Surplus) / Deficit of Trading Operations,DIXON HALL AND CO ,Building Materials,Revenue,160683,379,27/08/2014,4.98,Nil,Lumber/Building Materials Stores,GPC,Not yet available,
Wakefield MDC,E08000036,30/09/2014,BUSINESS,A,Net (Surplus) / Deficit of Trading Operations,DRAIN CENTER,Building Materials,Revenue,160663,1228,18/07/2014,27.84,Nil,Heating/Plumbing/Air-Con Contractors,GPC,Not yet available,
Wakefield MDC,E08000036,30/09/2014,BUSINESS,A,Net (Surplus) / Deficit of Trading Operations,DUNBRIK YORK LTD,Building Materials,Revenue,160693,595,01/10/2014,120.12,Nil,Business Services - Not Elsewhere Classified,GPC,Not yet available,
Wakefield MDC,E08000036,30/09/2014,BUSINESS,A,Net (Surplus) / Deficit of Trading Operations,EDMUNDSON ELECTRICAL,Building Materials,Revenue,160682,107,22/08/2014,10.87,Nil,Electrical Parts/Equipment,GPC,Not yet available,
Wakefield MDC,E08000036,30/09/2014,BUSINESS,A,Net (Surplus) / Deficit of Trading Operations,EDMUNDSON ELECTRICAL,Building Materials,Revenue,160682,99,22/08/2014,13.55,Nil,Electrical Parts/Equipment,GPC,Not yet available,
Wakefield MDC,E08000036,30/09/2014,BUSINESS,A,Net (Surplus) / Deficit of Trading Operations,EDMUNDSON ELECTRICAL,Building Materials,Revenue,160681,375,20/08/2014,83.17,Nil,Electrical Parts/Equipment,GPC,Not yet available,
Wakefield MDC,E08000036,30/09/2014,BUSINESS,A,Net (Surplus) / Deficit of Trading Operations,EDMUNDSON ELECTRICAL,Building Materials,Revenue,160660,3629,11/07/2014,46.36,Nil,Electrical Parts/Equipment,GPC,Not yet available,
Wakefield MDC,E08000036,30/09/2014,BUSINESS,A,Net (Surplus) / Deficit of Trading Operations,EDMUNDSON ELECTRICAL,Building Materials,Revenue,160674,49,07/08/2014,46.36,Nil,Electrical Parts/Equipment,GPC,Not yet available,
Wakefield MDC,E08000036,30/09/2014,BUSINESS,A,Net (Surplus) / Deficit of Trading Operations,EDMUNDSON ELECTRICAL,Building Materials,Revenue,160690,368,25/09/2014,48.62,Nil,Electrical Parts/Equipment,GPC,Not yet available,
Wakefield MDC,E08000036,30/09/2014,BUSINESS,A,Net (Surplus) / Deficit of Trading Operations,EDMUNDSON ELECTRICAL,Building Materials,Revenue,160687,346,10/09/2014,14.49,Nil,Electrical Parts/Equipment,GPC,Not yet available,
Wakefield MDC,E08000036,30/09/2014,BUSINESS,A,Net (Surplus) / Deficit of Trading Operations,EDMUNDSON ELECTRICAL,Building Materials,Revenue,160665,2054,24/07/2014,134.01,Nil,Electrical Parts/Equipment,GPC,Not yet available,
Wakefield MDC,E08000036,30/09/2014,BUSINESS,A,Net (Surplus) / Deficit of Trading Operations,EDMUNDSON ELECTRICAL,Building Materials,Revenue,160660,5078,11/07/2014,23.80,Nil,Electrical Parts/Equipment,GPC,Not yet available,
Wakefield MDC,E08000036,30/09/2014,BUSINESS,A,Net (Surplus) / Deficit of Trading Operations,EDMUNDSON ELECTRICAL,Building Materials,Revenue,160691,2936,29/09/2014,9.16,Nil,Electrical Parts/Equipment,GPC,Not yet available,
Wakefield MDC,E08000036,30/09/2014,BUSINESS,A,Net (Surplus) / Deficit of Trading Operations,EDMUNDSON ELECTRICAL,Building Materials,Revenue,160665,2056,24/07/2014,31.39,Nil,Electrical Parts/Equipment,GPC,Not yet available,
Wakefield MDC,E08000036,30/09/2014,BUSINESS,A,Net (Surplus) / Deficit of Trading Operations,GIBBS  DANDY ,Building Materials,Revenue,160672,,05/08/2014,14.70,Nil,Lumber/Building Materials Stores,GPC,Not yet available,
Wakefield MDC,E08000036,30/09/2014,BUSINESS,A,Net (Surplus) / Deficit of Trading Operations,GRAHAM ,Building Materials,Revenue,160690,3733,25/09/2014,23.74,Nil,Lumber/Building Materials Stores,GPC,Not yet available,
Wakefield MDC,E08000036,30/09/2014,BUSINESS,A,Net (Surplus) / Deficit of Trading Operations,GRAHAM ,Building Materials,Revenue,160686,1000,09/09/2014,4.50,Nil,Lumber/Building Materials Stores,GPC,Not yet available,
Wakefield MDC,E08000036,30/09/2014,BUSINESS,A,Net (Surplus) / Deficit of Trading Operations,GRAHAM ,Building Materials,Revenue,160690,429,25/09/2014,2.96,Nil,Lumber/Building Materials Stores,GPC,Not yet available,
Wakefield MDC,E08000036,30/09/2014,BUSINESS,A,Net (Surplus) / Deficit of Trading Operations,GRAHAM ,Building Materials,Revenue,160693,1872,01/10/2014,7.64,Nil,Lumber/Building Materials Stores,GPC,Not yet available,
Wakefield MDC,E08000036,30/09/2014,BUSINESS,A,Net (Surplus) / Deficit of Trading Operations,GRAHAM ,Building Materials,Revenue,160690,787,25/09/2014,11.90,Nil,Lumber/Building Materials Stores,GPC,Not yet available,
Wakefield MDC,E08000036,30/09/2014,BUSINESS,A,Net (Surplus) / Deficit of Trading Operations,GRAHAM ,Building Materials,Revenue,160680,165,18/08/2014,77.62,Nil,Lumber/Building Materials Stores,GPC,Not yet available,
Wakefield MDC,E08000036,30/09/2014,BUSINESS,A,Net (Surplus) / Deficit of Trading Operations,GRAHAM ,Building Materials,Revenue,160686,882,09/09/2014,0.87,Nil,Lumber/Building Materials Stores,GPC,Not yet available,
Wakefield MDC,E08000036,30/09/2014,BUSINESS,A,Net (Surplus) / Deficit of Trading Operations,GRAHAM ,Building Materials,Revenue,160690,771,25/09/2014,14.32,Nil,Lumber/Building Materials Stores,GPC,Not yet available,
Wakefield MDC,E08000036,30/09/2014,BUSINESS,A,Net (Surplus) / Deficit of Trading Operations,GRAHAM ,Building Materials,Revenue,160680,167,18/08/2014,34.89,Nil,Lumber/Building Materials Stores,GPC,Not yet available,
Wakefield MDC,E08000036,30/09/2014,BUSINESS,A,Net (Surplus) / Deficit of Trading Operations,GRAHAM ,Building Materials,Revenue,160690,3731,25/09/2014,24.61,Nil,Lumber/Building Materials Stores,GPC,Not yet available,
Wakefield MDC,E08000036,30/09/2014,BUSINESS,A,Net (Surplus) / Deficit of Trading Operations,GRAHAM ,Building Materials,Revenue,160680,169,18/08/2014,19.25,Nil,Lumber/Building Materials Stores,GPC,Not yet available,
Wakefield MDC,E08000036,30/09/2014,BUSINESS,A,Net (Surplus) / Deficit of Trading Operations,GRAHAM ,Building Materials,Revenue,160680,173,18/08/2014,15.00,Nil,Lumber/Building Materials Stores,GPC,Not yet available,
Wakefield MDC,E08000036,30/09/2014,BUSINESS,A,Net (Surplus) / Deficit of Trading Operations,GRAHAM ,Building Materials,Revenue,160690,427,25/09/2014,9.02,Nil,Lumber/Building Materials Stores,GPC,Not yet available,
Wakefield MDC,E08000036,30/09/2014,BUSINESS,A,Net (Surplus) / Deficit of Trading Operations,GRAHAM ,Building Materials,Revenue,160693,1747,01/10/2014,23.62,Nil,Lumber/Building Materials Stores,GPC,Not yet available,
Wakefield MDC,E08000036,30/09/2014,BUSINESS,A,Net (Surplus) / Deficit of Trading Operations,GRAHAM ,Building Materials,Revenue,160693,1806,01/10/2014,58.89,Nil,Lumber/Building Materials Stores,GPC,Not yet available,
Wakefield MDC,E08000036,30/09/2014,BUSINESS,A,Net (Surplus) / Deficit of Trading Operations,GRAHAM ,Building Materials,Revenue,160693,1826,01/10/2014,19.33,Nil,Lumber/Building Materials Stores,GPC,Not yet available,
Wakefield MDC,E08000036,30/09/2014,BUSINESS,A,Net (Surplus) / Deficit of Trading Operations,GRAHAM ,Building Materials,Revenue,160690,386,25/09/2014,25.76,Nil,Lumber/Building Materials Stores,GPC,Not yet available,
Wakefield MDC,E08000036,30/09/2014,BUSINESS,A,Net (Surplus) / Deficit of Trading Operations,GRAHAM ,Building Materials,Revenue,160680,175,18/08/2014,3.36,Nil,Lumber/Building Materials Stores,GPC,Not yet available,
Wakefield MDC,E08000036,30/09/2014,BUSINESS,A,Net (Surplus) / Deficit of Trading Operations,GRAHAM ,Building Materials,Revenue,160693,1828,01/10/2014,8.76,Nil,Lumber/Building Materials Stores,GPC,Not yet available,
Wakefield MDC,E08000036,30/09/2014,BUSINESS,A,Net (Surplus) / Deficit of Trading Operations,GRAHAM ,Building Materials,Revenue,160690,715,25/09/2014,3.84,Nil,Lumber/Building Materials Stores,GPC,Not yet available,
Wakefield MDC,E08000036,30/09/2014,BUSINESS,A,Net (Surplus) / Deficit of Trading Operations,GRAHAM ,Building Materials,Revenue,160663,1226,18/07/2014,25.76,Nil,Lumber/Building Materials Stores,GPC,Not yet available,
Wakefield MDC,E08000036,30/09/2014,BUSINESS,A,Net (Surplus) / Deficit of Trading Operations,GRAHAM ,Building Materials,Revenue,160680,171,18/08/2014,38.64,Nil,Lumber/Building Materials Stores,GPC,Not yet available,
Wakefield MDC,E08000036,30/09/2014,BUSINESS,A,Net (Surplus) / Deficit of Trading Operations,GRAHAM ,Building Materials,Revenue,160663,950,18/07/2014,13.99,Nil,Lumber/Building Materials Stores,GPC,Not yet available,
Wakefield MDC,E08000036,30/09/2014,BUSINESS,A,Net (Surplus) / Deficit of Trading Operations,GRAHAM ,Building Materials,Revenue,160663,948,18/07/2014,16.94,Nil,Lumber/Building Materials Stores,GPC,Not yet available,
Wakefield MDC,E08000036,30/09/2014,BUSINESS,A,Net (Surplus) / Deficit of Trading Operations,H DOCHERTY LTD ,Building Materials,Revenue,160691,3728,29/09/2014,129.30,Nil,Lumber/Building Materials Stores,GPC,Not yet available,
Wakefield MDC,E08000036,30/09/2014,BUSINESS,A,Net (Surplus) / Deficit of Trading Operations,H DOCHERTY LTD ,Building Materials,Revenue,160683,334,27/08/2014,114.85,Nil,Lumber/Building Materials Stores,GPC,Not yet available,
Wakefield MDC,E08000036,30/09/2014,BUSINESS,A,Net (Surplus) / Deficit of Trading Operations,H DOCHERTY LTD ,Building Materials,Revenue,160680,108,18/08/2014,27.79,Nil,Lumber/Building Materials Stores,GPC,Not yet available,
Wakefield MDC,E08000036,30/09/2014,BUSINESS,A,Net (Surplus) / Deficit of Trading Operations,HEIGHTSAFESYSTEMS,Building Materials,Revenue,160664,1053,22/07/2014,"1,252.00",Nil,Industrial Supplies - Not Elsewhere Classified,GPC,Not yet available,
Wakefield MDC,E08000036,30/09/2014,BUSINESS,A,Net (Surplus) / Deficit of Trading Operations,HEMSWORTH HARDWARE,Building Materials,Revenue,160683,348,27/08/2014,6.25,Nil,Hardware Stores,GPC,Not yet available,
Wakefield MDC,E08000036,30/09/2014,BUSINESS,A,Net (Surplus) / Deficit of Trading Operations,HEMSWORTH HARDWARE ,Building Materials,Revenue,160661,2704,16/07/2014,4.78,Nil,Hardware Stores,GPC,Not yet available,
Wakefield MDC,E08000036,30/09/2014,BUSINESS,A,Net (Surplus) / Deficit of Trading Operations,HORNE ENGINEERING,Building Materials,Revenue,160665,17,24/07/2014,476.25,Nil,Commercial Equipment - Not Elsewhere Classified,GPC,Not yet available,
Wakefield MDC,E08000036,30/09/2014,BUSINESS,A,Net (Surplus) / Deficit of Trading Operations,HOWARTH TMBR ,Building Materials,Revenue,160691,2053,29/09/2014,26.48,Nil,Lumber/Building Materials Stores,GPC,Not yet available,
Wakefield MDC,E08000036,30/09/2014,BUSINESS,A,Net (Surplus) / Deficit of Trading Operations,HOWDEN JOINERY ,Building Materials,Revenue,160684,302,28/08/2014,174.80,Nil,Construction Materials - Not Elsewhere Classified,GPC,Not yet available,
Wakefield MDC,E08000036,30/09/2014,BUSINESS,A,Net (Surplus) / Deficit of Trading Operations,J DAVIDSON PIPES ,Building Materials,Revenue,160663,1016,18/07/2014,27.61,Nil,Construction Materials - Not Elsewhere Classified,GPC,Not yet available,
Wakefield MDC,E08000036,30/09/2014,BUSINESS,A,Net (Surplus) / Deficit of Trading Operations,J M HUNT  CO ,Building Materials,Revenue,160690,3907,25/09/2014,11.67,Nil,Plumbing/Heating Equipment & Supplies,GPC,Not yet available,
Wakefield MDC,E08000036,30/09/2014,BUSINESS,A,Net (Surplus) / Deficit of Trading Operations,J M HUNT  CO ,Building Materials,Revenue,160689,4038,22/09/2014,42.18,Nil,Plumbing/Heating Equipment & Supplies,GPC,Not yet available,
Wakefield MDC,E08000036,30/09/2014,BUSINESS,A,Net (Surplus) / Deficit of Trading Operations,J M HUNT  CO ,Building Materials,Revenue,160683,336,27/08/2014,18.17,Nil,Plumbing/Heating Equipment & Supplies,GPC,Not yet available,
Wakefield MDC,E08000036,30/09/2014,BUSINESS,A,Net (Surplus) / Deficit of Trading Operations,J M HUNT  CO ,Building Materials,Revenue,160690,3729,25/09/2014,37.81,Nil,Plumbing/Heating Equipment & Supplies,GPC,Not yet available,
Wakefield MDC,E08000036,30/09/2014,BUSINESS,A,Net (Surplus) / Deficit of Trading Operations,J M HUNT  CO ,Building Materials,Revenue,160674,107,07/08/2014,5.32,Nil,Plumbing/Heating Equipment & Supplies,GPC,Not yet available,
Wakefield MDC,E08000036,30/09/2014,BUSINESS,A,Net (Surplus) / Deficit of Trading Operations,J M HUNT  CO ,Building Materials,Revenue,160683,425,27/08/2014,3.39,Nil,Plumbing/Heating Equipment & Supplies,GPC,Not yet available,
Wakefield MDC,E08000036,30/09/2014,BUSINESS,A,Net (Surplus) / Deficit of Trading Operations,J M HUNT  CO ,Building Materials,Revenue,160684,306,28/08/2014,6.78,Nil,Plumbing/Heating Equipment & Supplies,GPC,Not yet available,
Wakefield MDC,E08000036,30/09/2014,BUSINESS,A,Net (Surplus) / Deficit of Trading Operations,J M HUNT  CO ,Building Materials,Revenue,160689,4001,22/09/2014,104.51,Nil,Plumbing/Heating Equipment & Supplies,GPC,Not yet available,
Wakefield MDC,E08000036,30/09/2014,BUSINESS,A,Net (Surplus) / Deficit of Trading Operations,JOHNSON NORMANTON LTD,Building Materials,Revenue,160683,423,27/08/2014,1.80,Nil,Lumber/Building Materials Stores,GPC,Not yet available,
Wakefield MDC,E08000036,30/09/2014,BUSINESS,A,Net (Surplus) / Deficit of Trading Operations,KIMBERLEY INSTRUMENTS,Building Materials,Revenue,160685,9,01/09/2014,100.00,Nil,Industrial Supplies - Not Elsewhere Classified,GPC,Not yet available,
Wakefield MDC,E08000036,30/09/2014,BUSINESS,A,Net (Surplus) / Deficit of Trading Operations,LAFARGE,Building Materials,Revenue,160680,140,18/08/2014,73.50,Nil,Lumber/Building Materials Stores,GPC,Not yet available,
Wakefield MDC,E08000036,30/09/2014,BUSINESS,A,Net (Surplus) / Deficit of Trading Operations,MKM BUILDING SUPPLIES ,Building Materials,Revenue,160691,2058,29/09/2014,8.00,Nil,Lumber/Building Materials Stores,GPC,Not yet available,
Wakefield MDC,E08000036,30/09/2014,BUSINESS,A,Net (Surplus) / Deficit of Trading Operations,MRH NORMANTON SERV,Building Materials,Revenue,160683,18,27/08/2014,11.38,Nil,Service Stations,GPC,Not yet available,
Wakefield MDC,E08000036,30/09/2014,BUSINESS,A,Net (Surplus) / Deficit of Trading Operations,PLUMB CENTER,Building Materials,Revenue,160684,294,28/08/2014,19.70,Nil,Heating/Plumbing/Air-Con Contractors,GPC,Not yet available,
Wakefield MDC,E08000036,30/09/2014,BUSINESS,A,Net (Surplus) / Deficit of Trading Operations,PLUMB CENTER,Building Materials,Revenue,160684,292,28/08/2014,25.94,Nil,Heating/Plumbing/Air-Con Contractors,GPC,Not yet available,
Wakefield MDC,E08000036,30/09/2014,BUSINESS,A,Net (Surplus) / Deficit of Trading Operations,PLUMB CENTER,Building Materials,Revenue,160662,1514,17/07/2014,7.32,Nil,Heating/Plumbing/Air-Con Contractors,GPC,Not yet available,
Wakefield MDC,E08000036,30/09/2014,BUSINESS,A,Net (Surplus) / Deficit of Trading Operations,PLUMB CENTER,Building Materials,Revenue,160691,3868,29/09/2014,1.10,Nil,Heating/Plumbing/Air-Con Contractors,GPC,Not yet available,
Wakefield MDC,E08000036,30/09/2014,BUSINESS,A,Net (Surplus) / Deficit of Trading Operations,PLUMB CENTER,Building Materials,Revenue,160691,3866,29/09/2014,1.46,Nil,Heating/Plumbing/Air-Con Contractors,GPC,Not yet available,
Wakefield MDC,E08000036,30/09/2014,BUSINESS,A,Net (Surplus) / Deficit of Trading Operations,PLUMB CENTER,Building Materials,Revenue,160682,92,22/08/2014,22.94,Nil,Heating/Plumbing/Air-Con Contractors,GPC,Not yet available,
Wakefield MDC,E08000036,30/09/2014,BUSINESS,A,Net (Surplus) / Deficit of Trading Operations,PLUMB CENTER,Building Materials,Revenue,160690,2734,25/09/2014,51.86,Nil,Heating/Plumbing/Air-Con Contractors,GPC,Not yet available,
Wakefield MDC,E08000036,30/09/2014,BUSINESS,A,Net (Surplus) / Deficit of Trading Operations,PLUMB CENTER,Building Materials,Revenue,160694,2040,02/10/2014,14.32,Nil,Heating/Plumbing/Air-Con Contractors,GPC,Not yet available,
Wakefield MDC,E08000036,30/09/2014,BUSINESS,A,Net (Surplus) / Deficit of Trading Operations,PLUMB CENTER ,Building Materials,Revenue,160689,3749,22/09/2014,12.63,Nil,Heating/Plumbing/Air-Con Contractors,GPC,Not yet available,
Wakefield MDC,E08000036,30/09/2014,BUSINESS,A,Net (Surplus) / Deficit of Trading Operations,PLUMB CENTER ,Building Materials,Revenue,160689,3982,22/09/2014,45.88,Nil,Heating/Plumbing/Air-Con Contractors,GPC,Not yet available,
Wakefield MDC,E08000036,30/09/2014,BUSINESS,A,Net (Surplus) / Deficit of Trading Operations,PLUMB CENTER ,Building Materials,Revenue,160689,3984,22/09/2014,11.06,Nil,Heating/Plumbing/Air-Con Contractors,GPC,Not yet available,
Wakefield MDC,E08000036,30/09/2014,BUSINESS,A,Net (Surplus) / Deficit of Trading Operations,PLUMB CENTER ,Building Materials,Revenue,160689,3976,22/09/2014,6.88,Nil,Heating/Plumbing/Air-Con Contractors,GPC,Not yet available,
Wakefield MDC,E08000036,30/09/2014,BUSINESS,A,Net (Surplus) / Deficit of Trading Operations,PLUMB CENTER ,Building Materials,Revenue,160689,3978,22/09/2014,5.43,Nil,Heating/Plumbing/Air-Con Contractors,GPC,Not yet available,
Wakefield MDC,E08000036,30/09/2014,BUSINESS,A,Net (Surplus) / Deficit of Trading Operations,PLUMB CENTER ,Building Materials,Revenue,160660,198,11/07/2014,8.26,Nil,Heating/Plumbing/Air-Con Contractors,GPC,Not yet available,
Wakefield MDC,E08000036,30/09/2014,BUSINESS,A,Net (Surplus) / Deficit of Trading Operations,PLUMB CENTER ,Building Materials,Revenue,160660,217,11/07/2014,22.94,Nil,Heating/Plumbing/Air-Con Contractors,GPC,Not yet available,
Wakefield MDC,E08000036,30/09/2014,BUSINESS,A,Net (Surplus) / Deficit of Trading Operations,PLUMB CENTER ,Building Materials,Revenue,160660,7323,11/07/2014,5.53,Nil,Heating/Plumbing/Air-Con Contractors,GPC,Not yet available,
Wakefield MDC,E08000036,30/09/2014,BUSINESS,A,Net (Surplus) / Deficit of Trading Operations,PLUMB CENTER SH,Building Materials,Revenue,160663,1192,18/07/2014,58.94,Nil,Heating/Plumbing/Air-Con Contractors,GPC,Not yet available,
Wakefield MDC,E08000036,30/09/2014,BUSINESS,A,Net (Surplus) / Deficit of Trading Operations,PLUMB CENTER SH,Building Materials,Revenue,160689,3488,22/09/2014,31.08,Nil,Heating/Plumbing/Air-Con Contractors,GPC,Not yet available,
Wakefield MDC,E08000036,30/09/2014,BUSINESS,A,Net (Surplus) / Deficit of Trading Operations,PLUMB CENTER SH ,Building Materials,Revenue,160683,330,27/08/2014,129.50,Nil,Heating/Plumbing/Air-Con Contractors,GPC,Not yet available,
Wakefield MDC,E08000036,30/09/2014,BUSINESS,A,Net (Surplus) / Deficit of Trading Operations,PLUMB CENTER SH ,Building Materials,Revenue,160686,1065,09/09/2014,204.46,Nil,Heating/Plumbing/Air-Con Contractors,GPC,Not yet available,
Wakefield MDC,E08000036,30/09/2014,BUSINESS,A,Net (Surplus) / Deficit of Trading Operations,SCREWFIX,Building Materials,Revenue,160691,2713,29/09/2014,8.32,Nil,Lumber/Building Materials Stores,GPC,Not yet available,
Wakefield MDC,E08000036,30/09/2014,BUSINESS,A,Net (Surplus) / Deficit of Trading Operations,SCREWFIX,Building Materials,Revenue,160689,3986,22/09/2014,6.65,Nil,Lumber/Building Materials Stores,GPC,Not yet available,
Wakefield MDC,E08000036,30/09/2014,BUSINESS,A,Net (Surplus) / Deficit of Trading Operations,SCREWFIX ,Building Materials,Revenue,160669,110,31/07/2014,20.63,Nil,Lumber/Building Materials Stores,GPC,Not yet available,
Wakefield MDC,E08000036,30/09/2014,BUSINESS,A,Net (Surplus) / Deficit of Trading Operations,SCREWFIX ,Building Materials,Revenue,160674,85,07/08/2014,23.32,Nil,Lumber/Building Materials Stores,GPC,Not yet available,
Wakefield MDC,E08000036,30/09/2014,BUSINESS,A,Net (Surplus) / Deficit of Trading Operations,SCREWFIX ,Building Materials,Revenue,160680,146,18/08/2014,24.92,Nil,Lumber/Building Materials Stores,GPC,Not yet available,
Wakefield MDC,E08000036,30/09/2014,BUSINESS,A,Net (Surplus) / Deficit of Trading Operations,SCREWFIX ,Building Materials,Revenue,160669,97,31/07/2014,56.63,Nil,Lumber/Building Materials Stores,GPC,Not yet available,
Wakefield MDC,E08000036,30/09/2014,BUSINESS,A,Net (Surplus) / Deficit of Trading Operations,SCREWFIX ,Building Materials,Revenue,160669,93,31/07/2014,8.12,Nil,Lumber/Building Materials Stores,GPC,Not yet available,
Wakefield MDC,E08000036,30/09/2014,BUSINESS,A,Net (Surplus) / Deficit of Trading Operations,SCREWFIX ,Building Materials,Revenue,160690,3859,25/09/2014,28.31,Nil,Lumber/Building Materials Stores,GPC,Not yet available,
Wakefield MDC,E08000036,30/09/2014,BUSINESS,A,Net (Surplus) / Deficit of Trading Operations,SCREWFIX ,Building Materials,Revenue,160690,3861,25/09/2014,31.47,Nil,Lumber/Building Materials Stores,GPC,Not yet available,
Wakefield MDC,E08000036,30/09/2014,BUSINESS,A,Net (Surplus) / Deficit of Trading Operations,SIG,Building Materials,Revenue,160685,1011,01/09/2014,72.00,Nil,Industrial Supplies - Not Elsewhere Classified,GPC,Not yet available,
Wakefield MDC,E08000036,30/09/2014,BUSINESS,A,Net (Surplus) / Deficit of Trading Operations,THERMOMETER-POINT,Building Materials,Revenue,160685,7,01/09/2014,290.00,Nil,Industrial Supplies - Not Elsewhere Classified,GPC,Not yet available,
Wakefield MDC,E08000036,30/09/2014,BUSINESS,A,Net (Surplus) / Deficit of Trading Operations,TIMPSON LTD ,Building Materials,Revenue,160690,3266,25/09/2014,15.83,Nil,Shoe Repair/Shine/Hat Cleaning,GPC,Not yet available,
Wakefield MDC,E08000036,30/09/2014,BUSINESS,A,Net (Surplus) / Deficit of Trading Operations,TP PONTEFRACT,Building Materials,Revenue,160660,215,11/07/2014,7.00,Nil,Lumber/Building Materials Stores,GPC,Not yet available,
Wakefield MDC,E08000036,30/09/2014,BUSINESS,A,Net (Surplus) / Deficit of Trading Operations,TP WAKEFIELD ,Building Materials,Revenue,160674,81,07/08/2014,41.09,Nil,Lumber/Building Materials Stores,GPC,Not yet available,
Wakefield MDC,E08000036,30/09/2014,BUSINESS,A,Net (Surplus) / Deficit of Trading Operations,TP WAKEFIELD ,Building Materials,Revenue,160674,83,07/08/2014,36.93,Nil,Lumber/Building Materials Stores,GPC,Not yet available,
Wakefield MDC,E08000036,30/09/2014,BUSINESS,A,Net (Surplus) / Deficit of Trading Operations,WAKEFIELD BUILDBASE,Building Materials,Revenue,160684,,28/08/2014,15.06,Nil,Lumber/Building Materials Stores,GPC,Not yet available,
Wakefield MDC,E08000036,30/09/2014,BUSINESS,A,Net (Surplus) / Deficit of Trading Operations,WAKEFIELD BUILDBASE ,Building Materials,Revenue,160670,,01/08/2014,10.50,Nil,Lumber/Building Materials Stores,GPC,Not yet available,
Wakefield MDC,E08000036,30/09/2014,BUSINESS,A,Net (Surplus) / Deficit of Trading Operations,WAKEFIELD FLOORCARE,Building Materials,Revenue,160692,2034,30/09/2014,43.50,Nil,Household Appliance Stores,GPC,Not yet available,
Wakefield MDC,E08000036,30/09/2014,BUSINESS,A,Net (Surplus) / Deficit of Trading Operations,WAKEFIELD WELDING CTR,Building Materials,Revenue,160689,3490,22/09/2014,64.00,Nil,Misc & Speciality Retail Stores,GPC,Not yet available,
Wakefield MDC,E08000036,30/09/2014,BUSINESS,A,Net (Surplus) / Deficit of Trading Operations,WESTERN AUTOMATION ,Building Materials,Revenue,160661,2702,16/07/2014,95.50,Nil,Electrical Parts/Equipment,GPC,Not yet available,
Wakefield MDC,E08000036,30/09/2014,BUSINESS,A,Net (Surplus) / Deficit of Trading Operations,WESTERN AUTOMATION ,Building Materials,Revenue,160674,103,07/08/2014,52.00,Nil,Electrical Parts/Equipment,GPC,Not yet available,
Wakefield MDC,E08000036,30/09/2014,BUSINESS,A,Net (Surplus) / Deficit of Trading Operations,YORKSHIRE WATER ,Building Materials,Revenue,160664,3959,22/07/2014,606.27,Nil,Utilities - Elec/Gas/Heating Oil/Water/Sanitary,GPC,Not yet available,
Wakefield MDC,E08000036,30/09/2014,BUSINESS,A,Net (Surplus) / Deficit of Trading Operations,B & Q ,Building Materials,Revenue,160681,236,20/08/2014,9.98,Nil,Lumber/Building Materials Stores,GPC,Not yet available,
Wakefield MDC,E08000036,30/09/2014,BUSINESS,A,Net (Surplus) / Deficit of Trading Operations,HOWARTH TMBR,Building Materials,Revenue,160683,132,27/08/2014,86.18,Nil,Lumber/Building Materials Stores,GPC,Not yet available,
Wakefield MDC,E08000036,30/09/2014,BUSINESS,A,Net (Surplus) / Deficit of Trading Operations,HOWARTH TMBR ,Building Materials,Revenue,160681,234,20/08/2014,60.59,Nil,Lumber/Building Materials Stores,GPC,Not yet available,
Wakefield MDC,E08000036,30/09/2014,BUSINESS,A,Net (Surplus) / Deficit of Trading Operations,TOOL STATION,Building Materials,Revenue,160689,2581,22/09/2014,4.96,Nil,Hardware Stores,GPC,Not yet available,
Wakefield MDC,E08000036,30/09/2014,BUSINESS,A,Net (Surplus) / Deficit of Trading Operations,SCREWFIX,Building Materials,Revenue,160683,324,27/08/2014,13.89,Nil,Lumber/Building Materials Stores,GPC,Not yet available,
Wakefield MDC,E08000036,30/09/2014,BUSINESS,A,Net (Surplus) / Deficit of Trading Operations,(LEEDS) CCF ,Building Materials,Revenue,160674,41,07/08/2014,134.27,Nil,Lumber/Building Materials Stores,GPC,Not yet available,
Wakefield MDC,E08000036,30/09/2014,BUSINESS,A,Net (Surplus) / Deficit of Trading Operations,A AND S MOTORSPARES ,Building Materials,Revenue,160674,37,07/08/2014,15.00,Nil,Auto Parts/Accessory Stores,GPC,Not yet available,
Wakefield MDC,E08000036,30/09/2014,BUSINESS,A,Net (Surplus) / Deficit of Trading Operations,ATKINSONS FENCING LTD ,Building Materials,Revenue,160690,262,25/09/2014,71.94,Nil,Glass/Paint/Wallpaper Store,GPC,Not yet available,
Wakefield MDC,E08000036,30/09/2014,BUSINESS,A,Net (Surplus) / Deficit of Trading Operations,ATKINSONS FENCING LTD ,Building Materials,Revenue,160667,174,29/07/2014,7.91,Nil,Glass/Paint/Wallpaper Store,GPC,Not yet available,
Wakefield MDC,E08000036,30/09/2014,BUSINESS,A,Net (Surplus) / Deficit of Trading Operations,ATKINSONS FENCING LTD ,Building Materials,Revenue,160681,200,20/08/2014,135.80,Nil,Glass/Paint/Wallpaper Store,GPC,Not yet available,
Wakefield MDC,E08000036,30/09/2014,BUSINESS,A,Net (Surplus) / Deficit of Trading Operations,B & Q ,Building Materials,Revenue,160690,188,25/09/2014,11.25,Nil,Lumber/Building Materials Stores,GPC,Not yet available,
Wakefield MDC,E08000036,30/09/2014,BUSINESS,A,Net (Surplus) / Deficit of Trading Operations,B & Q ,Building Materials,Revenue,160690,4703,25/09/2014,11.25,Nil,Lumber/Building Materials Stores,GPC,Not yet available,
Wakefield MDC,E08000036,30/09/2014,BUSINESS,A,Net (Surplus) / Deficit of Trading Operations,B & Q ,Building Materials,Revenue,160674,35,07/08/2014,9.52,Nil,Lumber/Building Materials Stores,GPC,Not yet available,
Wakefield MDC,E08000036,30/09/2014,BUSINESS,A,Net (Surplus) / Deficit of Trading Operations,B & Q ,Building Materials,Revenue,160674,33,07/08/2014,17.82,Nil,Lumber/Building Materials Stores,GPC,Not yet available,
Wakefield MDC,E08000036,30/09/2014,BUSINESS,A,Net (Surplus) / Deficit of Trading Operations,CALDER SECURITY,Building Materials,Revenue,160674,32,07/08/2014,42.12,Nil,Hardware Stores,GPC,Not yet available,
Wakefield MDC,E08000036,30/09/2014,BUSINESS,A,Net (Surplus) / Deficit of Trading Operations,CALDER SECURITY,Building Materials,Revenue,160686,310,09/09/2014,156.60,Nil,Hardware Stores,GPC,Not yet available,
Wakefield MDC,E08000036,30/09/2014,BUSINESS,A,Net (Surplus) / Deficit of Trading Operations,CALDER SECURITY,Building Materials,Revenue,160689,268,22/09/2014,67.86,Nil,Hardware Stores,GPC,Not yet available,
Wakefield MDC,E08000036,30/09/2014,BUSINESS,A,Net (Surplus) / Deficit of Trading Operations,CALDER SECURITY,Building Materials,Revenue,160689,620,22/09/2014,88.88,Nil,Hardware Stores,GPC,Not yet available,
Wakefield MDC,E08000036,30/09/2014,BUSINESS,A,Net (Surplus) / Deficit of Trading Operations,CALDER SECURITY,Building Materials,Revenue,160689,557,22/09/2014,-67.86,Nil,Hardware Stores,GPC,Not yet available,
Wakefield MDC,E08000036,30/09/2014,BUSINESS,A,Net (Surplus) / Deficit of Trading Operations,CALDER SECURITY,Building Materials,Revenue,160681,196,20/08/2014,18.64,Nil,Hardware Stores,GPC,Not yet available,
Wakefield MDC,E08000036,30/09/2014,BUSINESS,A,Net (Surplus) / Deficit of Trading Operations,CALDER SECURITY,Building Materials,Revenue,160689,622,22/09/2014,21.94,Nil,Hardware Stores,GPC,Not yet available,
Wakefield MDC,E08000036,30/09/2014,BUSINESS,A,Net (Surplus) / Deficit of Trading Operations,DRAIN CENTER ,Building Materials,Revenue,160674,38,07/08/2014,10.30,Nil,Heating/Plumbing/Air-Con Contractors,GPC,Not yet available,
Wakefield MDC,E08000036,30/09/2014,BUSINESS,A,Net (Surplus) / Deficit of Trading Operations,DULUX DECORATOR CENTRE ,Building Materials,Revenue,160660,8195,11/07/2014,51.79,Nil,Paints/Varnishes/Supplies,GPC,Not yet available,
Wakefield MDC,E08000036,30/09/2014,BUSINESS,A,Net (Surplus) / Deficit of Trading Operations,DULUX DECORATOR CENTRE ,Building Materials,Revenue,160663,975,18/07/2014,34.88,Nil,Paints/Varnishes/Supplies,GPC,Not yet available,
Wakefield MDC,E08000036,30/09/2014,BUSINESS,A,Net (Surplus) / Deficit of Trading Operations,EDMUNDSON ELECTRICAL,Building Materials,Revenue,160679,38,14/08/2014,3.50,Nil,Electrical Parts/Equipment,GPC,Not yet available,
Wakefield MDC,E08000036,30/09/2014,BUSINESS,A,Net (Surplus) / Deficit of Trading Operations,EDMUNDSON ELECTRICAL,Building Materials,Revenue,160681,229,20/08/2014,161.31,Nil,Electrical Parts/Equipment,GPC,Not yet available,
Wakefield MDC,E08000036,30/09/2014,BUSINESS,A,Net (Surplus) / Deficit of Trading Operations,GRAHAM ,Building Materials,Revenue,160680,161,18/08/2014,20.07,Nil,Lumber/Building Materials Stores,GPC,Not yet available,
Wakefield MDC,E08000036,30/09/2014,BUSINESS,A,Net (Surplus) / Deficit of Trading Operations,GRAHAM ,Building Materials,Revenue,160680,163,18/08/2014,5.53,Nil,Lumber/Building Materials Stores,GPC,Not yet available,
Wakefield MDC,E08000036,30/09/2014,BUSINESS,A,Net (Surplus) / Deficit of Trading Operations,GRAHAM  ,Building Materials,Revenue,160667,177,29/07/2014,19.48,Nil,Lumber/Building Materials Stores,GPC,Not yet available,
Wakefield MDC,E08000036,30/09/2014,BUSINESS,A,Net (Surplus) / Deficit of Trading Operations,IRONMONGERY DIRECT,Building Materials,Revenue,160661,3454,16/07/2014,101.50,Nil,Glass/Paint/Wallpaper Store,GPC,Not yet available,
Wakefield MDC,E08000036,30/09/2014,BUSINESS,A,Net (Surplus) / Deficit of Trading Operations,JOHN MONAGHAN LTD ,Building Materials,Revenue,160688,1666,12/09/2014,9.58,Nil,Hardware/Equipment/Supplies,GPC,Not yet available,
Wakefield MDC,E08000036,30/09/2014,BUSINESS,A,Net (Surplus) / Deficit of Trading Operations,JOHN MONAGHAN LTD ,Building Materials,Revenue,160689,558,22/09/2014,31.12,Nil,Hardware/Equipment/Supplies,GPC,Not yet available,
Wakefield MDC,E08000036,30/09/2014,BUSINESS,A,Net (Surplus) / Deficit of Trading Operations,JOHN MONAGHAN LTD ,Building Materials,Revenue,160689,1050,22/09/2014,54.48,Nil,Hardware/Equipment/Supplies,GPC,Not yet available,
Wakefield MDC,E08000036,30/09/2014,BUSINESS,A,Net (Surplus) / Deficit of Trading Operations,JOHN MONAGHAN LTD ,Building Materials,Revenue,160667,172,29/07/2014,63.69,Nil,Hardware/Equipment/Supplies,GPC,Not yet available,
Wakefield MDC,E08000036,30/09/2014,BUSINESS,A,Net (Surplus) / Deficit of Trading Operations,JOHN MONAGHAN LTD ,Building Materials,Revenue,160681,197,20/08/2014,11.86,Nil,Hardware/Equipment/Supplies,GPC,Not yet available,
Wakefield MDC,E08000036,30/09/2014,BUSINESS,A,Net (Surplus) / Deficit of Trading Operations,JOHN MONAGHAN LTD ,Building Materials,Revenue,160690,179,25/09/2014,30.18,Nil,Hardware/Equipment/Supplies,GPC,Not yet available,
Wakefield MDC,E08000036,30/09/2014,BUSINESS,A,Net (Surplus) / Deficit of Trading Operations,JOHNSTONES DEC CENTRE ,Building Materials,Revenue,160681,201,20/08/2014,32.39,Nil,Glass/Paint/Wallpaper Store,GPC,Not yet available,
Wakefield MDC,E08000036,30/09/2014,BUSINESS,A,Net (Surplus) / Deficit of Trading Operations,MULTI POINT LOCKIN ,Building Materials,Revenue,160661,3118,16/07/2014,69.86,Nil,Hardware Stores,GPC,Not yet available,
Wakefield MDC,E08000036,30/09/2014,BUSINESS,A,Net (Surplus) / Deficit of Trading Operations,MULTI POINT LOCKIN ,Building Materials,Revenue,160660,2876,11/07/2014,12.85,Nil,Hardware Stores,GPC,Not yet available,
Wakefield MDC,E08000036,30/09/2014,BUSINESS,A,Net (Surplus) / Deficit of Trading Operations,NEW AGE GLASS LTD ,Building Materials,Revenue,160681,445,20/08/2014,240.00,Nil,Glass/Paint/Wallpaper Store,GPC,Not yet available,
Wakefield MDC,E08000036,30/09/2014,BUSINESS,A,Net (Surplus) / Deficit of Trading Operations,SCREWFIX,Building Materials,Revenue,160675,14,08/08/2014,13.98,Nil,Lumber/Building Materials Stores,GPC,Not yet available,
Wakefield MDC,E08000036,30/09/2014,BUSINESS,A,Net (Surplus) / Deficit of Trading Operations,SCREWFIX,Building Materials,Revenue,160690,4705,25/09/2014,7.15,Nil,Lumber/Building Materials Stores,GPC,Not yet available,
Wakefield MDC,E08000036,30/09/2014,BUSINESS,A,Net (Surplus) / Deficit of Trading Operations,SCREWFIX,Building Materials,Revenue,160686,311,09/09/2014,3.99,Nil,Lumber/Building Materials Stores,GPC,Not yet available,
Wakefield MDC,E08000036,30/09/2014,BUSINESS,A,Net (Surplus) / Deficit of Trading Operations,SCREWFIX,Building Materials,Revenue,160691,3585,29/09/2014,22.77,Nil,Lumber/Building Materials Stores,GPC,Not yet available,
Wakefield MDC,E08000036,30/09/2014,BUSINESS,A,Net (Surplus) / Deficit of Trading Operations,SCREWFIX,Building Materials,Revenue,160685,271,01/09/2014,14.47,Nil,Lumber/Building Materials Stores,GPC,Not yet available,
Wakefield MDC,E08000036,30/09/2014,BUSINESS,A,Net (Surplus) / Deficit of Trading Operations,SCREWFIX,Building Materials,Revenue,160690,187,25/09/2014,25.17,Nil,Lumber/Building Materials Stores,GPC,Not yet available,
Wakefield MDC,E08000036,30/09/2014,BUSINESS,A,Net (Surplus) / Deficit of Trading Operations,SCREWFIX,Building Materials,Revenue,160691,3586,29/09/2014,3.27,Nil,Lumber/Building Materials Stores,GPC,Not yet available,
Wakefield MDC,E08000036,30/09/2014,BUSINESS,A,Net (Surplus) / Deficit of Trading Operations,SCREWFIX,Building Materials,Revenue,160667,175,29/07/2014,2.25,Nil,Lumber/Building Materials Stores,GPC,Not yet available,
Wakefield MDC,E08000036,30/09/2014,BUSINESS,A,Net (Surplus) / Deficit of Trading Operations,SCREWFIX,Building Materials,Revenue,160681,199,20/08/2014,6.49,Nil,Lumber/Building Materials Stores,GPC,Not yet available,
Wakefield MDC,E08000036,30/09/2014,BUSINESS,A,Net (Surplus) / Deficit of Trading Operations,SCREWFIX,Building Materials,Revenue,160682,19,22/08/2014,41.67,Nil,Lumber/Building Materials Stores,GPC,Not yet available,
Wakefield MDC,E08000036,30/09/2014,BUSINESS,A,Net (Surplus) / Deficit of Trading Operations,SCREWFIX,Building Materials,Revenue,160674,43,07/08/2014,11.49,Nil,Lumber/Building Materials Stores,GPC,Not yet available,
Wakefield MDC,E08000036,30/09/2014,BUSINESS,A,Net (Surplus) / Deficit of Trading Operations,SCREWFIX,Building Materials,Revenue,160689,621,22/09/2014,44.04,Nil,Lumber/Building Materials Stores,GPC,Not yet available,
Wakefield MDC,E08000036,30/09/2014,BUSINESS,A,Net (Surplus) / Deficit of Trading Operations,SCREWFIX,Building Materials,Revenue,160674,44,07/08/2014,0.50,Nil,Lumber/Building Materials Stores,GPC,Not yet available,
Wakefield MDC,E08000036,30/09/2014,BUSINESS,A,Net (Surplus) / Deficit of Trading Operations,SCREWFIX,Building Materials,Revenue,160667,176,29/07/2014,13.36,Nil,Lumber/Building Materials Stores,GPC,Not yet available,
Wakefield MDC,E08000036,30/09/2014,BUSINESS,A,Net (Surplus) / Deficit of Trading Operations,SCREWFIX,Building Materials,Revenue,160682,20,22/08/2014,59.99,Nil,Lumber/Building Materials Stores,GPC,Not yet available,
Wakefield MDC,E08000036,30/09/2014,BUSINESS,A,Net (Surplus) / Deficit of Trading Operations,THRISLINGTON CUBICLES,Building Materials,Revenue,160664,4632,22/07/2014,112.20,Nil,Misc & Speciality Retail Stores,GPC,Not yet available,
Wakefield MDC,E08000036,30/09/2014,BUSINESS,A,Net (Surplus) / Deficit of Trading Operations,TP WAKEFIELD ,Building Materials,Revenue,160689,1102,22/09/2014,90.45,Nil,Lumber/Building Materials Stores,GPC,Not yet available,
Wakefield MDC,E08000036,30/09/2014,BUSINESS,A,Net (Surplus) / Deficit of Trading Operations,TP WAKEFIELD ,Building Materials,Revenue,160689,1100,22/09/2014,311.85,Nil,Lumber/Building Materials Stores,GPC,Not yet available,
Wakefield MDC,E08000036,30/09/2014,BUSINESS,A,Net (Surplus) / Deficit of Trading Operations,DULUX DECORATOR CENTRE,Building Materials,Revenue,160666,1501,25/07/2014,53.38,Nil,Paints/Varnishes/Supplies,GPC,Not yet available,
Wakefield MDC,E08000036,30/09/2014,BUSINESS,A,Net (Surplus) / Deficit of Trading Operations,DULUX DECORATOR CENTRE ,Building Materials,Revenue,160669,87,31/07/2014,34.88,Nil,Paints/Varnishes/Supplies,GPC,Not yet available,
Wakefield MDC,E08000036,30/09/2014,BUSINESS,A,Net (Surplus) / Deficit of Trading Operations,DULUX DECORATOR CENTRE ,Building Materials,Revenue,160668,201,30/07/2014,45.51,Nil,Paints/Varnishes/Supplies,GPC,Not yet available,
Wakefield MDC,E08000036,30/09/2014,BUSINESS,A,Net (Surplus) / Deficit of Trading Operations,DULUX DECORATOR CENTRE ,Building Materials,Revenue,160678,91,13/08/2014,4.88,Nil,Paints/Varnishes/Supplies,GPC,Not yet available,
Wakefield MDC,E08000036,30/09/2014,BUSINESS,A,Net (Surplus) / Deficit of Trading Operations,DULUX DECORATOR CENTRE ,Building Materials,Revenue,160678,93,13/08/2014,36.03,Nil,Paints/Varnishes/Supplies,GPC,Not yet available,
Wakefield MDC,E08000036,30/09/2014,BUSINESS,A,Net (Surplus) / Deficit of Trading Operations,DULUX DECORATOR CENTRE ,Building Materials,Revenue,160666,1503,25/07/2014,149.45,Nil,Paints/Varnishes/Supplies,GPC,Not yet available,
Wakefield MDC,E08000036,30/09/2014,BUSINESS,A,Net (Surplus) / Deficit of Trading Operations,DULUX DECORATOR CENTRE ,Building Materials,Revenue,160689,1995,22/09/2014,34.88,Nil,Paints/Varnishes/Supplies,GPC,Not yet available,
